Service Area,Service Division,Expense Type,Expense Code,Detailed Expense Type,Payment Date,Transaction Number,Amount Exc VAT,Supplier Name
Adult and Health Services,Head of Adults,Third Party Payments,478151,Purchase of Care,03/08/2020,3765648-1160,"1,517.48",ACCEPT CARE LTD.
Neighbourhoods and Climate Change,Technical Services CM0300,Third Party Payments,430100,Rendered by Private Contractors,03/08/2020,3765659-CSUKOU/INV/92591,"74,668.42",BALFOUR BEATTY CIVIL ENGINEERING LTD.
Adult and Health Services,Public Health CC0450,Third Party Payments,460803,Contract Payments,03/08/2020,3765663-3199,"12,000.00",BIONICAL SOLUTIONS LTD.
"Regeneration, Economy and Growth",Business Durham CL0850,Supplies and Services,338066,Services,03/08/2020,3765667-65695/0262,650.00,CANDLE LEARNING LTD.
"Regeneration, Economy and Growth",Corporate Property and Land,Third Party Payments,430100,Rendered by Private Contractors,03/08/2020,3765668-7035,"3,521.00",CATHEDRAL LOCK & SAFE SERVICES LTD.
Neighbourhoods and Climate Change,Partnerships & Community Engagement Div.,Cap Exp on Grants & Other Financial Assistance (REFCUS),918004,Contributions to other bodies 918004,03/08/2020,3765670-VOUCHER20NB-CHES0061STINST,"23,247.00",CHESTER LE STREET TOWN FC.
Resources BK0010,Digital and Customer Services,Supplies and Services,342051,Computers and Communications,03/08/2020,3765672-C/RB200638,"297,273.70",CIVICA UK LTD.
Resources BK0010,Digital and Customer Services,Supplies and Services,342051,Computers and Communications,03/08/2020,3765672-C/RB200639,"4,687.50",CIVICA UK LTD.
Neighbourhoods and Climate Change,Technical Services CM0300,Third Party Payments,430128,Rendered by Private Contractors,03/08/2020,3765673-3324,"1,365.00",CN WHITAKER.
Neighbourhoods and Climate Change,Environmental Services,Third Party Payments,430101,Rendered by Private Contractors,03/08/2020,3765682-IV1287235,"2,529.98",DIRECT TYRE MANAGEMENT LTD (DTM).
Neighbourhoods and Climate Change,Environmental Services,Third Party Payments,430101,Rendered by Private Contractors,03/08/2020,3765682-IV1298553,"2,933.74",DIRECT TYRE MANAGEMENT LTD (DTM).
Neighbourhoods and Climate Change,Environmental Services,Third Party Payments,430101,Rendered by Private Contractors,03/08/2020,3765682-IV1300751,"1,728.86",DIRECT TYRE MANAGEMENT LTD (DTM).
Neighbourhoods and Climate Change,Environmental Services,Third Party Payments,430101,Rendered by Private Contractors,03/08/2020,3765682-IV1298561,"2,199.54",DIRECT TYRE MANAGEMENT LTD (DTM).
Neighbourhoods and Climate Change,Environmental Services,Third Party Payments,430101,Rendered by Private Contractors,03/08/2020,3765682-IV1300764,"1,501.46",DIRECT TYRE MANAGEMENT LTD (DTM).
Neighbourhoods and Climate Change,Environmental Services,Third Party Payments,430101,Rendered by Private Contractors,03/08/2020,3765682-IV1303158,"1,939.83",DIRECT TYRE MANAGEMENT LTD (DTM).
Neighbourhoods and Climate Change,Environmental Services,Third Party Payments,430101,Rendered by Private Contractors,03/08/2020,3765682-IV1298556,"1,357.04",DIRECT TYRE MANAGEMENT LTD (DTM).
Neighbourhoods and Climate Change,Environmental Services,Third Party Payments,430101,Rendered by Private Contractors,03/08/2020,3765682-IV1300759,"3,328.40",DIRECT TYRE MANAGEMENT LTD (DTM).
Neighbourhoods and Climate Change,Environmental Services,Third Party Payments,430101,Rendered by Private Contractors,03/08/2020,3765682-IV1303152,"1,161.35",DIRECT TYRE MANAGEMENT LTD (DTM).
Neighbourhoods and Climate Change,Environmental Services,Third Party Payments,430101,Rendered by Private Contractors,03/08/2020,3765682-IV1293628,"1,898.58",DIRECT TYRE MANAGEMENT LTD (DTM).
Neighbourhoods and Climate Change,Environmental Services,Third Party Payments,430101,Rendered by Private Contractors,03/08/2020,3765682-IV1296269,502.01,DIRECT TYRE MANAGEMENT LTD (DTM).
Neighbourhoods and Climate Change,Environmental Services,Third Party Payments,430101,Rendered by Private Contractors,03/08/2020,3765682-IV1298559,"3,375.81",DIRECT TYRE MANAGEMENT LTD (DTM).
Neighbourhoods and Climate Change,Partnerships & Community Engagement Div.,Cap Exp on Grants & Other Financial Assistance (REFCUS),918004,Contributions to other bodies 918004,03/08/2020,3765683-VOUCHER18NB-DCTY028,"3,000.00",DURHAM UNIVERSITY & COMMUNITY BOXING CLUB.
Adult and Health Services,Public Health CC0450,Third Party Payments,460802,Contract Payments,03/08/2020,3765699-216/21/1207,"11,750.00",HUMANKIND CHARITY.
Neighbourhoods and Climate Change,Technical Services CM0300,Stock A926,926900,Stock in hand-Inventory system,03/08/2020,3765706-0113/00134393,564.00,JT DOVE LTD.
"Regeneration, Economy and Growth",Corporate Property and Land,Supplies and Services,304221,Equipment and Materials,03/08/2020,3765706-0213/00134394,"1,185.20",JT DOVE LTD.
"Regeneration, Economy and Growth",Development and Housing,Construction work A908,908105,Construction work,03/08/2020,3765707-RED-04-2020-004.,"175,000.00",KARBON HOMES LTD FORMERLY CESTRIA HOUSING ASSOCIATION LTD.
"Regeneration, Economy and Growth",Corporate Property and Land,Third Party Payments,430100,Rendered by Private Contractors,03/08/2020,3765710-1370,"10,500.00",KARLIN TIMBER FRAME (NE) LTD.
Neighbourhoods and Climate Change,Environmental Services,Supplies and Services,304221,Equipment and Materials,03/08/2020,3765734-315614,785.33,PEART FENCING LTD.
"Regeneration, Economy and Growth",Culture Sport and Tourism,Supplies and Services,384199,Miscellaneous Expenses,03/08/2020,3765735-001-ROBINHOOD2020,"8,146.22",PGI SMITH SOLUTIONS LTD.
"Regeneration, Economy and Growth",Corporate Property and Land,Supplies and Services,304221,Equipment and Materials,03/08/2020,3765738-INV90403,"1,085.00",PLINTH MEDICAL LTD.
Neighbourhoods and Climate Change,Technical Services CM0300,Third Party Payments,430100,Rendered by Private Contractors,03/08/2020,3765740-165689,"58,522.08",PREMIER TRAFFIC MANAGEMENT LTD.
"Regeneration, Economy and Growth",Transport and Contracted Services,Third Party Payments,430100,Rendered by Private Contractors,03/08/2020,3765741-135161,"1,101.23",PROTECTOR SECURITY GROUP LTD.
"Regeneration, Economy and Growth",Transport and Contracted Services,Third Party Payments,430100,Rendered by Private Contractors,03/08/2020,3765743-135148,"1,504.80",QW SECURITY LTD.
"Regeneration, Economy and Growth",Development and Housing,Supplies and Services,384700,Miscellaneous Expenses,03/08/2020,3765752-RED-07-2020-185,"29,000.00",SHERBURN HILL HUB CIO.
Neighbourhoods and Climate Change,Technical Services CM0300,Supplies and Services,304221,Equipment and Materials,03/08/2020,3765754-4100697161,"4,815.00",STAY SAFE SANITIZER STATIONS.
Neighbourhoods and Climate Change,Technical Services CM0300,Supplies and Services,304221,Equipment and Materials,03/08/2020,3765754-4100697720,"2,700.00",STAY SAFE SANITIZER STATIONS.
Neighbourhoods and Climate Change,Technical Services CM0300,Third Party Payments,460155,Contract Payments,03/08/2020,3765759-12782,901.00,TEESDALE MERCURY LTD.
Adult and Health Services,Head of Adults,Third Party Payments,478151,Purchase of Care,03/08/2020,3765761-4,940.80,THE INTEGRATION TRUST LTD.
Neighbourhoods and Climate Change,Technical Services CM0300,Stock A926,926900,Stock in hand-Inventory system,03/08/2020,3765763-NSIN00039725,652.80,THOMAS OWEN & SONS (NEWCASTLE) LTD.
Neighbourhoods and Climate Change,Technical Services CM0300,Stock A926,926900,Stock in hand-Inventory system,03/08/2020,3765763-NSIN00039728,810.85,THOMAS OWEN & SONS (NEWCASTLE) LTD.
Adult and Health Services,Head of Adults,Third Party Payments,470101,Purchase of Care,04/08/2020,3766958-2626334,"2,488.08",A CHARLES THOMAS (CARE) LTD.
Adult and Health Services,Head of Adults,Third Party Payments,470101,Purchase of Care,04/08/2020,3766958-2626335,622.02,A CHARLES THOMAS (CARE) LTD.
Adult and Health Services,Head of Adults,Third Party Payments,470101,Purchase of Care,04/08/2020,3766958-2626336,"1,777.20",A CHARLES THOMAS (CARE) LTD.
Adult and Health Services,Head of Adults,Third Party Payments,470101,Purchase of Care,04/08/2020,3766958-2626337,888.60,A CHARLES THOMAS (CARE) LTD.
Adult and Health Services,Head of Adults,Third Party Payments,470101,Purchase of Care,04/08/2020,3766958-2626338,"2,488.08",A CHARLES THOMAS (CARE) LTD.
Adult and Health Services,Head of Adults,Third Party Payments,470101,Purchase of Care,04/08/2020,3766958-2626339,"2,488.08",A CHARLES THOMAS (CARE) LTD.
Adult and Health Services,Head of Adults,Third Party Payments,470101,Purchase of Care,04/08/2020,3766958-2626342,"2,488.08",A CHARLES THOMAS (CARE) LTD.
Adult and Health Services,Head of Adults,Third Party Payments,470101,Purchase of Care,04/08/2020,3766958-2626343,"2,488.08",A CHARLES THOMAS (CARE) LTD.
Adult and Health Services,Head of Adults,Third Party Payments,470101,Purchase of Care,04/08/2020,3766958-2626344,"2,488.08",A CHARLES THOMAS (CARE) LTD.
Adult and Health Services,Head of Adults,Third Party Payments,470101,Purchase of Care,04/08/2020,3766958-2626345,"1,066.32",A CHARLES THOMAS (CARE) LTD.
Adult and Health Services,Head of Adults,Third Party Payments,470101,Purchase of Care,04/08/2020,3766958-2626347,"2,488.08",A CHARLES THOMAS (CARE) LTD.
Adult and Health Services,Head of Adults,Third Party Payments,470101,Purchase of Care,04/08/2020,3766958-2626348,"2,488.08",A CHARLES THOMAS (CARE) LTD.
Adult and Health Services,Head of Adults,Third Party Payments,470101,Purchase of Care,04/08/2020,3766958-2626349,"2,488.08",A CHARLES THOMAS (CARE) LTD.
Adult and Health Services,Head of Adults,Third Party Payments,470101,Purchase of Care,04/08/2020,3766958-2626350,"2,488.08",A CHARLES THOMAS (CARE) LTD.
Adult and Health Services,Head of Adults,Third Party Payments,470101,Purchase of Care,04/08/2020,3766958-2626351,"2,488.08",A CHARLES THOMAS (CARE) LTD.
Adult and Health Services,Head of Adults,Third Party Payments,470101,Purchase of Care,04/08/2020,3766958-2626352,"2,488.08",A CHARLES THOMAS (CARE) LTD.
Adult and Health Services,Head of Adults,Third Party Payments,470101,Purchase of Care,04/08/2020,3766958-2626353,"2,488.08",A CHARLES THOMAS (CARE) LTD.
Adult and Health Services,Head of Adults,Third Party Payments,470101,Purchase of Care,04/08/2020,3766958-2626354,710.88,A CHARLES THOMAS (CARE) LTD.
Adult and Health Services,Head of Adults,Third Party Payments,470101,Purchase of Care,04/08/2020,3766958-2626355,"2,488.08",A CHARLES THOMAS (CARE) LTD.
Adult and Health Services,Head of Adults,Third Party Payments,470101,Purchase of Care,04/08/2020,3766958-2626356,"2,488.08",A CHARLES THOMAS (CARE) LTD.
Adult and Health Services,Head of Adults,Third Party Payments,470101,Purchase of Care,04/08/2020,3766958-2626357,"2,488.08",A CHARLES THOMAS (CARE) LTD.
Adult and Health Services,Head of Adults,Third Party Payments,470101,Purchase of Care,04/08/2020,3766958-2626358,"2,488.08",A CHARLES THOMAS (CARE) LTD.
Adult and Health Services,Head of Adults,Third Party Payments,470101,Purchase of Care,04/08/2020,3766958-2626359,"2,488.08",A CHARLES THOMAS (CARE) LTD.
Adult and Health Services,Head of Adults,Third Party Payments,470101,Purchase of Care,04/08/2020,3766958-2626360,"2,488.08",A CHARLES THOMAS (CARE) LTD.
Adult and Health Services,Head of Adults,Third Party Payments,470101,Purchase of Care,04/08/2020,3766958-2626361,"2,488.08",A CHARLES THOMAS (CARE) LTD.
Adult and Health Services,Head of Adults,Third Party Payments,470101,Purchase of Care,04/08/2020,3766958-2626362,"2,488.08",A CHARLES THOMAS (CARE) LTD.
Adult and Health Services,Head of Adults,Third Party Payments,470101,Purchase of Care,04/08/2020,3766958-2626363,"2,790.20",A CHARLES THOMAS (CARE) LTD.
Adult and Health Services,Head of Adults,Third Party Payments,470101,Purchase of Care,04/08/2020,3766958-2626364,"2,488.08",A CHARLES THOMAS (CARE) LTD.
Adult and Health Services,Head of Adults,Third Party Payments,470101,Purchase of Care,04/08/2020,3766958-2626365,"2,488.08",A CHARLES THOMAS (CARE) LTD.
Adult and Health Services,Head of Adults,Third Party Payments,470101,Purchase of Care,04/08/2020,3766958-2626366,"2,488.08",A CHARLES THOMAS (CARE) LTD.
Adult and Health Services,Head of Adults,Third Party Payments,470101,Purchase of Care,04/08/2020,3766958-2626367,"2,488.08",A CHARLES THOMAS (CARE) LTD.
Adult and Health Services,Head of Adults,Third Party Payments,470101,Purchase of Care,04/08/2020,3766958-2626368,"1,777.20",A CHARLES THOMAS (CARE) LTD.
Adult and Health Services,Head of Adults,Third Party Payments,470101,Purchase of Care,04/08/2020,3766958-2626369,"2,488.08",A CHARLES THOMAS (CARE) LTD.
Adult and Health Services,Head of Adults,Third Party Payments,470101,Purchase of Care,04/08/2020,3766958-2626370,"2,488.08",A CHARLES THOMAS (CARE) LTD.
Adult and Health Services,Head of Adults,Third Party Payments,470101,Purchase of Care,04/08/2020,3766958-2626340,"1,599.48",A CHARLES THOMAS (CARE) LTD.
Adult and Health Services,Head of Adults,Third Party Payments,470101,Purchase of Care,04/08/2020,3766958-2626341,"2,488.08",A CHARLES THOMAS (CARE) LTD.
Adult and Health Services,Head of Adults,Third Party Payments,470101,Purchase of Care,04/08/2020,3766958-2626346,"2,488.08",A CHARLES THOMAS (CARE) LTD.
Adult and Health Services,Head of Adults,Third Party Payments,470101,Purchase of Care,04/08/2020,3766430-ADDITIONALUPLIFT5/52,"7,212.66",A CHARLES THOMAS (CARE) LTD.
Adult and Health Services,Head of Adults,Third Party Payments,479150,Purchase of Care,04/08/2020,3766430-INFECTIONCONTROLFUND2/80,"23,734.56",A CHARLES THOMAS (CARE) LTD.
Adult and Health Services,Head of Adults,Third Party Payments,470101,Purchase of Care,04/08/2020,3766430-SELFFUNDERCOVID19UPLIFT5-35,"3,483.31",A CHARLES THOMAS (CARE) LTD.
Children and Young Peoples Services,Head of Childrens Social Care,Third Party Payments,425040,Rendered by Voluntary Organisations,04/08/2020,3766959-PIG_69552,"40,527.41",A1 FOSTER CARE.
Adult and Health Services,Public Health CC0450,Third Party Payments,460803,Contract Payments,04/08/2020,3766432-INV-0783,"124,855.00",ABL HEALTH LTD.
Adult and Health Services,Head of Adults,Third Party Payments,478101,Purchase of Care,04/08/2020,3766433-ADDITIONALUPLIFT5/88,"9,652.02",ACCEPT CARE LTD.
Adult and Health Services,Head of Adults,Third Party Payments,479150,Purchase of Care,04/08/2020,3766433-INFECTIONCONTROLFUND/58,"58,167.03",ACCEPT CARE LTD.
Children and Young Peoples Services,Head of Childrens Social Care,Third Party Payments,425040,Rendered by Voluntary Organisations,04/08/2020,3766990-PIG_68822,"21,979.83",ACORN CARE (NE) LTD.
Children and Young Peoples Services,Head of Childrens Social Care,Third Party Payments,425040,Rendered by Voluntary Organisations,04/08/2020,3766991-PIG_69533,"24,343.04",ACORN HOUSE (FOSTERING SERVICES) LTD.
Children and Young Peoples Services,Head of Childrens Social Care,Supplies and Services,338044,Services,04/08/2020,3766435-MWDL1000720,"1,816.20",ADVANCED CHILD CARE ASSESSMENTS LTD.
"Regeneration, Economy and Growth",Corporate Property and Land,Third Party Payments,430100,Rendered by Private Contractors,04/08/2020,3766436-004,"1,072.50",AKA ELECTRICAL ENGINEERING LTD.
Adult and Health Services,Head of Adults,Third Party Payments,471101,Purchase of Care,04/08/2020,3766994-2627742,"2,272.00",AKARI CARE LTD.
Adult and Health Services,Head of Adults,Third Party Payments,474101,Purchase of Care,04/08/2020,3766994-2627743,"1,082.00",AKARI CARE LTD.
Adult and Health Services,Head of Adults,Third Party Payments,474101,Purchase of Care,04/08/2020,3766994-2627745,"1,082.00",AKARI CARE LTD.
Adult and Health Services,Head of Adults,Third Party Payments,474101,Purchase of Care,04/08/2020,3766994-2627746,"1,082.00",AKARI CARE LTD.
Adult and Health Services,Head of Adults,Third Party Payments,474101,Purchase of Care,04/08/2020,3766996-2629327,"2,807.96",AKARI CARE LTD.
Adult and Health Services,Head of Adults,Third Party Payments,471101,Purchase of Care,04/08/2020,3766998-2627484,"2,579.92",AKARI CARE LTD.
Adult and Health Services,Head of Adults,Third Party Payments,471101,Purchase of Care,04/08/2020,3766998-2627485,"2,579.92",AKARI CARE LTD.
Adult and Health Services,Head of Adults,Third Party Payments,470101,Purchase of Care,04/08/2020,3766998-2627486,"2,488.08",AKARI CARE LTD.
Adult and Health Services,Head of Adults,Third Party Payments,471101,Purchase of Care,04/08/2020,3766998-2627489,"2,579.92",AKARI CARE LTD.
Adult and Health Services,Head of Adults,Third Party Payments,471101,Purchase of Care,04/08/2020,3766998-2627491,"2,579.92",AKARI CARE LTD.
Adult and Health Services,Head of Adults,Third Party Payments,471101,Purchase of Care,04/08/2020,3766998-2627492,"1,474.24",AKARI CARE LTD.
Adult and Health Services,Head of Adults,Third Party Payments,470101,Purchase of Care,04/08/2020,3766998-2627493,"2,488.08",AKARI CARE LTD.
Adult and Health Services,Head of Adults,Third Party Payments,471101,Purchase of Care,04/08/2020,3766998-2627496,"2,579.92",AKARI CARE LTD.
Adult and Health Services,Head of Adults,Third Party Payments,471101,Purchase of Care,04/08/2020,3766998-2627497,"2,579.92",AKARI CARE LTD.
Adult and Health Services,Head of Adults,Third Party Payments,471101,Purchase of Care,04/08/2020,3766998-2627498,"2,579.92",AKARI CARE LTD.
Adult and Health Services,Head of Adults,Third Party Payments,470101,Purchase of Care,04/08/2020,3766998-2627499,"2,488.08",AKARI CARE LTD.
Adult and Health Services,Head of Adults,Third Party Payments,471101,Purchase of Care,04/08/2020,3766998-2627500,"2,579.92",AKARI CARE LTD.
Adult and Health Services,Head of Adults,Third Party Payments,470101,Purchase of Care,04/08/2020,3766998-2627501,"2,488.08",AKARI CARE LTD.
Adult and Health Services,Head of Adults,Third Party Payments,471101,Purchase of Care,04/08/2020,3766998-2627502,"2,579.92",AKARI CARE LTD.
Adult and Health Services,Head of Adults,Third Party Payments,471101,Purchase of Care,04/08/2020,3766998-2627503,"2,579.92",AKARI CARE LTD.
Adult and Health Services,Head of Adults,Third Party Payments,471101,Purchase of Care,04/08/2020,3766998-2627504,"2,579.92",AKARI CARE LTD.
Adult and Health Services,Head of Adults,Third Party Payments,471101,Purchase of Care,04/08/2020,3766998-2627505,"2,579.92",AKARI CARE LTD.
Adult and Health Services,Head of Adults,Third Party Payments,470101,Purchase of Care,04/08/2020,3766998-2627506,"2,488.08",AKARI CARE LTD.
Adult and Health Services,Head of Adults,Third Party Payments,470101,Purchase of Care,04/08/2020,3766998-2627507,888.60,AKARI CARE LTD.
Adult and Health Services,Head of Adults,Third Party Payments,470101,Purchase of Care,04/08/2020,3766998-2627508,"2,488.08",AKARI CARE LTD.
Adult and Health Services,Head of Adults,Third Party Payments,470101,Purchase of Care,04/08/2020,3766998-2627509,"2,488.08",AKARI CARE LTD.
Adult and Health Services,Head of Adults,Third Party Payments,471101,Purchase of Care,04/08/2020,3766998-2627510,"2,579.92",AKARI CARE LTD.
Adult and Health Services,Head of Adults,Third Party Payments,471101,Purchase of Care,04/08/2020,3766998-2627511,"2,579.92",AKARI CARE LTD.
Adult and Health Services,Head of Adults,Third Party Payments,471101,Purchase of Care,04/08/2020,3766998-2627512,"2,579.92",AKARI CARE LTD.
Adult and Health Services,Head of Adults,Third Party Payments,470101,Purchase of Care,04/08/2020,3766998-2627513,"2,488.08",AKARI CARE LTD.
Adult and Health Services,Head of Adults,Third Party Payments,470101,Purchase of Care,04/08/2020,3766998-2627514,"2,488.08",AKARI CARE LTD.
Adult and Health Services,Head of Adults,Third Party Payments,470101,Purchase of Care,04/08/2020,3766998-2627515,"1,244.04",AKARI CARE LTD.
Adult and Health Services,Head of Adults,Third Party Payments,474101,Purchase of Care,04/08/2020,3766994-2627741,827.14,AKARI CARE LTD.
Adult and Health Services,Head of Adults,Third Party Payments,474101,Purchase of Care,04/08/2020,3766995-2628815,"2,589.44",AKARI CARE LTD.
Adult and Health Services,Head of Adults,Third Party Payments,470101,Purchase of Care,04/08/2020,3766994-2627748,"1,052.00",AKARI CARE LTD.
Adult and Health Services,Head of Adults,Third Party Payments,471101,Purchase of Care,04/08/2020,3766995-2628781,"2,579.92",AKARI CARE LTD.
Adult and Health Services,Head of Adults,Third Party Payments,470101,Purchase of Care,04/08/2020,3766995-2628782,"2,568.08",AKARI CARE LTD.
Adult and Health Services,Head of Adults,Third Party Payments,471101,Purchase of Care,04/08/2020,3766995-2628783,"2,659.92",AKARI CARE LTD.
Adult and Health Services,Head of Adults,Third Party Payments,470101,Purchase of Care,04/08/2020,3766995-2628784,"1,866.06",AKARI CARE LTD.
Adult and Health Services,Head of Adults,Third Party Payments,474101,Purchase of Care,04/08/2020,3766995-2628785,"1,294.72",AKARI CARE LTD.
Adult and Health Services,Head of Adults,Third Party Payments,470101,Purchase of Care,04/08/2020,3766995-2628787,"2,488.08",AKARI CARE LTD.
Adult and Health Services,Head of Adults,Third Party Payments,470101,Purchase of Care,04/08/2020,3766995-2628790,"2,488.08",AKARI CARE LTD.
Adult and Health Services,Head of Adults,Third Party Payments,470101,Purchase of Care,04/08/2020,3766995-2628795,"2,488.08",AKARI CARE LTD.
Adult and Health Services,Head of Adults,Third Party Payments,474101,Purchase of Care,04/08/2020,3766995-2628796,"2,589.44",AKARI CARE LTD.
Adult and Health Services,Head of Adults,Third Party Payments,470101,Purchase of Care,04/08/2020,3766995-2628798,"2,488.08",AKARI CARE LTD.
Adult and Health Services,Head of Adults,Third Party Payments,474101,Purchase of Care,04/08/2020,3766995-2628799,"2,589.44",AKARI CARE LTD.
Adult and Health Services,Head of Adults,Third Party Payments,470101,Purchase of Care,04/08/2020,3766995-2628801,"2,488.08",AKARI CARE LTD.
Adult and Health Services,Head of Adults,Third Party Payments,471101,Purchase of Care,04/08/2020,3766995-2628802,"2,579.92",AKARI CARE LTD.
Adult and Health Services,Head of Adults,Third Party Payments,471101,Purchase of Care,04/08/2020,3766995-2628803,"2,579.92",AKARI CARE LTD.
Adult and Health Services,Head of Adults,Third Party Payments,474101,Purchase of Care,04/08/2020,3766995-2628804,"2,589.44",AKARI CARE LTD.
Adult and Health Services,Head of Adults,Third Party Payments,470101,Purchase of Care,04/08/2020,3766995-2628806,"2,568.08",AKARI CARE LTD.
Adult and Health Services,Head of Adults,Third Party Payments,470101,Purchase of Care,04/08/2020,3766995-2628807,"2,554.08",AKARI CARE LTD.
Adult and Health Services,Head of Adults,Third Party Payments,474101,Purchase of Care,04/08/2020,3766995-2628808,"2,589.44",AKARI CARE LTD.
Adult and Health Services,Head of Adults,Third Party Payments,474101,Purchase of Care,04/08/2020,3766995-2628810,"2,589.44",AKARI CARE LTD.
Adult and Health Services,Head of Adults,Third Party Payments,470101,Purchase of Care,04/08/2020,3766995-2628812,"2,488.08",AKARI CARE LTD.
Adult and Health Services,Head of Adults,Third Party Payments,471101,Purchase of Care,04/08/2020,3766995-2628813,"2,659.92",AKARI CARE LTD.
Adult and Health Services,Head of Adults,Third Party Payments,471101,Purchase of Care,04/08/2020,3766995-2628814,"2,659.92",AKARI CARE LTD.
Adult and Health Services,Head of Adults,Third Party Payments,470101,Purchase of Care,04/08/2020,3766995-2628817,"2,488.08",AKARI CARE LTD.
Adult and Health Services,Head of Adults,Third Party Payments,474101,Purchase of Care,04/08/2020,3766995-2628818,"1,294.72",AKARI CARE LTD.
Adult and Health Services,Head of Adults,Third Party Payments,471101,Purchase of Care,04/08/2020,3766995-2628820,"2,579.92",AKARI CARE LTD.
Adult and Health Services,Head of Adults,Third Party Payments,471101,Purchase of Care,04/08/2020,3766995-2628821,"2,579.92",AKARI CARE LTD.
Adult and Health Services,Head of Adults,Third Party Payments,471101,Purchase of Care,04/08/2020,3766995-2628822,"2,579.92",AKARI CARE LTD.
Adult and Health Services,Head of Adults,Third Party Payments,471101,Purchase of Care,04/08/2020,3766995-2628823,"2,579.92",AKARI CARE LTD.
Adult and Health Services,Head of Adults,Third Party Payments,471101,Purchase of Care,04/08/2020,3766995-2628824,"2,579.92",AKARI CARE LTD.
Adult and Health Services,Head of Adults,Third Party Payments,470101,Purchase of Care,04/08/2020,3766995-2628825,"2,488.08",AKARI CARE LTD.
Adult and Health Services,Head of Adults,Third Party Payments,470101,Purchase of Care,04/08/2020,3766995-2628826,"2,488.08",AKARI CARE LTD.
Adult and Health Services,Head of Adults,Third Party Payments,470101,Purchase of Care,04/08/2020,3766995-2628827,"2,488.08",AKARI CARE LTD.
Adult and Health Services,Head of Adults,Third Party Payments,471101,Purchase of Care,04/08/2020,3766995-2628828,"2,579.92",AKARI CARE LTD.
Adult and Health Services,Head of Adults,Third Party Payments,470101,Purchase of Care,04/08/2020,3766995-2630046,"1,954.92",AKARI CARE LTD.
Adult and Health Services,Head of Adults,Third Party Payments,474101,Purchase of Care,04/08/2020,3766995-2628791,"2,589.44",AKARI CARE LTD.
Adult and Health Services,Head of Adults,Third Party Payments,474101,Purchase of Care,04/08/2020,3766995-2628793,"2,589.44",AKARI CARE LTD.
Adult and Health Services,Head of Adults,Third Party Payments,470101,Purchase of Care,04/08/2020,3766995-2628780,"1,332.90",AKARI CARE LTD.
Adult and Health Services,Head of Adults,Third Party Payments,471101,Purchase of Care,04/08/2020,3766998-2627480,"1,750.66",AKARI CARE LTD.
Adult and Health Services,Head of Adults,Third Party Payments,470101,Purchase of Care,04/08/2020,3766998-2627481,"2,488.08",AKARI CARE LTD.
Adult and Health Services,Head of Adults,Third Party Payments,470101,Purchase of Care,04/08/2020,3766998-2627482,"2,488.08",AKARI CARE LTD.
Adult and Health Services,Head of Adults,Third Party Payments,470101,Purchase of Care,04/08/2020,3766998-2627483,"2,488.08",AKARI CARE LTD.
Adult and Health Services,Head of Adults,Third Party Payments,470101,Purchase of Care,04/08/2020,3766998-2627487,"2,488.08",AKARI CARE LTD.
Adult and Health Services,Head of Adults,Third Party Payments,471101,Purchase of Care,04/08/2020,3766998-2627488,"2,579.92",AKARI CARE LTD.
Adult and Health Services,Head of Adults,Third Party Payments,470101,Purchase of Care,04/08/2020,3766998-2627490,"2,488.08",AKARI CARE LTD.
Adult and Health Services,Head of Adults,Third Party Payments,471101,Purchase of Care,04/08/2020,3766998-2627494,"2,579.92",AKARI CARE LTD.
Adult and Health Services,Head of Adults,Third Party Payments,470101,Purchase of Care,04/08/2020,3766998-2627495,"2,488.08",AKARI CARE LTD.
Adult and Health Services,Head of Adults,Third Party Payments,474101,Purchase of Care,04/08/2020,3766997-2627780,"2,559.24",AKARI CARE LTD.
Adult and Health Services,Head of Adults,Third Party Payments,470101,Purchase of Care,04/08/2020,3766437-ADDITIONALUPLIFT5/49,"11,085.89",AKARI CARE LTD.
Adult and Health Services,Head of Adults,Third Party Payments,479150,Purchase of Care,04/08/2020,3766437-INFECTIONCONTROLFUND2/97,"26,701.38",AKARI CARE LTD.
Adult and Health Services,Head of Adults,Third Party Payments,470101,Purchase of Care,04/08/2020,3766437-SELFFUNDERCOVID19UPLIFT5-34,"1,264.31",AKARI CARE LTD.
Adult and Health Services,Head of Adults,Third Party Payments,470101,Purchase of Care,04/08/2020,3766438-ADDITIONALUPLIFT5/104,"10,184.69",AKARI CARE LTD.
Adult and Health Services,Head of Adults,Third Party Payments,479150,Purchase of Care,04/08/2020,3766438-INFECTIONCONTROLFUND2/98,"27,195.85",AKARI CARE LTD.
Adult and Health Services,Head of Adults,Third Party Payments,470101,Purchase of Care,04/08/2020,3766438-SELFFUNDERCOVID19UPLIFT5-58,"2,736.89",AKARI CARE LTD.
"Regeneration, Economy and Growth",Business Durham CL0850,Construction work A908,908105,Construction work,04/08/2020,3766440-169263,900.00,ALBANY OFFICE EQUIPMENT (WHOLESALE) LTD.
Resources BK0010,Legal & Democratic Services,Supplies and Services,308011,Furniture,04/08/2020,3766440-168934,"6,194.24",ALBANY OFFICE EQUIPMENT (WHOLESALE) LTD.
Regeneration and Local Services,COVID19 - Regeneration Economy and Growth,Third Party Payments,430100,Rendered by Private Contractors,04/08/2020,3766440-169297,"5,760.00",ALBANY OFFICE EQUIPMENT (WHOLESALE) LTD.
Adult and Health Services,Head of Adults,Third Party Payments,471101,Purchase of Care,04/08/2020,3767001-2627364,"1,197.82",ALLIANCE CARE (TRENDLEWOOD) LTD.
Adult and Health Services,Head of Adults,Third Party Payments,471101,Purchase of Care,04/08/2020,3767001-2627369,"2,579.92",ALLIANCE CARE (TRENDLEWOOD) LTD.
Adult and Health Services,Head of Adults,Third Party Payments,470101,Purchase of Care,04/08/2020,3767001-2627374,888.60,ALLIANCE CARE (TRENDLEWOOD) LTD.
Adult and Health Services,Head of Adults,Third Party Payments,471101,Purchase of Care,04/08/2020,3767001-2627385,"2,579.92",ALLIANCE CARE (TRENDLEWOOD) LTD.
Adult and Health Services,Head of Adults,Third Party Payments,471101,Purchase of Care,04/08/2020,3767001-2627386,"2,579.92",ALLIANCE CARE (TRENDLEWOOD) LTD.
Adult and Health Services,Head of Adults,Third Party Payments,474101,Purchase of Care,04/08/2020,3767001-2627387,"1,294.72",ALLIANCE CARE (TRENDLEWOOD) LTD.
Adult and Health Services,Head of Adults,Third Party Payments,470101,Purchase of Care,04/08/2020,3767001-2627389,"2,790.20",ALLIANCE CARE (TRENDLEWOOD) LTD.
Adult and Health Services,Head of Adults,Third Party Payments,470101,Purchase of Care,04/08/2020,3767001-2627390,"2,488.08",ALLIANCE CARE (TRENDLEWOOD) LTD.
Adult and Health Services,Head of Adults,Third Party Payments,471101,Purchase of Care,04/08/2020,3767001-2627391,"1,382.10",ALLIANCE CARE (TRENDLEWOOD) LTD.
Adult and Health Services,Head of Adults,Third Party Payments,474101,Purchase of Care,04/08/2020,3767001-2627394,"2,589.44",ALLIANCE CARE (TRENDLEWOOD) LTD.
Adult and Health Services,Head of Adults,Third Party Payments,470101,Purchase of Care,04/08/2020,3767001-2627398,"2,488.08",ALLIANCE CARE (TRENDLEWOOD) LTD.
Adult and Health Services,Head of Adults,Third Party Payments,470101,Purchase of Care,04/08/2020,3767001-2627399,"2,488.08",ALLIANCE CARE (TRENDLEWOOD) LTD.
Adult and Health Services,Head of Adults,Third Party Payments,470101,Purchase of Care,04/08/2020,3767001-2627400,"2,488.08",ALLIANCE CARE (TRENDLEWOOD) LTD.
Adult and Health Services,Head of Adults,Third Party Payments,470101,Purchase of Care,04/08/2020,3767001-2627401,"2,790.20",ALLIANCE CARE (TRENDLEWOOD) LTD.
Adult and Health Services,Head of Adults,Third Party Payments,470101,Purchase of Care,04/08/2020,3767001-2627402,"2,488.08",ALLIANCE CARE (TRENDLEWOOD) LTD.
Adult and Health Services,Head of Adults,Third Party Payments,470101,Purchase of Care,04/08/2020,3767001-2627403,"2,488.08",ALLIANCE CARE (TRENDLEWOOD) LTD.
Adult and Health Services,Head of Adults,Third Party Payments,470101,Purchase of Care,04/08/2020,3767001-2627404,"2,488.08",ALLIANCE CARE (TRENDLEWOOD) LTD.
Adult and Health Services,Head of Adults,Third Party Payments,474101,Purchase of Care,04/08/2020,3767001-2627405,"2,589.44",ALLIANCE CARE (TRENDLEWOOD) LTD.
Adult and Health Services,Head of Adults,Third Party Payments,470101,Purchase of Care,04/08/2020,3767001-2627407,"2,488.08",ALLIANCE CARE (TRENDLEWOOD) LTD.
Adult and Health Services,Head of Adults,Third Party Payments,470101,Purchase of Care,04/08/2020,3767001-2627408,"2,488.08",ALLIANCE CARE (TRENDLEWOOD) LTD.
Adult and Health Services,Head of Adults,Third Party Payments,470101,Purchase of Care,04/08/2020,3767001-2627409,"2,488.08",ALLIANCE CARE (TRENDLEWOOD) LTD.
Adult and Health Services,Head of Adults,Third Party Payments,470101,Purchase of Care,04/08/2020,3767001-2627412,"2,488.08",ALLIANCE CARE (TRENDLEWOOD) LTD.
Adult and Health Services,Head of Adults,Third Party Payments,474101,Purchase of Care,04/08/2020,3767001-2627413,"2,589.44",ALLIANCE CARE (TRENDLEWOOD) LTD.
Adult and Health Services,Head of Adults,Third Party Payments,474101,Purchase of Care,04/08/2020,3767001-2627415,"2,589.44",ALLIANCE CARE (TRENDLEWOOD) LTD.
Adult and Health Services,Head of Adults,Third Party Payments,470101,Purchase of Care,04/08/2020,3767001-2627417,"1,244.04",ALLIANCE CARE (TRENDLEWOOD) LTD.
Adult and Health Services,Head of Adults,Third Party Payments,470101,Purchase of Care,04/08/2020,3767001-2627418,"2,488.08",ALLIANCE CARE (TRENDLEWOOD) LTD.
Adult and Health Services,Head of Adults,Third Party Payments,471101,Purchase of Care,04/08/2020,3767001-2627419,"2,579.92",ALLIANCE CARE (TRENDLEWOOD) LTD.
Adult and Health Services,Head of Adults,Third Party Payments,470101,Purchase of Care,04/08/2020,3767001-2627396,"2,488.08",ALLIANCE CARE (TRENDLEWOOD) LTD.
Adult and Health Services,Head of Adults,Third Party Payments,470101,Purchase of Care,04/08/2020,3767001-2627382,"2,043.78",ALLIANCE CARE (TRENDLEWOOD) LTD.
Adult and Health Services,Head of Adults,Third Party Payments,470101,Purchase of Care,04/08/2020,3767001-2627410,"2,488.08",ALLIANCE CARE (TRENDLEWOOD) LTD.
Adult and Health Services,Head of Adults,Third Party Payments,470101,Purchase of Care,04/08/2020,3767001-2627365,"2,488.08",ALLIANCE CARE (TRENDLEWOOD) LTD.
Adult and Health Services,Head of Adults,Third Party Payments,470101,Purchase of Care,04/08/2020,3767001-2627373,"1,155.18",ALLIANCE CARE (TRENDLEWOOD) LTD.
Adult and Health Services,Head of Adults,Third Party Payments,474101,Purchase of Care,04/08/2020,3767001-2627377,"1,017.28",ALLIANCE CARE (TRENDLEWOOD) LTD.
Adult and Health Services,Head of Adults,Third Party Payments,470101,Purchase of Care,04/08/2020,3767001-2627379,"2,221.50",ALLIANCE CARE (TRENDLEWOOD) LTD.
Adult and Health Services,Head of Adults,Third Party Payments,470101,Purchase of Care,04/08/2020,3767001-2627383,"2,488.08",ALLIANCE CARE (TRENDLEWOOD) LTD.
Adult and Health Services,Head of Adults,Third Party Payments,474101,Purchase of Care,04/08/2020,3767001-2627392,"2,589.44",ALLIANCE CARE (TRENDLEWOOD) LTD.
Adult and Health Services,Head of Adults,Third Party Payments,470101,Purchase of Care,04/08/2020,3767001-2627397,"2,488.08",ALLIANCE CARE (TRENDLEWOOD) LTD.
Adult and Health Services,Head of Adults,Third Party Payments,471101,Purchase of Care,04/08/2020,3767001-2629943,737.12,ALLIANCE CARE (TRENDLEWOOD) LTD.
Adult and Health Services,Head of Adults,Third Party Payments,470101,Purchase of Care,04/08/2020,3767001-2627411,"2,488.08",ALLIANCE CARE (TRENDLEWOOD) LTD.
Adult and Health Services,Head of Adults,Third Party Payments,470101,Purchase of Care,04/08/2020,3767001-2627420,"2,790.20",ALLIANCE CARE (TRENDLEWOOD) LTD.
Adult and Health Services,Head of Adults,Third Party Payments,470101,Purchase of Care,04/08/2020,3766441-ADDITIONALUPLIFT5/14,"10,943.82",ALLIANCE CARE (TRENDLEWOOD) LTD.
Adult and Health Services,Head of Adults,Third Party Payments,479150,Purchase of Care,04/08/2020,3766441-INFECTIONCONTROLFUND2/121,"37,085.25",ALLIANCE CARE (TRENDLEWOOD) LTD.
Adult and Health Services,Head of Adults,Third Party Payments,470101,Purchase of Care,04/08/2020,3766441-SELFFUNDERCOVID19UPLIFT5-11,"2,747.02",ALLIANCE CARE (TRENDLEWOOD) LTD.
Adult and Health Services,Head of Adults,Third Party Payments,479150,Purchase of Care,04/08/2020,3766442-INFECTIONCONTROLFUND/84,"12,315.92",ALLIED HEALTH-SERVICES LTD T/A ALLIED HEALTHCARE.
Adult and Health Services,Head of Adults,Third Party Payments,470101,Purchase of Care,04/08/2020,3767002-2628567,"2,408.00",ANCHOR CAREHOMES LTD.
Adult and Health Services,Head of Adults,Third Party Payments,470101,Purchase of Care,04/08/2020,3767002-2628568,"1,204.00",ANCHOR CAREHOMES LTD.
Adult and Health Services,Head of Adults,Third Party Payments,470101,Purchase of Care,04/08/2020,3767002-2628570,"2,408.00",ANCHOR CAREHOMES LTD.
Adult and Health Services,Head of Adults,Third Party Payments,470101,Purchase of Care,04/08/2020,3767002-2628569,"2,408.00",ANCHOR CAREHOMES LTD.
Adult and Health Services,Head of Adults,Third Party Payments,470101,Purchase of Care,04/08/2020,3767003-2628571,"1,340.89",ANCHOR HANOVER GROUP.
Adult and Health Services,Head of Adults,Third Party Payments,471101,Purchase of Care,04/08/2020,3767003-2628578,"3,379.92",ANCHOR HANOVER GROUP.
Adult and Health Services,Head of Adults,Third Party Payments,470101,Purchase of Care,04/08/2020,3767003-2628579,"2,888.08",ANCHOR HANOVER GROUP.
Adult and Health Services,Head of Adults,Third Party Payments,471101,Purchase of Care,04/08/2020,3767003-2628580,"2,979.92",ANCHOR HANOVER GROUP.
Adult and Health Services,Head of Adults,Third Party Payments,471101,Purchase of Care,04/08/2020,3767003-2628581,"1,569.96",ANCHOR HANOVER GROUP.
Adult and Health Services,Head of Adults,Third Party Payments,471101,Purchase of Care,04/08/2020,3767003-2628582,"2,922.92",ANCHOR HANOVER GROUP.
Adult and Health Services,Head of Adults,Third Party Payments,470101,Purchase of Care,04/08/2020,3767003-2628583,"1,244.04",ANCHOR HANOVER GROUP.
Adult and Health Services,Head of Adults,Third Party Payments,471101,Purchase of Care,04/08/2020,3767003-2628584,"1,658.52",ANCHOR HANOVER GROUP.
Adult and Health Services,Head of Adults,Third Party Payments,470101,Purchase of Care,04/08/2020,3767003-2628585,"2,688.08",ANCHOR HANOVER GROUP.
Adult and Health Services,Head of Adults,Third Party Payments,471101,Purchase of Care,04/08/2020,3767003-2628586,"2,979.92",ANCHOR HANOVER GROUP.
Adult and Health Services,Head of Adults,Third Party Payments,470101,Purchase of Care,04/08/2020,3767003-2628587,"2,488.08",ANCHOR HANOVER GROUP.
Adult and Health Services,Head of Adults,Third Party Payments,471101,Purchase of Care,04/08/2020,3767003-2628588,"2,979.92",ANCHOR HANOVER GROUP.
Adult and Health Services,Head of Adults,Third Party Payments,471101,Purchase of Care,04/08/2020,3767003-2628589,"2,819.92",ANCHOR HANOVER GROUP.
Adult and Health Services,Head of Adults,Third Party Payments,470101,Purchase of Care,04/08/2020,3767003-2628590,"1,244.04",ANCHOR HANOVER GROUP.
Adult and Health Services,Head of Adults,Third Party Payments,471101,Purchase of Care,04/08/2020,3767003-2628591,"2,859.92",ANCHOR HANOVER GROUP.
Adult and Health Services,Head of Adults,Third Party Payments,470101,Purchase of Care,04/08/2020,3767003-2628592,"2,808.08",ANCHOR HANOVER GROUP.
Adult and Health Services,Head of Adults,Third Party Payments,470101,Purchase of Care,04/08/2020,3767003-2628593,"2,488.08",ANCHOR HANOVER GROUP.
Adult and Health Services,Head of Adults,Third Party Payments,470101,Purchase of Care,04/08/2020,3767003-2628594,"2,488.08",ANCHOR HANOVER GROUP.
Adult and Health Services,Head of Adults,Third Party Payments,471101,Purchase of Care,04/08/2020,3767003-2628595,"1,289.96",ANCHOR HANOVER GROUP.
Adult and Health Services,Head of Adults,Third Party Payments,470101,Purchase of Care,04/08/2020,3767003-2628596,"2,728.08",ANCHOR HANOVER GROUP.
Adult and Health Services,Head of Adults,Third Party Payments,470101,Purchase of Care,04/08/2020,3767003-2628597,"2,608.08",ANCHOR HANOVER GROUP.
Adult and Health Services,Head of Adults,Third Party Payments,470101,Purchase of Care,04/08/2020,3767003-2628598,"2,488.08",ANCHOR HANOVER GROUP.
Adult and Health Services,Head of Adults,Third Party Payments,471101,Purchase of Care,04/08/2020,3767003-2628599,"2,819.92",ANCHOR HANOVER GROUP.
Adult and Health Services,Head of Adults,Third Party Payments,470101,Purchase of Care,04/08/2020,3767003-2628600,"2,728.08",ANCHOR HANOVER GROUP.
Adult and Health Services,Head of Adults,Third Party Payments,470101,Purchase of Care,04/08/2020,3767003-2628601,"1,244.04",ANCHOR HANOVER GROUP.
Adult and Health Services,Head of Adults,Third Party Payments,471101,Purchase of Care,04/08/2020,3767003-2628602,"2,579.92",ANCHOR HANOVER GROUP.
Adult and Health Services,Head of Adults,Third Party Payments,470101,Purchase of Care,04/08/2020,3767003-2628603,"2,808.08",ANCHOR HANOVER GROUP.
Adult and Health Services,Head of Adults,Third Party Payments,471101,Purchase of Care,04/08/2020,3767003-2628572,"2,979.92",ANCHOR HANOVER GROUP.
Adult and Health Services,Head of Adults,Third Party Payments,471101,Purchase of Care,04/08/2020,3767003-2628573,"2,579.92",ANCHOR HANOVER GROUP.
Adult and Health Services,Head of Adults,Third Party Payments,470101,Purchase of Care,04/08/2020,3767003-2628574,"2,488.08",ANCHOR HANOVER GROUP.
Adult and Health Services,Head of Adults,Third Party Payments,470101,Purchase of Care,04/08/2020,3767003-2628575,"1,155.18",ANCHOR HANOVER GROUP.
Adult and Health Services,Head of Adults,Third Party Payments,470101,Purchase of Care,04/08/2020,3767003-2628576,"5,456.16",ANCHOR HANOVER GROUP.
Adult and Health Services,Head of Adults,Third Party Payments,471101,Purchase of Care,04/08/2020,3767003-2628577,"1,809.23",ANCHOR HANOVER GROUP.
Adult and Health Services,Head of Adults,Third Party Payments,471101,Purchase of Care,04/08/2020,3767003-2629720,921.40,ANCHOR HANOVER GROUP.
Adult and Health Services,Head of Adults,Third Party Payments,470101,Purchase of Care,04/08/2020,3766444-ADDITIONALUPLIFT5/144,"7,219.66",ANCHOR HANOVER GROUP.
Adult and Health Services,Head of Adults,Third Party Payments,479150,Purchase of Care,04/08/2020,3766444-INFECTIONCONTROLFUND2/122,"37,579.72",ANCHOR HANOVER GROUP.
Adult and Health Services,Head of Adults,Third Party Payments,470101,Purchase of Care,04/08/2020,3766444-SELFFUNDERCOVID19UPLIFT5-45,"10,947.55",ANCHOR HANOVER GROUP.
Adult and Health Services,Head of Adults,Third Party Payments,470101,Purchase of Care,04/08/2020,3767004-2626946,"2,280.00",ANCHOR TRUST.
Adult and Health Services,Head of Adults,Third Party Payments,470101,Purchase of Care,04/08/2020,3767004-2626948,"2,280.00",ANCHOR TRUST.
Adult and Health Services,Head of Adults,Third Party Payments,470101,Purchase of Care,04/08/2020,3767004-2626947,"2,280.00",ANCHOR TRUST.
Adult and Health Services,Head of Adults,Third Party Payments,471101,Purchase of Care,04/08/2020,3767005-2627154,"2,142.08",ANDREW PASS.
Resources BK0010,Digital and Customer Services,Supplies and Services,304245,Equipment and Materials,04/08/2020,3766450-9360948,510.00,ANTALIS LTD.
Adult and Health Services,Commissioning inc Supporting People,Third Party Payments,479111,Purchase of Care,04/08/2020,3766451-INV-11095,"5,300.00",APM CLEANING LTD.
Adult and Health Services,Head of Adults,Third Party Payments,479150,Purchase of Care,04/08/2020,3766452-INFECTIONCONTROLFUND/85,"6,551.33",APOLLO HOME HEALTHCARE LTD.
Adult and Health Services,Head of Adults,Third Party Payments,471101,Purchase of Care,04/08/2020,3767008-2626541,"1,289.96",ASCOT CARE NORTH EAST LTD..
Adult and Health Services,Head of Adults,Third Party Payments,471101,Purchase of Care,04/08/2020,3767008-2626543,"1,289.96",ASCOT CARE NORTH EAST LTD..
Adult and Health Services,Head of Adults,Third Party Payments,470101,Purchase of Care,04/08/2020,3767008-2626548,"1,582.16",ASCOT CARE NORTH EAST LTD..
Adult and Health Services,Head of Adults,Third Party Payments,471101,Purchase of Care,04/08/2020,3767008-2626532,644.98,ASCOT CARE NORTH EAST LTD..
Adult and Health Services,Head of Adults,Third Party Payments,471101,Purchase of Care,04/08/2020,3767008-2626533,"1,197.82",ASCOT CARE NORTH EAST LTD..
Adult and Health Services,Head of Adults,Third Party Payments,471101,Purchase of Care,04/08/2020,3767008-2626535,"1,382.10",ASCOT CARE NORTH EAST LTD..
Adult and Health Services,Head of Adults,Third Party Payments,471101,Purchase of Care,04/08/2020,3767008-2626537,"1,444.52",ASCOT CARE NORTH EAST LTD..
Adult and Health Services,Head of Adults,Third Party Payments,470101,Purchase of Care,04/08/2020,3767008-2626539,"2,488.08",ASCOT CARE NORTH EAST LTD..
Adult and Health Services,Head of Adults,Third Party Payments,470101,Purchase of Care,04/08/2020,3767008-2626540,"1,954.92",ASCOT CARE NORTH EAST LTD..
Adult and Health Services,Head of Adults,Third Party Payments,470101,Purchase of Care,04/08/2020,3767008-2626542,"2,488.08",ASCOT CARE NORTH EAST LTD..
Adult and Health Services,Head of Adults,Third Party Payments,470101,Purchase of Care,04/08/2020,3767008-2626545,"1,813.08",ASCOT CARE NORTH EAST LTD..
Adult and Health Services,Head of Adults,Third Party Payments,471101,Purchase of Care,04/08/2020,3767008-2626547,"1,973.00",ASCOT CARE NORTH EAST LTD..
Adult and Health Services,Head of Adults,Third Party Payments,470101,Purchase of Care,04/08/2020,3767008-2626549,"2,488.08",ASCOT CARE NORTH EAST LTD..
Adult and Health Services,Head of Adults,Third Party Payments,470101,Purchase of Care,04/08/2020,3767008-2626550,"1,578.60",ASCOT CARE NORTH EAST LTD..
Adult and Health Services,Head of Adults,Third Party Payments,470101,Purchase of Care,04/08/2020,3767008-2626551,"2,488.08",ASCOT CARE NORTH EAST LTD..
Adult and Health Services,Head of Adults,Third Party Payments,470101,Purchase of Care,04/08/2020,3767008-2626552,"1,872.72",ASCOT CARE NORTH EAST LTD..
Adult and Health Services,Head of Adults,Third Party Payments,471101,Purchase of Care,04/08/2020,3767008-2629782,552.84,ASCOT CARE NORTH EAST LTD..
Adult and Health Services,Head of Adults,Third Party Payments,470101,Purchase of Care,04/08/2020,3767008-2626544,"2,488.08",ASCOT CARE NORTH EAST LTD..
Adult and Health Services,Head of Adults,Third Party Payments,470101,Purchase of Care,04/08/2020,3767007-2627119,"2,280.00",ASCOT CARE NORTH EAST LTD..
Adult and Health Services,Head of Adults,Third Party Payments,470101,Purchase of Care,04/08/2020,3767008-2626534,"2,488.08",ASCOT CARE NORTH EAST LTD..
Adult and Health Services,Head of Adults,Third Party Payments,470101,Purchase of Care,04/08/2020,3767008-2626546,"1,244.04",ASCOT CARE NORTH EAST LTD..
Adult and Health Services,Head of Adults,Third Party Payments,470101,Purchase of Care,04/08/2020,3767008-2626529,"2,488.08",ASCOT CARE NORTH EAST LTD..
Adult and Health Services,Head of Adults,Third Party Payments,470101,Purchase of Care,04/08/2020,3767008-2626538,"2,488.08",ASCOT CARE NORTH EAST LTD..
Adult and Health Services,Head of Adults,Third Party Payments,470101,Purchase of Care,04/08/2020,3767008-2629984,977.46,ASCOT CARE NORTH EAST LTD..
Adult and Health Services,Head of Adults,Third Party Payments,470101,Purchase of Care,04/08/2020,3766454-ADDITIONALUPLIFT5/42,"5,311.25",ASCOT CARE NORTH EAST LTD..
Adult and Health Services,Head of Adults,Third Party Payments,479150,Purchase of Care,04/08/2020,3766454-INFECTIONCONTROLFUND2/55,"19,778.80",ASCOT CARE NORTH EAST LTD..
Adult and Health Services,Head of Adults,Third Party Payments,470101,Purchase of Care,04/08/2020,3766454-SELFFUNDERCOVID19UPLIFT5-31,"1,990.46",ASCOT CARE NORTH EAST LTD..
Adult and Health Services,Head of Adults,Third Party Payments,471101,Purchase of Care,04/08/2020,3767009-2627769,"2,667.16",ASHBOURNE LODGE CARE HOME.
Adult and Health Services,Head of Adults,Third Party Payments,470101,Purchase of Care,04/08/2020,3767010-2629619,"1,140.00",ASPIRE CARE GROUP T/A GRASMERE LODGE.
Adult and Health Services,Head of Adults,Third Party Payments,470101,Purchase of Care,04/08/2020,3767012-2629124,"1,497.60",ASPIRE CARE GROUP.
Adult and Health Services,Head of Adults,Third Party Payments,470101,Purchase of Care,04/08/2020,3767011-2628284,"3,641.40",ASPIRE CARE GROUP.
Adult and Health Services,Head of Adults,Third Party Payments,470101,Purchase of Care,04/08/2020,3767011-2628285,"1,893.56",ASPIRE CARE GROUP.
Adult and Health Services,Head of Adults,Third Party Payments,470101,Purchase of Care,04/08/2020,3767011-2628286,"2,695.00",ASPIRE CARE GROUP.
Adult and Health Services,Head of Adults,Third Party Payments,470101,Purchase of Care,04/08/2020,3767011-2628287,"1,893.56",ASPIRE CARE GROUP.
Adult and Health Services,Head of Adults,Third Party Payments,470101,Purchase of Care,04/08/2020,3767011-2628288,668.64,ASPIRE CARE GROUP.
Adult and Health Services,Head of Adults,Third Party Payments,470101,Purchase of Care,04/08/2020,3767011-2628289,"2,125.68",ASPIRE CARE GROUP.
Adult and Health Services,Head of Adults,Third Party Payments,470101,Purchase of Care,04/08/2020,3767012-2629125,"1,062.84",ASPIRE CARE GROUP.
Adult and Health Services,Head of Adults,Third Party Payments,470101,Purchase of Care,04/08/2020,3767012-2629126,"2,125.68",ASPIRE CARE GROUP.
Adult and Health Services,Head of Adults,Third Party Payments,470101,Purchase of Care,04/08/2020,3767012-2629127,"2,125.68",ASPIRE CARE GROUP.
Adult and Health Services,Head of Adults,Third Party Payments,470101,Purchase of Care,04/08/2020,3767012-2629128,"1,702.68",ASPIRE CARE GROUP.
Adult and Health Services,Head of Adults,Third Party Payments,470101,Purchase of Care,04/08/2020,3767012-2629129,"1,396.32",ASPIRE CARE GROUP.
Adult and Health Services,Head of Adults,Third Party Payments,470101,Purchase of Care,04/08/2020,3767012-2629130,"1,531.24",ASPIRE CARE GROUP.
Adult and Health Services,Head of Adults,Third Party Payments,470101,Purchase of Care,04/08/2020,3767013-2627106,"2,125.68",ASPIRE CARE GROUP.
Adult and Health Services,Head of Adults,Third Party Payments,470101,Purchase of Care,04/08/2020,3767013-2627107,"2,125.68",ASPIRE CARE GROUP.
Adult and Health Services,Head of Adults,Third Party Payments,479150,Purchase of Care,04/08/2020,3766455-INFECTIONCONTROLFUND2/2,"1,483.41",ASPIRE CARE GROUP.
Adult and Health Services,Head of Adults,Third Party Payments,470101,Purchase of Care,04/08/2020,3766456-ADDITIONALUPLIFT5/LDMH/14,702.09,ASPIRE CARE GROUP.
Adult and Health Services,Head of Adults,Third Party Payments,479150,Purchase of Care,04/08/2020,3766456-INFECTIONCONTROLFUND2/18,"3,955.76",ASPIRE CARE GROUP.
Adult and Health Services,Head of Adults,Third Party Payments,470101,Purchase of Care,04/08/2020,3766457-ADDITIONALUPLIFT5/LDMH/18,582.44,ASPIRE CARE GROUP.
Adult and Health Services,Head of Adults,Third Party Payments,479150,Purchase of Care,04/08/2020,3766457-INFECTIONCONTROLFUND2/20,"4,450.23",ASPIRE CARE GROUP.
Adult and Health Services,Head of Adults,Third Party Payments,474101,Purchase of Care,04/08/2020,3767014-2629580,"2,400.00",ASTORIA HEALTHCARE LTD.
"Regeneration, Economy and Growth",Corporate Property and Land,Supplies and Services,384199,Miscellaneous Expenses,04/08/2020,3766459-20031633,"1,339.79",ATKINS GLOBAL.
"Regeneration, Economy and Growth",Corporate Property and Land,Supplies and Services,384199,Miscellaneous Expenses,04/08/2020,3766459-20031623,"1,200.00",ATKINS GLOBAL.
Adult and Health Services,Head of Adults,Third Party Payments,474101,Purchase of Care,04/08/2020,3767016-2629062,"2,648.00",ATLAS CARE HOMES LTD.
Adult and Health Services,Head of Adults,Third Party Payments,474101,Purchase of Care,04/08/2020,3767016-2629063,"1,288.00",ATLAS CARE HOMES LTD.
Adult and Health Services,Head of Adults,Third Party Payments,470101,Purchase of Care,04/08/2020,3767015-2629631,"1,164.00",ATLAS CARE HOMES LTD.
Adult and Health Services,Head of Adults,Third Party Payments,470101,Purchase of Care,04/08/2020,3767018-2628558,"2,043.92",AUTISM CARE UK (4) LTD.
Adult and Health Services,Head of Adults,Third Party Payments,470101,Purchase of Care,04/08/2020,3767018-2628559,"4,996.04",AUTISM CARE UK (4) LTD.
Adult and Health Services,Head of Adults,Third Party Payments,470101,Purchase of Care,04/08/2020,3767018-2628560,"4,096.08",AUTISM CARE UK (4) LTD.
Adult and Health Services,Head of Adults,Third Party Payments,470101,Purchase of Care,04/08/2020,3767018-2628561,"2,084.80",AUTISM CARE UK (4) LTD.
Adult and Health Services,Head of Adults,Third Party Payments,470101,Purchase of Care,04/08/2020,3767018-2628562,"9,412.96",AUTISM CARE UK (4) LTD.
Adult and Health Services,Head of Adults,Third Party Payments,470101,Purchase of Care,04/08/2020,3767018-2628563,"4,504.60",AUTISM CARE UK (4) LTD.
Adult and Health Services,Head of Adults,Third Party Payments,470101,Purchase of Care,04/08/2020,3767018-2628564,"1,683.36",AUTISM CARE UK (4) LTD.
Adult and Health Services,Head of Adults,Third Party Payments,470101,Purchase of Care,04/08/2020,3767018-2628565,"3,216.12",AUTISM CARE UK (4) LTD.
Adult and Health Services,Head of Adults,Third Party Payments,478101,Purchase of Care,04/08/2020,3766460-ADDITIONALUPLIFT5/80,"3,118.34",AUTISM CARE UK (4) LTD.
Adult and Health Services,Head of Adults,Third Party Payments,470101,Purchase of Care,04/08/2020,3766460-ADDITIONALUPLIFT5/LDMH/19,"1,737.91",AUTISM CARE UK (4) LTD.
Adult and Health Services,Head of Adults,Third Party Payments,479150,Purchase of Care,04/08/2020,3766460-INFECTIONCONTROLFUND/53,"15,600.00",AUTISM CARE UK (4) LTD.
"Regeneration, Economy and Growth",Corporate Property and Land,Third Party Payments,430100,Rendered by Private Contractors,04/08/2020,3766461-2017-JULY20,"2,650.00",AWR ROOFING & ALUMIN RAINWATER SYSTEMS LTD.
Adult and Health Services,Head of Adults,Third Party Payments,471101,Purchase of Care,04/08/2020,3767020-2628387,"1,233.12",BARCHESTER HEALTHCARE HOMES LTD.
Adult and Health Services,Head of Adults,Third Party Payments,470101,Purchase of Care,04/08/2020,3767023-2627992,"2,700.00",BARCHESTER HEALTHCARE HOMES LTD.
Adult and Health Services,Head of Adults,Third Party Payments,474101,Purchase of Care,04/08/2020,3767023-2628001,"2,700.00",BARCHESTER HEALTHCARE HOMES LTD.
Adult and Health Services,Head of Adults,Third Party Payments,470101,Purchase of Care,04/08/2020,3767026-2627757,"2,144.00",BARCHESTER HEALTHCARE HOMES LTD.
Adult and Health Services,Head of Adults,Third Party Payments,470101,Purchase of Care,04/08/2020,3767022-2627860,"2,344.00",BARCHESTER HEALTHCARE HOMES LTD.
Adult and Health Services,Head of Adults,Third Party Payments,470101,Purchase of Care,04/08/2020,3767022-2627861,"2,344.00",BARCHESTER HEALTHCARE HOMES LTD.
Adult and Health Services,Head of Adults,Third Party Payments,474101,Purchase of Care,04/08/2020,3767023-2627986,"2,804.00",BARCHESTER HEALTHCARE HOMES LTD.
Adult and Health Services,Head of Adults,Third Party Payments,474101,Purchase of Care,04/08/2020,3767023-2627993,"2,700.00",BARCHESTER HEALTHCARE HOMES LTD.
Adult and Health Services,Head of Adults,Third Party Payments,474101,Purchase of Care,04/08/2020,3767023-2629718,"4,339.29",BARCHESTER HEALTHCARE HOMES LTD.
Adult and Health Services,Head of Adults,Third Party Payments,470101,Purchase of Care,04/08/2020,3767026-2627755,"2,144.00",BARCHESTER HEALTHCARE HOMES LTD.
Adult and Health Services,Head of Adults,Third Party Payments,470101,Purchase of Care,04/08/2020,3767026-2627756,"2,144.00",BARCHESTER HEALTHCARE HOMES LTD.
Adult and Health Services,Head of Adults,Third Party Payments,474101,Purchase of Care,04/08/2020,3767027-2627002,"1,228.64",BARCHESTER HEALTHCARE HOMES LTD.
Adult and Health Services,Head of Adults,Third Party Payments,474101,Purchase of Care,04/08/2020,3767019-2627893,"2,950.00",BARCHESTER HEALTHCARE HOMES LTD.
Adult and Health Services,Head of Adults,Third Party Payments,474101,Purchase of Care,04/08/2020,3767019-2627894,"4,928.00",BARCHESTER HEALTHCARE HOMES LTD.
Adult and Health Services,Head of Adults,Third Party Payments,474101,Purchase of Care,04/08/2020,3767019-2627903,"2,700.00",BARCHESTER HEALTHCARE HOMES LTD.
Adult and Health Services,Head of Adults,Third Party Payments,470101,Purchase of Care,04/08/2020,3767021-2627963,"2,064.00",BARCHESTER HEALTHCARE HOMES LTD.
Adult and Health Services,Head of Adults,Third Party Payments,471101,Purchase of Care,04/08/2020,3767021-2627964,"2,144.00",BARCHESTER HEALTHCARE HOMES LTD.
Adult and Health Services,Head of Adults,Third Party Payments,474101,Purchase of Care,04/08/2020,3767023-2627989,"2,700.00",BARCHESTER HEALTHCARE HOMES LTD.
Adult and Health Services,Head of Adults,Third Party Payments,470101,Purchase of Care,04/08/2020,3767026-2627758,"2,144.00",BARCHESTER HEALTHCARE HOMES LTD.
Adult and Health Services,Head of Adults,Third Party Payments,470101,Purchase of Care,04/08/2020,3767027-2627029,"2,354.80",BARCHESTER HEALTHCARE HOMES LTD.
Adult and Health Services,Head of Adults,Third Party Payments,474101,Purchase of Care,04/08/2020,3767019-2627890,"2,950.00",BARCHESTER HEALTHCARE HOMES LTD.
Adult and Health Services,Head of Adults,Third Party Payments,474101,Purchase of Care,04/08/2020,3767019-2627892,"2,950.00",BARCHESTER HEALTHCARE HOMES LTD.
Adult and Health Services,Head of Adults,Third Party Payments,474101,Purchase of Care,04/08/2020,3767019-2627896,"3,179.72",BARCHESTER HEALTHCARE HOMES LTD.
Adult and Health Services,Head of Adults,Third Party Payments,474101,Purchase of Care,04/08/2020,3767019-2627897,"2,994.00",BARCHESTER HEALTHCARE HOMES LTD.
Adult and Health Services,Head of Adults,Third Party Payments,474101,Purchase of Care,04/08/2020,3767019-2627898,"3,360.00",BARCHESTER HEALTHCARE HOMES LTD.
Adult and Health Services,Head of Adults,Third Party Payments,474101,Purchase of Care,04/08/2020,3767019-2627899,"2,950.00",BARCHESTER HEALTHCARE HOMES LTD.
Adult and Health Services,Head of Adults,Third Party Payments,474101,Purchase of Care,04/08/2020,3767019-2627901,"2,950.00",BARCHESTER HEALTHCARE HOMES LTD.
Adult and Health Services,Head of Adults,Third Party Payments,474101,Purchase of Care,04/08/2020,3767019-2629634,"2,950.00",BARCHESTER HEALTHCARE HOMES LTD.
Adult and Health Services,Head of Adults,Third Party Payments,474101,Purchase of Care,04/08/2020,3767023-2627990,"2,700.00",BARCHESTER HEALTHCARE HOMES LTD.
Adult and Health Services,Head of Adults,Third Party Payments,474101,Purchase of Care,04/08/2020,3767023-2627996,"2,700.00",BARCHESTER HEALTHCARE HOMES LTD.
Adult and Health Services,Head of Adults,Third Party Payments,470101,Purchase of Care,04/08/2020,3767023-2627998,"2,700.00",BARCHESTER HEALTHCARE HOMES LTD.
Adult and Health Services,Head of Adults,Third Party Payments,470101,Purchase of Care,04/08/2020,3767023-2627999,"2,700.00",BARCHESTER HEALTHCARE HOMES LTD.
Adult and Health Services,Head of Adults,Third Party Payments,474101,Purchase of Care,04/08/2020,3767023-2629930,"3,763.29",BARCHESTER HEALTHCARE HOMES LTD.
Adult and Health Services,Head of Adults,Third Party Payments,474101,Purchase of Care,04/08/2020,3767027-2627005,"2,457.28",BARCHESTER HEALTHCARE HOMES LTD.
Adult and Health Services,Head of Adults,Third Party Payments,474101,Purchase of Care,04/08/2020,3767027-2627007,"1,228.64",BARCHESTER HEALTHCARE HOMES LTD.
Adult and Health Services,Head of Adults,Third Party Payments,474101,Purchase of Care,04/08/2020,3767027-2627009,"1,228.64",BARCHESTER HEALTHCARE HOMES LTD.
Adult and Health Services,Head of Adults,Third Party Payments,474101,Purchase of Care,04/08/2020,3767027-2627018,"1,228.64",BARCHESTER HEALTHCARE HOMES LTD.
Adult and Health Services,Head of Adults,Third Party Payments,470101,Purchase of Care,04/08/2020,3767027-2627020,"2,354.80",BARCHESTER HEALTHCARE HOMES LTD.
Adult and Health Services,Head of Adults,Third Party Payments,474101,Purchase of Care,04/08/2020,3767027-2627021,"2,457.28",BARCHESTER HEALTHCARE HOMES LTD.
Adult and Health Services,Head of Adults,Third Party Payments,474101,Purchase of Care,04/08/2020,3767027-2627023,"2,457.28",BARCHESTER HEALTHCARE HOMES LTD.
Adult and Health Services,Head of Adults,Third Party Payments,474101,Purchase of Care,04/08/2020,3767027-2627025,"1,228.64",BARCHESTER HEALTHCARE HOMES LTD.
Adult and Health Services,Head of Adults,Third Party Payments,474101,Purchase of Care,04/08/2020,3767027-2627027,"2,457.28",BARCHESTER HEALTHCARE HOMES LTD.
Adult and Health Services,Head of Adults,Third Party Payments,474101,Purchase of Care,04/08/2020,3767027-2627030,"2,457.28",BARCHESTER HEALTHCARE HOMES LTD.
Adult and Health Services,Head of Adults,Third Party Payments,474101,Purchase of Care,04/08/2020,3767027-2627032,"2,457.28",BARCHESTER HEALTHCARE HOMES LTD.
Adult and Health Services,Head of Adults,Third Party Payments,474101,Purchase of Care,04/08/2020,3767027-2627034,"2,457.28",BARCHESTER HEALTHCARE HOMES LTD.
Adult and Health Services,Head of Adults,Third Party Payments,474101,Purchase of Care,04/08/2020,3767027-2627037,"2,457.28",BARCHESTER HEALTHCARE HOMES LTD.
Adult and Health Services,Head of Adults,Third Party Payments,474101,Purchase of Care,04/08/2020,3767027-2627040,"1,228.64",BARCHESTER HEALTHCARE HOMES LTD.
Adult and Health Services,Head of Adults,Third Party Payments,474101,Purchase of Care,04/08/2020,3767027-2627045,"2,457.28",BARCHESTER HEALTHCARE HOMES LTD.
Adult and Health Services,Head of Adults,Third Party Payments,474101,Purchase of Care,04/08/2020,3767027-2627048,"2,457.28",BARCHESTER HEALTHCARE HOMES LTD.
Adult and Health Services,Head of Adults,Third Party Payments,474101,Purchase of Care,04/08/2020,3767027-2630038,"1,627.07",BARCHESTER HEALTHCARE HOMES LTD.
Adult and Health Services,Head of Adults,Third Party Payments,474101,Purchase of Care,04/08/2020,3767019-2627902,"2,990.00",BARCHESTER HEALTHCARE HOMES LTD.
Adult and Health Services,Head of Adults,Third Party Payments,474101,Purchase of Care,04/08/2020,3767019-2629636,"2,950.00",BARCHESTER HEALTHCARE HOMES LTD.
Adult and Health Services,Head of Adults,Third Party Payments,470101,Purchase of Care,04/08/2020,3767021-2627961,"2,064.00",BARCHESTER HEALTHCARE HOMES LTD.
Adult and Health Services,Head of Adults,Third Party Payments,471101,Purchase of Care,04/08/2020,3767021-2627962,"2,144.00",BARCHESTER HEALTHCARE HOMES LTD.
Adult and Health Services,Head of Adults,Third Party Payments,474101,Purchase of Care,04/08/2020,3767023-2627987,"2,700.00",BARCHESTER HEALTHCARE HOMES LTD.
Adult and Health Services,Head of Adults,Third Party Payments,470101,Purchase of Care,04/08/2020,3767023-2627991,"2,800.00",BARCHESTER HEALTHCARE HOMES LTD.
Adult and Health Services,Head of Adults,Third Party Payments,474101,Purchase of Care,04/08/2020,3767023-2627994,"2,700.00",BARCHESTER HEALTHCARE HOMES LTD.
Adult and Health Services,Head of Adults,Third Party Payments,471101,Purchase of Care,04/08/2020,3767024-2629322,"1,335.36",BARCHESTER HEALTHCARE HOMES LTD.
Adult and Health Services,Head of Adults,Third Party Payments,470101,Purchase of Care,04/08/2020,3767020-2628388,"2,380.56",BARCHESTER HEALTHCARE HOMES LTD.
Adult and Health Services,Head of Adults,Third Party Payments,474101,Purchase of Care,04/08/2020,3767027-2627000,965.36,BARCHESTER HEALTHCARE HOMES LTD.
Adult and Health Services,Head of Adults,Third Party Payments,470101,Purchase of Care,04/08/2020,3767022-2627859,"1,004.57",BARCHESTER HEALTHCARE HOMES LTD.
Adult and Health Services,Head of Adults,Third Party Payments,474101,Purchase of Care,04/08/2020,3767025-2629326,"2,684.00",BARCHESTER HEALTHCARE HOMES LTD.
Adult and Health Services,Head of Adults,Third Party Payments,474101,Purchase of Care,04/08/2020,3767027-2626999,"1,228.64",BARCHESTER HEALTHCARE HOMES LTD.
Adult and Health Services,Head of Adults,Third Party Payments,470101,Purchase of Care,04/08/2020,3767027-2627012,"2,354.80",BARCHESTER HEALTHCARE HOMES LTD.
Adult and Health Services,Head of Adults,Third Party Payments,474101,Purchase of Care,04/08/2020,3767027-2627016,"2,679.88",BARCHESTER HEALTHCARE HOMES LTD.
Adult and Health Services,Head of Adults,Third Party Payments,474101,Purchase of Care,04/08/2020,3767027-2629735,526.56,BARCHESTER HEALTHCARE HOMES LTD.
Adult and Health Services,Head of Adults,Third Party Payments,474101,Purchase of Care,04/08/2020,3767027-2630039,"1,052.81",BARCHESTER HEALTHCARE HOMES LTD.
Adult and Health Services,Head of Adults,Third Party Payments,470101,Purchase of Care,04/08/2020,3767021-2627965,"1,032.00",BARCHESTER HEALTHCARE HOMES LTD.
Adult and Health Services,Head of Adults,Third Party Payments,474101,Purchase of Care,04/08/2020,3766462-ADDITIONALUPLIFT5/66,"6,708.01",BARCHESTER HEALTHCARE HOMES LTD.
Adult and Health Services,Head of Adults,Third Party Payments,479150,Purchase of Care,04/08/2020,3766462-INFECTIONCONTROLFUND2/128,"51,919.35",BARCHESTER HEALTHCARE HOMES LTD.
Children and Young Peoples Services,Head of Childrens Social Care,Third Party Payments,425040,Rendered by Voluntary Organisations,04/08/2020,3767029-PIG_69548,"16,914.30",BARNARDOS BELIEVE IN CHILDREN.
Children and Young Peoples Services,Head of Childrens Social Care,Third Party Payments,425021,Rendered by Voluntary Organisations,04/08/2020,3767030-PIG_68838,"23,740.36",BDT CARE SOLUTIONS LTD.
Children and Young Peoples Services,Head of Childrens Social Care,Third Party Payments,425021,Rendered by Voluntary Organisations,04/08/2020,3767030-PIG_68839,"45,572.48",BDT CARE SOLUTIONS LTD.
Adult and Health Services,Head of Adults,Third Party Payments,470101,Purchase of Care,04/08/2020,3767031-2628646,"2,354.80",BEAMISH RESIDENTIAL CARE HOME LTD.
Adult and Health Services,Head of Adults,Third Party Payments,470101,Purchase of Care,04/08/2020,3767031-2628647,"1,459.36",BEAMISH RESIDENTIAL CARE HOME LTD.
Adult and Health Services,Head of Adults,Third Party Payments,471101,Purchase of Care,04/08/2020,3767031-2628648,"1,852.36",BEAMISH RESIDENTIAL CARE HOME LTD.
Adult and Health Services,Head of Adults,Third Party Payments,470101,Purchase of Care,04/08/2020,3767031-2628652,"2,354.80",BEAMISH RESIDENTIAL CARE HOME LTD.
Adult and Health Services,Head of Adults,Third Party Payments,470101,Purchase of Care,04/08/2020,3767031-2628653,"1,177.40",BEAMISH RESIDENTIAL CARE HOME LTD.
Adult and Health Services,Head of Adults,Third Party Payments,470101,Purchase of Care,04/08/2020,3767031-2628655,"2,354.80",BEAMISH RESIDENTIAL CARE HOME LTD.
Adult and Health Services,Head of Adults,Third Party Payments,470101,Purchase of Care,04/08/2020,3767031-2628656,"2,354.80",BEAMISH RESIDENTIAL CARE HOME LTD.
Adult and Health Services,Head of Adults,Third Party Payments,470101,Purchase of Care,04/08/2020,3767031-2628657,528.00,BEAMISH RESIDENTIAL CARE HOME LTD.
Adult and Health Services,Head of Adults,Third Party Payments,470101,Purchase of Care,04/08/2020,3767031-2628654,588.70,BEAMISH RESIDENTIAL CARE HOME LTD.
Adult and Health Services,Head of Adults,Third Party Payments,470101,Purchase of Care,04/08/2020,3767031-2628649,"2,354.80",BEAMISH RESIDENTIAL CARE HOME LTD.
Adult and Health Services,Head of Adults,Third Party Payments,470101,Purchase of Care,04/08/2020,3767031-2628645,"2,354.80",BEAMISH RESIDENTIAL CARE HOME LTD.
Adult and Health Services,Head of Adults,Third Party Payments,470101,Purchase of Care,04/08/2020,3767031-2628650,"2,447.76",BEAMISH RESIDENTIAL CARE HOME LTD.
Adult and Health Services,Head of Adults,Third Party Payments,470101,Purchase of Care,04/08/2020,3767031-2628651,"2,354.80",BEAMISH RESIDENTIAL CARE HOME LTD.
Adult and Health Services,Head of Adults,Third Party Payments,470101,Purchase of Care,04/08/2020,3766463-ADDITIONALUPLIFT5/58,"2,527.85",BEAMISH RESIDENTIAL CARE HOME LTD.
Adult and Health Services,Head of Adults,Third Party Payments,479150,Purchase of Care,04/08/2020,3766463-INFECTIONCONTROLFUND2/31,"10,383.87",BEAMISH RESIDENTIAL CARE HOME LTD.
Adult and Health Services,Head of Adults,Third Party Payments,470101,Purchase of Care,04/08/2020,3766463-SELFFUNDERCOVID19UPLIFT5-41,"1,177.40",BEAMISH RESIDENTIAL CARE HOME LTD.
Adult and Health Services,Head of Adults,Third Party Payments,478101,Purchase of Care,04/08/2020,3766464-ADDITIONALUPLIFT5/15,721.94,BEECHFIELD CARE & SUPPORT LTD.
Adult and Health Services,Head of Adults,Third Party Payments,479150,Purchase of Care,04/08/2020,3766464-INFECTIONCONTROLFUND/4,"11,700.00",BEECHFIELD CARE & SUPPORT LTD.
Neighbourhoods and Climate Change,Environmental Services,Transport,210057,Repair and Maintenance of Vehicles,04/08/2020,3766465-35185010,889.60,BELL TRUCK SALES LTD T/A BELL TRUCK & VAN.
Neighbourhoods and Climate Change,Environmental Services,Transport,210057,Repair and Maintenance of Vehicles,04/08/2020,3766465-35185686,827.92,BELL TRUCK SALES LTD T/A BELL TRUCK & VAN.
Adult and Health Services,Head of Adults,Third Party Payments,470101,Purchase of Care,04/08/2020,3767032-2629622,"1,042.40",BENTON CARE SERVICES LTD.
Adult and Health Services,Head of Adults,Third Party Payments,470101,Purchase of Care,04/08/2020,3767032-2629624,"3,246.24",BENTON CARE SERVICES LTD.
Adult and Health Services,Head of Adults,Third Party Payments,470101,Purchase of Care,04/08/2020,3767032-2629625,"3,246.24",BENTON CARE SERVICES LTD.
Adult and Health Services,Head of Adults,Third Party Payments,470101,Purchase of Care,04/08/2020,3767032-2629626,"2,084.80",BENTON CARE SERVICES LTD.
Adult and Health Services,Head of Adults,Third Party Payments,470101,Purchase of Care,04/08/2020,3767032-2629627,"3,246.24",BENTON CARE SERVICES LTD.
Adult and Health Services,Head of Adults,Third Party Payments,470101,Purchase of Care,04/08/2020,3767032-2629628,"3,246.24",BENTON CARE SERVICES LTD.
Adult and Health Services,Head of Adults,Third Party Payments,470101,Purchase of Care,04/08/2020,3767032-2629629,"3,246.24",BENTON CARE SERVICES LTD.
Adult and Health Services,Head of Adults,Third Party Payments,470101,Purchase of Care,04/08/2020,3767032-2629630,"3,246.24",BENTON CARE SERVICES LTD.
Adult and Health Services,Head of Adults,Third Party Payments,470101,Purchase of Care,04/08/2020,3766466-ADDITIONALUPLIFT5/LDMH/12,"1,171.80",BENTON CARE SERVICES LTD.
Adult and Health Services,Head of Adults,Third Party Payments,479150,Purchase of Care,04/08/2020,3766466-INFECTIONCONTROLFUND2/24,"6,428.11",BENTON CARE SERVICES LTD.
Adult and Health Services,Head of Adults,Third Party Payments,479150,Purchase of Care,04/08/2020,3766471-INFECTIONCONTROLFUND/86,700.91,BLUEBIRD CARE DURHAM NORTH.
Adult and Health Services,Head of Adults,Third Party Payments,471101,Purchase of Care,04/08/2020,3767035-2627335,"2,579.92",BONDCARE WILLINGTON LTD.
Adult and Health Services,Head of Adults,Third Party Payments,470101,Purchase of Care,04/08/2020,3767037-2625768,"2,790.20",BONDCARE WILLINGTON LTD.
Adult and Health Services,Head of Adults,Third Party Payments,474101,Purchase of Care,04/08/2020,3767038-2627171,"1,294.72",BONDCARE WILLINGTON LTD.
Adult and Health Services,Head of Adults,Third Party Payments,471101,Purchase of Care,04/08/2020,3767035-2627339,"2,579.92",BONDCARE WILLINGTON LTD.
Adult and Health Services,Head of Adults,Third Party Payments,471101,Purchase of Care,04/08/2020,3767035-2627348,"2,579.92",BONDCARE WILLINGTON LTD.
Adult and Health Services,Head of Adults,Third Party Payments,474101,Purchase of Care,04/08/2020,3767037-2625743,"1,587.24",BONDCARE WILLINGTON LTD.
Adult and Health Services,Head of Adults,Third Party Payments,470101,Purchase of Care,04/08/2020,3767037-2625766,"3,135.80",BONDCARE WILLINGTON LTD.
Adult and Health Services,Head of Adults,Third Party Payments,474101,Purchase of Care,04/08/2020,3767037-2625773,"2,589.44",BONDCARE WILLINGTON LTD.
Adult and Health Services,Head of Adults,Third Party Payments,474101,Purchase of Care,04/08/2020,3767037-2629769,"2,404.48",BONDCARE WILLINGTON LTD.
Adult and Health Services,Head of Adults,Third Party Payments,474101,Purchase of Care,04/08/2020,3767038-2627178,"2,589.44",BONDCARE WILLINGTON LTD.
Adult and Health Services,Head of Adults,Third Party Payments,474101,Purchase of Care,04/08/2020,3767038-2627184,"1,294.72",BONDCARE WILLINGTON LTD.
Adult and Health Services,Head of Adults,Third Party Payments,474101,Purchase of Care,04/08/2020,3767038-2627185,"3,153.82",BONDCARE WILLINGTON LTD.
Adult and Health Services,Head of Adults,Third Party Payments,471101,Purchase of Care,04/08/2020,3767038-2627187,"2,579.92",BONDCARE WILLINGTON LTD.
Adult and Health Services,Head of Adults,Third Party Payments,474101,Purchase of Care,04/08/2020,3767038-2627206,"2,589.44",BONDCARE WILLINGTON LTD.
Adult and Health Services,Head of Adults,Third Party Payments,470101,Purchase of Care,04/08/2020,3767036-2628407,"2,244.00",BONDCARE WILLINGTON LTD.
Adult and Health Services,Head of Adults,Third Party Payments,471101,Purchase of Care,04/08/2020,3767038-2627188,"2,579.92",BONDCARE WILLINGTON LTD.
Adult and Health Services,Head of Adults,Third Party Payments,474101,Purchase of Care,04/08/2020,3767038-2627198,"1,572.16",BONDCARE WILLINGTON LTD.
Adult and Health Services,Head of Adults,Third Party Payments,474101,Purchase of Care,04/08/2020,3767038-2627203,"1,294.72",BONDCARE WILLINGTON LTD.
Adult and Health Services,Head of Adults,Third Party Payments,474101,Purchase of Care,04/08/2020,3767038-2627204,"1,213.02",BONDCARE WILLINGTON LTD.
Adult and Health Services,Head of Adults,Third Party Payments,474101,Purchase of Care,04/08/2020,3767038-2627214,"2,589.44",BONDCARE WILLINGTON LTD.
Adult and Health Services,Head of Adults,Third Party Payments,471101,Purchase of Care,04/08/2020,3767035-2627333,"2,579.92",BONDCARE WILLINGTON LTD.
Adult and Health Services,Head of Adults,Third Party Payments,471101,Purchase of Care,04/08/2020,3767035-2627336,"2,579.92",BONDCARE WILLINGTON LTD.
Adult and Health Services,Head of Adults,Third Party Payments,471101,Purchase of Care,04/08/2020,3767035-2627337,"2,579.92",BONDCARE WILLINGTON LTD.
Adult and Health Services,Head of Adults,Third Party Payments,471101,Purchase of Care,04/08/2020,3767035-2627338,"2,579.92",BONDCARE WILLINGTON LTD.
Adult and Health Services,Head of Adults,Third Party Payments,471101,Purchase of Care,04/08/2020,3767035-2627340,"2,579.92",BONDCARE WILLINGTON LTD.
Adult and Health Services,Head of Adults,Third Party Payments,471101,Purchase of Care,04/08/2020,3767035-2627341,"2,579.92",BONDCARE WILLINGTON LTD.
Adult and Health Services,Head of Adults,Third Party Payments,471101,Purchase of Care,04/08/2020,3767035-2627342,"2,579.92",BONDCARE WILLINGTON LTD.
Adult and Health Services,Head of Adults,Third Party Payments,471101,Purchase of Care,04/08/2020,3767035-2627343,"2,579.92",BONDCARE WILLINGTON LTD.
Adult and Health Services,Head of Adults,Third Party Payments,471101,Purchase of Care,04/08/2020,3767035-2627345,"2,579.92",BONDCARE WILLINGTON LTD.
Adult and Health Services,Head of Adults,Third Party Payments,471101,Purchase of Care,04/08/2020,3767035-2627346,"1,289.96",BONDCARE WILLINGTON LTD.
Adult and Health Services,Head of Adults,Third Party Payments,471101,Purchase of Care,04/08/2020,3767035-2627351,"2,579.92",BONDCARE WILLINGTON LTD.
Adult and Health Services,Head of Adults,Third Party Payments,471101,Purchase of Care,04/08/2020,3767035-2627352,"2,579.92",BONDCARE WILLINGTON LTD.
Adult and Health Services,Head of Adults,Third Party Payments,471101,Purchase of Care,04/08/2020,3767035-2627353,"2,579.92",BONDCARE WILLINGTON LTD.
Adult and Health Services,Head of Adults,Third Party Payments,471101,Purchase of Care,04/08/2020,3767035-2627356,"2,579.92",BONDCARE WILLINGTON LTD.
Adult and Health Services,Head of Adults,Third Party Payments,471101,Purchase of Care,04/08/2020,3767035-2627358,"2,579.92",BONDCARE WILLINGTON LTD.
Adult and Health Services,Head of Adults,Third Party Payments,471101,Purchase of Care,04/08/2020,3767035-2629773,"1,474.24",BONDCARE WILLINGTON LTD.
Adult and Health Services,Head of Adults,Third Party Payments,471101,Purchase of Care,04/08/2020,3767035-2629774,"2,579.92",BONDCARE WILLINGTON LTD.
Adult and Health Services,Head of Adults,Third Party Payments,470101,Purchase of Care,04/08/2020,3767037-2625747,"2,488.08",BONDCARE WILLINGTON LTD.
Adult and Health Services,Head of Adults,Third Party Payments,470101,Purchase of Care,04/08/2020,3767037-2625748,"2,488.08",BONDCARE WILLINGTON LTD.
Adult and Health Services,Head of Adults,Third Party Payments,470101,Purchase of Care,04/08/2020,3767037-2625750,"2,488.08",BONDCARE WILLINGTON LTD.
Adult and Health Services,Head of Adults,Third Party Payments,470101,Purchase of Care,04/08/2020,3767037-2625751,"2,488.08",BONDCARE WILLINGTON LTD.
Adult and Health Services,Head of Adults,Third Party Payments,470101,Purchase of Care,04/08/2020,3767037-2625752,"2,488.08",BONDCARE WILLINGTON LTD.
Adult and Health Services,Head of Adults,Third Party Payments,470101,Purchase of Care,04/08/2020,3767037-2625753,"2,488.08",BONDCARE WILLINGTON LTD.
Adult and Health Services,Head of Adults,Third Party Payments,474101,Purchase of Care,04/08/2020,3767037-2625757,"2,589.44",BONDCARE WILLINGTON LTD.
Adult and Health Services,Head of Adults,Third Party Payments,470101,Purchase of Care,04/08/2020,3767037-2625759,"2,488.08",BONDCARE WILLINGTON LTD.
Adult and Health Services,Head of Adults,Third Party Payments,470101,Purchase of Care,04/08/2020,3767037-2625760,"2,488.08",BONDCARE WILLINGTON LTD.
Adult and Health Services,Head of Adults,Third Party Payments,470101,Purchase of Care,04/08/2020,3767037-2625761,"2,488.08",BONDCARE WILLINGTON LTD.
Adult and Health Services,Head of Adults,Third Party Payments,474101,Purchase of Care,04/08/2020,3767037-2625762,"2,589.44",BONDCARE WILLINGTON LTD.
Adult and Health Services,Head of Adults,Third Party Payments,474101,Purchase of Care,04/08/2020,3767037-2625764,"3,174.48",BONDCARE WILLINGTON LTD.
Adult and Health Services,Head of Adults,Third Party Payments,470101,Purchase of Care,04/08/2020,3767037-2625767,"2,488.08",BONDCARE WILLINGTON LTD.
Adult and Health Services,Head of Adults,Third Party Payments,470101,Purchase of Care,04/08/2020,3767037-2625775,710.88,BONDCARE WILLINGTON LTD.
Adult and Health Services,Head of Adults,Third Party Payments,470101,Purchase of Care,04/08/2020,3767037-2629771,"1,231.92",BONDCARE WILLINGTON LTD.
Adult and Health Services,Head of Adults,Third Party Payments,474101,Purchase of Care,04/08/2020,3767038-2627176,"1,294.72",BONDCARE WILLINGTON LTD.
Adult and Health Services,Head of Adults,Third Party Payments,474101,Purchase of Care,04/08/2020,3767038-2627182,"2,589.44",BONDCARE WILLINGTON LTD.
Adult and Health Services,Head of Adults,Third Party Payments,474101,Purchase of Care,04/08/2020,3767038-2627189,"2,589.44",BONDCARE WILLINGTON LTD.
Adult and Health Services,Head of Adults,Third Party Payments,474101,Purchase of Care,04/08/2020,3767038-2627200,"2,589.44",BONDCARE WILLINGTON LTD.
Adult and Health Services,Head of Adults,Third Party Payments,474101,Purchase of Care,04/08/2020,3767038-2627208,"1,294.72",BONDCARE WILLINGTON LTD.
Adult and Health Services,Head of Adults,Third Party Payments,474101,Purchase of Care,04/08/2020,3767038-2627212,"2,589.44",BONDCARE WILLINGTON LTD.
Adult and Health Services,Head of Adults,Third Party Payments,471101,Purchase of Care,04/08/2020,3767035-2627347,"2,579.92",BONDCARE WILLINGTON LTD.
Adult and Health Services,Head of Adults,Third Party Payments,471101,Purchase of Care,04/08/2020,3767035-2629778,"2,487.78",BONDCARE WILLINGTON LTD.
Adult and Health Services,Head of Adults,Third Party Payments,474101,Purchase of Care,04/08/2020,3767037-2625735,"2,600.64",BONDCARE WILLINGTON LTD.
Adult and Health Services,Head of Adults,Third Party Payments,474101,Purchase of Care,04/08/2020,3767037-2625738,"2,589.44",BONDCARE WILLINGTON LTD.
Adult and Health Services,Head of Adults,Third Party Payments,470101,Purchase of Care,04/08/2020,3767037-2625754,"2,790.20",BONDCARE WILLINGTON LTD.
Adult and Health Services,Head of Adults,Third Party Payments,474101,Purchase of Care,04/08/2020,3767037-2629682,"1,109.76",BONDCARE WILLINGTON LTD.
Adult and Health Services,Head of Adults,Third Party Payments,474101,Purchase of Care,04/08/2020,3767038-2627173,"2,589.44",BONDCARE WILLINGTON LTD.
Adult and Health Services,Head of Adults,Third Party Payments,470101,Purchase of Care,04/08/2020,3767037-2625737,"2,399.22",BONDCARE WILLINGTON LTD.
Adult and Health Services,Head of Adults,Third Party Payments,470101,Purchase of Care,04/08/2020,3767035-2627350,"2,566.48",BONDCARE WILLINGTON LTD.
Adult and Health Services,Head of Adults,Third Party Payments,470101,Purchase of Care,04/08/2020,3767035-2627354,"2,566.48",BONDCARE WILLINGTON LTD.
Adult and Health Services,Head of Adults,Third Party Payments,470101,Purchase of Care,04/08/2020,3767035-2627355,"2,566.48",BONDCARE WILLINGTON LTD.
Adult and Health Services,Head of Adults,Third Party Payments,470101,Purchase of Care,04/08/2020,3767035-2627357,"2,566.48",BONDCARE WILLINGTON LTD.
Adult and Health Services,Head of Adults,Third Party Payments,470101,Purchase of Care,04/08/2020,3767035-2627359,"2,566.48",BONDCARE WILLINGTON LTD.
Adult and Health Services,Head of Adults,Third Party Payments,471101,Purchase of Care,04/08/2020,3767035-2627360,"2,579.92",BONDCARE WILLINGTON LTD.
Adult and Health Services,Head of Adults,Third Party Payments,474101,Purchase of Care,04/08/2020,3767037-2625755,"2,589.44",BONDCARE WILLINGTON LTD.
Adult and Health Services,Head of Adults,Third Party Payments,470101,Purchase of Care,04/08/2020,3767037-2625771,"2,566.48",BONDCARE WILLINGTON LTD.
Adult and Health Services,Head of Adults,Third Party Payments,470101,Purchase of Care,04/08/2020,3767037-2625772,"2,566.48",BONDCARE WILLINGTON LTD.
Adult and Health Services,Head of Adults,Third Party Payments,470101,Purchase of Care,04/08/2020,3767037-2625776,"2,566.48",BONDCARE WILLINGTON LTD.
Adult and Health Services,Head of Adults,Third Party Payments,470101,Purchase of Care,04/08/2020,3767037-2625777,"2,566.48",BONDCARE WILLINGTON LTD.
Adult and Health Services,Head of Adults,Third Party Payments,470101,Purchase of Care,04/08/2020,3767037-2625778,"2,566.48",BONDCARE WILLINGTON LTD.
Adult and Health Services,Head of Adults,Third Party Payments,470101,Purchase of Care,04/08/2020,3767038-2627192,"2,566.48",BONDCARE WILLINGTON LTD.
Adult and Health Services,Head of Adults,Third Party Payments,470101,Purchase of Care,04/08/2020,3767038-2627193,"2,566.48",BONDCARE WILLINGTON LTD.
Adult and Health Services,Head of Adults,Third Party Payments,470101,Purchase of Care,04/08/2020,3767038-2627194,"2,566.48",BONDCARE WILLINGTON LTD.
Adult and Health Services,Head of Adults,Third Party Payments,470101,Purchase of Care,04/08/2020,3767038-2627197,"2,566.48",BONDCARE WILLINGTON LTD.
Adult and Health Services,Head of Adults,Third Party Payments,470101,Purchase of Care,04/08/2020,3767038-2627202,"2,566.48",BONDCARE WILLINGTON LTD.
Adult and Health Services,Head of Adults,Third Party Payments,470101,Purchase of Care,04/08/2020,3767038-2627211,"2,566.48",BONDCARE WILLINGTON LTD.
Adult and Health Services,Head of Adults,Third Party Payments,470101,Purchase of Care,04/08/2020,3767038-2627216,"2,566.48",BONDCARE WILLINGTON LTD.
Adult and Health Services,Head of Adults,Third Party Payments,470101,Purchase of Care,04/08/2020,3767038-2627217,970.40,BONDCARE WILLINGTON LTD.
Adult and Health Services,Head of Adults,Third Party Payments,470101,Purchase of Care,04/08/2020,3767038-2627218,"2,566.48",BONDCARE WILLINGTON LTD.
Adult and Health Services,Head of Adults,Third Party Payments,470101,Purchase of Care,04/08/2020,3767038-2627219,"2,566.48",BONDCARE WILLINGTON LTD.
Adult and Health Services,Head of Adults,Third Party Payments,470101,Purchase of Care,04/08/2020,3767038-2627222,"2,566.48",BONDCARE WILLINGTON LTD.
Adult and Health Services,Head of Adults,Third Party Payments,470101,Purchase of Care,04/08/2020,3767038-2627223,"2,566.48",BONDCARE WILLINGTON LTD.
Adult and Health Services,Head of Adults,Third Party Payments,470101,Purchase of Care,04/08/2020,3767038-2627175,"1,924.86",BONDCARE WILLINGTON LTD.
Adult and Health Services,Head of Adults,Third Party Payments,470101,Purchase of Care,04/08/2020,3767038-2627195,693.14,BONDCARE WILLINGTON LTD.
Adult and Health Services,Head of Adults,Third Party Payments,470101,Purchase of Care,04/08/2020,3767038-2627181,"3,962.00",BONDCARE WILLINGTON LTD.
Adult and Health Services,Head of Adults,Third Party Payments,470101,Purchase of Care,04/08/2020,3767038-2627191,"1,283.24",BONDCARE WILLINGTON LTD.
Adult and Health Services,Head of Adults,Third Party Payments,470101,Purchase of Care,04/08/2020,3767038-2627180,"2,566.48",BONDCARE WILLINGTON LTD.
Adult and Health Services,Head of Adults,Third Party Payments,470101,Purchase of Care,04/08/2020,3767037-2625734,"1,567.92",BONDCARE WILLINGTON LTD.
Adult and Health Services,Head of Adults,Third Party Payments,474101,Purchase of Care,04/08/2020,3767037-2625745,"2,589.44",BONDCARE WILLINGTON LTD.
Adult and Health Services,Head of Adults,Third Party Payments,470101,Purchase of Care,04/08/2020,3767037-2625749,"1,244.04",BONDCARE WILLINGTON LTD.
Adult and Health Services,Head of Adults,Third Party Payments,474101,Purchase of Care,04/08/2020,3767038-2627220,"2,589.44",BONDCARE WILLINGTON LTD.
Adult and Health Services,Head of Adults,Third Party Payments,478101,Purchase of Care,04/08/2020,3766474-ADDITIONALUPLIFT5/143,"3,157.79",BONDCARE WILLINGTON LTD.
Adult and Health Services,Head of Adults,Third Party Payments,479150,Purchase of Care,04/08/2020,3766474-INFECTIONCONTROLFUND/77,"10,725.00",BONDCARE WILLINGTON LTD.
Adult and Health Services,Head of Adults,Third Party Payments,478151,Purchase of Care,04/08/2020,3767038-CB20,"2,510.57",BONDCARE WILLINGTON LTD.
Adult and Health Services,Head of Adults,Third Party Payments,470101,Purchase of Care,04/08/2020,3766472-ADDITIONALUPLIFT5/136,"10,004.90",BONDCARE WILLINGTON LTD.
Adult and Health Services,Head of Adults,Third Party Payments,479150,Purchase of Care,04/08/2020,3766472-INFECTIONCONTROLFUND2/86,"24,229.03",BONDCARE WILLINGTON LTD.
Adult and Health Services,Head of Adults,Third Party Payments,470101,Purchase of Care,04/08/2020,3766473-ADDITIONALUPLIFT5/134,"9,056.16",BONDCARE WILLINGTON LTD.
Adult and Health Services,Head of Adults,Third Party Payments,479150,Purchase of Care,04/08/2020,3766473-INFECTIONCONTROLFUND2/85,"24,229.03",BONDCARE WILLINGTON LTD.
Adult and Health Services,Head of Adults,Third Party Payments,471101,Purchase of Care,04/08/2020,3766475-ADDITIONALUPLIFT5/135,"6,759.61",BONDCARE WILLINGTON LTD.
Adult and Health Services,Head of Adults,Third Party Payments,479150,Purchase of Care,04/08/2020,3766475-INFECTIONCONTROLFUND2/58,"19,778.80",BONDCARE WILLINGTON LTD.
Adult and Health Services,Head of Adults,Third Party Payments,470101,Purchase of Care,04/08/2020,3767039-2629638,"4,337.36",BOWDEN DERRA PARK LTD.
Dedicated Schools Grant BG0015,DSG Early Years Block,Transfer Payments,510030,School Children,04/08/2020,3766476-EYFCOVID19/SUMMERTERM20,"1,237.28",BRIGHT STAR NURSERY.
Adult and Health Services,Head of Adults,Third Party Payments,470101,Purchase of Care,04/08/2020,3767040-2626316,"2,488.08",BROOMHOUSE CARE LTD.
Adult and Health Services,Head of Adults,Third Party Payments,470101,Purchase of Care,04/08/2020,3767040-2626317,"2,488.08",BROOMHOUSE CARE LTD.
Adult and Health Services,Head of Adults,Third Party Payments,471101,Purchase of Care,04/08/2020,3767040-2626318,"2,579.92",BROOMHOUSE CARE LTD.
Adult and Health Services,Head of Adults,Third Party Payments,471101,Purchase of Care,04/08/2020,3767040-2626319,"2,579.92",BROOMHOUSE CARE LTD.
Adult and Health Services,Head of Adults,Third Party Payments,471101,Purchase of Care,04/08/2020,3767040-2626320,"2,579.92",BROOMHOUSE CARE LTD.
Adult and Health Services,Head of Adults,Third Party Payments,471101,Purchase of Care,04/08/2020,3767040-2626321,"2,579.92",BROOMHOUSE CARE LTD.
Adult and Health Services,Head of Adults,Third Party Payments,471101,Purchase of Care,04/08/2020,3767040-2626322,"1,289.96",BROOMHOUSE CARE LTD.
Adult and Health Services,Head of Adults,Third Party Payments,471101,Purchase of Care,04/08/2020,3767040-2626323,"2,579.92",BROOMHOUSE CARE LTD.
Adult and Health Services,Head of Adults,Third Party Payments,470101,Purchase of Care,04/08/2020,3767040-2626324,"2,488.08",BROOMHOUSE CARE LTD.
Adult and Health Services,Head of Adults,Third Party Payments,470101,Purchase of Care,04/08/2020,3767040-2626325,"2,488.08",BROOMHOUSE CARE LTD.
Adult and Health Services,Head of Adults,Third Party Payments,471101,Purchase of Care,04/08/2020,3767040-2626326,"2,579.92",BROOMHOUSE CARE LTD.
Adult and Health Services,Head of Adults,Third Party Payments,471101,Purchase of Care,04/08/2020,3767040-2626327,"2,579.92",BROOMHOUSE CARE LTD.
Adult and Health Services,Head of Adults,Third Party Payments,470101,Purchase of Care,04/08/2020,3767040-2626328,"2,488.08",BROOMHOUSE CARE LTD.
Adult and Health Services,Head of Adults,Third Party Payments,471101,Purchase of Care,04/08/2020,3767040-2626329,"1,934.94",BROOMHOUSE CARE LTD.
Adult and Health Services,Head of Adults,Third Party Payments,471101,Purchase of Care,04/08/2020,3767040-2626330,"2,579.92",BROOMHOUSE CARE LTD.
Adult and Health Services,Head of Adults,Third Party Payments,471101,Purchase of Care,04/08/2020,3767040-2626331,"2,579.92",BROOMHOUSE CARE LTD.
Adult and Health Services,Head of Adults,Third Party Payments,470101,Purchase of Care,04/08/2020,3767040-2626332,"2,488.08",BROOMHOUSE CARE LTD.
Adult and Health Services,Head of Adults,Third Party Payments,471101,Purchase of Care,04/08/2020,3767040-2626333,"2,579.92",BROOMHOUSE CARE LTD.
Adult and Health Services,Head of Adults,Third Party Payments,471101,Purchase of Care,04/08/2020,3767040-2626315,"2,211.36",BROOMHOUSE CARE LTD.
Adult and Health Services,Head of Adults,Third Party Payments,471101,Purchase of Care,04/08/2020,3766477-ADDITIONALUPLIFT5/53,"5,572.21",BROOMHOUSE CARE LTD.
Adult and Health Services,Head of Adults,Third Party Payments,479150,Purchase of Care,04/08/2020,3766477-INFECTIONCONTROLFUND2/47,"16,811.98",BROOMHOUSE CARE LTD.
Adult and Health Services,Head of Adults,Third Party Payments,470101,Purchase of Care,04/08/2020,3766477-SELFFUNDERCOVID19UPLIFT5-36,"1,244.04",BROOMHOUSE CARE LTD.
Adult and Health Services,Head of Adults,Third Party Payments,479150,Purchase of Care,04/08/2020,3766481-INFECTIONCONTROLFUND/60,"1,548.36",BULLION COMMUNITY RESOURCE CENTRE.
Adult and Health Services,Head of Adults,Third Party Payments,474101,Purchase of Care,04/08/2020,3767041-2629640,"1,056.44",BUPA CARE HOMES LTD.
Adult and Health Services,Head of Adults,Third Party Payments,470101,Purchase of Care,04/08/2020,3767042-2628003,"2,292.00",BURLINGTON CARE LTD.
Adult and Health Services,Head of Adults,Third Party Payments,470101,Purchase of Care,04/08/2020,3767042-2628004,"2,292.00",BURLINGTON CARE LTD.
Adult and Health Services,Head of Adults,Third Party Payments,471101,Purchase of Care,04/08/2020,3767047-2628213,"19,621.18",CARE UK COMMUNITY PARTNERSHIPS LTD.
Adult and Health Services,Head of Adults,Third Party Payments,470101,Purchase of Care,04/08/2020,3767047-2628215,"2,488.08",CARE UK COMMUNITY PARTNERSHIPS LTD.
Adult and Health Services,Head of Adults,Third Party Payments,471101,Purchase of Care,04/08/2020,3767047-2628216,"2,579.92",CARE UK COMMUNITY PARTNERSHIPS LTD.
Adult and Health Services,Head of Adults,Third Party Payments,470101,Purchase of Care,04/08/2020,3767047-2628218,"2,488.08",CARE UK COMMUNITY PARTNERSHIPS LTD.
Adult and Health Services,Head of Adults,Third Party Payments,470101,Purchase of Care,04/08/2020,3767047-2628219,"2,488.08",CARE UK COMMUNITY PARTNERSHIPS LTD.
Adult and Health Services,Head of Adults,Third Party Payments,470101,Purchase of Care,04/08/2020,3767047-2628220,"2,488.08",CARE UK COMMUNITY PARTNERSHIPS LTD.
Adult and Health Services,Head of Adults,Third Party Payments,470101,Purchase of Care,04/08/2020,3767047-2628223,"2,488.08",CARE UK COMMUNITY PARTNERSHIPS LTD.
Adult and Health Services,Head of Adults,Third Party Payments,474101,Purchase of Care,04/08/2020,3767047-2628225,"1,294.72",CARE UK COMMUNITY PARTNERSHIPS LTD.
Adult and Health Services,Head of Adults,Third Party Payments,471101,Purchase of Care,04/08/2020,3767047-2628227,"2,579.92",CARE UK COMMUNITY PARTNERSHIPS LTD.
Adult and Health Services,Head of Adults,Third Party Payments,471101,Purchase of Care,04/08/2020,3767047-2628228,"3,156.16",CARE UK COMMUNITY PARTNERSHIPS LTD.
Adult and Health Services,Head of Adults,Third Party Payments,470101,Purchase of Care,04/08/2020,3767047-2628229,"2,488.08",CARE UK COMMUNITY PARTNERSHIPS LTD.
Adult and Health Services,Head of Adults,Third Party Payments,474101,Purchase of Care,04/08/2020,3767047-2628230,"1,294.72",CARE UK COMMUNITY PARTNERSHIPS LTD.
Adult and Health Services,Head of Adults,Third Party Payments,470101,Purchase of Care,04/08/2020,3767047-2628232,"2,488.08",CARE UK COMMUNITY PARTNERSHIPS LTD.
Adult and Health Services,Head of Adults,Third Party Payments,470101,Purchase of Care,04/08/2020,3767047-2628233,"2,488.08",CARE UK COMMUNITY PARTNERSHIPS LTD.
Adult and Health Services,Head of Adults,Third Party Payments,474101,Purchase of Care,04/08/2020,3767047-2628234,"2,589.44",CARE UK COMMUNITY PARTNERSHIPS LTD.
Adult and Health Services,Head of Adults,Third Party Payments,471101,Purchase of Care,04/08/2020,3767047-2628236,"2,579.92",CARE UK COMMUNITY PARTNERSHIPS LTD.
Adult and Health Services,Head of Adults,Third Party Payments,471101,Purchase of Care,04/08/2020,3767047-2628237,"2,579.92",CARE UK COMMUNITY PARTNERSHIPS LTD.
Adult and Health Services,Head of Adults,Third Party Payments,471101,Purchase of Care,04/08/2020,3767047-2628238,"2,579.92",CARE UK COMMUNITY PARTNERSHIPS LTD.
Adult and Health Services,Head of Adults,Third Party Payments,470101,Purchase of Care,04/08/2020,3767047-2628239,"2,488.08",CARE UK COMMUNITY PARTNERSHIPS LTD.
Adult and Health Services,Head of Adults,Third Party Payments,474101,Purchase of Care,04/08/2020,3767047-2628240,"1,294.72",CARE UK COMMUNITY PARTNERSHIPS LTD.
Adult and Health Services,Head of Adults,Third Party Payments,470101,Purchase of Care,04/08/2020,3767047-2628242,"2,488.08",CARE UK COMMUNITY PARTNERSHIPS LTD.
Adult and Health Services,Head of Adults,Third Party Payments,471101,Purchase of Care,04/08/2020,3767045-2629323,"2,628.00",CARE UK COMMUNITY PARTNERSHIPS LTD.
Adult and Health Services,Head of Adults,Third Party Payments,471101,Purchase of Care,04/08/2020,3767046-2601717,"2,516.20",CARE UK COMMUNITY PARTNERSHIPS LTD.
Adult and Health Services,Head of Adults,Third Party Payments,470101,Purchase of Care,04/08/2020,3767046-2604396,"2,433.28",CARE UK COMMUNITY PARTNERSHIPS LTD.
Adult and Health Services,Head of Adults,Third Party Payments,471101,Purchase of Care,04/08/2020,3767046-2606424,"2,516.20",CARE UK COMMUNITY PARTNERSHIPS LTD.
Adult and Health Services,Head of Adults,Third Party Payments,470101,Purchase of Care,04/08/2020,3767046-2609071,"2,433.28",CARE UK COMMUNITY PARTNERSHIPS LTD.
Adult and Health Services,Head of Adults,Third Party Payments,471101,Purchase of Care,04/08/2020,3767046-2611196,"2,667.16",CARE UK COMMUNITY PARTNERSHIPS LTD.
Adult and Health Services,Head of Adults,Third Party Payments,471101,Purchase of Care,04/08/2020,3767046-2615983,"2,667.16",CARE UK COMMUNITY PARTNERSHIPS LTD.
Adult and Health Services,Head of Adults,Third Party Payments,471101,Purchase of Care,04/08/2020,3767046-2623698,"2,667.16",CARE UK COMMUNITY PARTNERSHIPS LTD.
Adult and Health Services,Head of Adults,Third Party Payments,471101,Purchase of Care,04/08/2020,3767046-2628124,"2,667.16",CARE UK COMMUNITY PARTNERSHIPS LTD.
Adult and Health Services,Head of Adults,Third Party Payments,470101,Purchase of Care,04/08/2020,3767047-2628224,"2,488.08",CARE UK COMMUNITY PARTNERSHIPS LTD.
Adult and Health Services,Head of Adults,Third Party Payments,471101,Purchase of Care,04/08/2020,3767044-2628243,"2,388.00",CARE UK COMMUNITY PARTNERSHIPS LTD.
Adult and Health Services,Head of Adults,Third Party Payments,474101,Purchase of Care,04/08/2020,3767049-2625732,"2,280.00",CARE UK COMMUNITY PARTNERSHIPS LTD.
Adult and Health Services,Head of Adults,Third Party Payments,471101,Purchase of Care,04/08/2020,3767043-2628105,"4,330.58",CARE UK COMMUNITY PARTNERSHIPS LTD.
Adult and Health Services,Head of Adults,Third Party Payments,470101,Purchase of Care,04/08/2020,3767043-2628106,"2,488.08",CARE UK COMMUNITY PARTNERSHIPS LTD.
Adult and Health Services,Head of Adults,Third Party Payments,471101,Purchase of Care,04/08/2020,3767043-2628107,"2,579.92",CARE UK COMMUNITY PARTNERSHIPS LTD.
Adult and Health Services,Head of Adults,Third Party Payments,470101,Purchase of Care,04/08/2020,3767043-2628108,"2,488.08",CARE UK COMMUNITY PARTNERSHIPS LTD.
Adult and Health Services,Head of Adults,Third Party Payments,471101,Purchase of Care,04/08/2020,3767043-2628109,"2,579.92",CARE UK COMMUNITY PARTNERSHIPS LTD.
Adult and Health Services,Head of Adults,Third Party Payments,471101,Purchase of Care,04/08/2020,3767043-2628110,"2,579.92",CARE UK COMMUNITY PARTNERSHIPS LTD.
Adult and Health Services,Head of Adults,Third Party Payments,471101,Purchase of Care,04/08/2020,3767043-2628111,"2,579.92",CARE UK COMMUNITY PARTNERSHIPS LTD.
Adult and Health Services,Head of Adults,Third Party Payments,470101,Purchase of Care,04/08/2020,3767043-2628113,"2,488.08",CARE UK COMMUNITY PARTNERSHIPS LTD.
Adult and Health Services,Head of Adults,Third Party Payments,471101,Purchase of Care,04/08/2020,3767043-2628114,"2,579.92",CARE UK COMMUNITY PARTNERSHIPS LTD.
Adult and Health Services,Head of Adults,Third Party Payments,471101,Purchase of Care,04/08/2020,3767043-2628115,"2,579.92",CARE UK COMMUNITY PARTNERSHIPS LTD.
Adult and Health Services,Head of Adults,Third Party Payments,470101,Purchase of Care,04/08/2020,3767043-2628116,"1,184.80",CARE UK COMMUNITY PARTNERSHIPS LTD.
Adult and Health Services,Head of Adults,Third Party Payments,471101,Purchase of Care,04/08/2020,3767043-2628117,"2,579.92",CARE UK COMMUNITY PARTNERSHIPS LTD.
Adult and Health Services,Head of Adults,Third Party Payments,471101,Purchase of Care,04/08/2020,3767043-2628118,"2,579.92",CARE UK COMMUNITY PARTNERSHIPS LTD.
Adult and Health Services,Head of Adults,Third Party Payments,470101,Purchase of Care,04/08/2020,3767043-2628119,"2,488.08",CARE UK COMMUNITY PARTNERSHIPS LTD.
Adult and Health Services,Head of Adults,Third Party Payments,470101,Purchase of Care,04/08/2020,3767043-2628120,"2,488.08",CARE UK COMMUNITY PARTNERSHIPS LTD.
Adult and Health Services,Head of Adults,Third Party Payments,470101,Purchase of Care,04/08/2020,3767043-2628121,"2,488.08",CARE UK COMMUNITY PARTNERSHIPS LTD.
Adult and Health Services,Head of Adults,Third Party Payments,471101,Purchase of Care,04/08/2020,3767051-2628123,"2,496.00",CARE UK COMMUNITY PARTNERSHIPS LTD.
Adult and Health Services,Head of Adults,Third Party Payments,470101,Purchase of Care,04/08/2020,3767048-2628875,"2,316.16",CARE UK COMMUNITY PARTNERSHIPS LTD.
Adult and Health Services,Head of Adults,Third Party Payments,470101,Purchase of Care,04/08/2020,3767050-2626950,"2,221.50",CARE UK COMMUNITY PARTNERSHIPS LTD.
Adult and Health Services,Head of Adults,Third Party Payments,470101,Purchase of Care,04/08/2020,3767050-2626954,"2,488.08",CARE UK COMMUNITY PARTNERSHIPS LTD.
Adult and Health Services,Head of Adults,Third Party Payments,470101,Purchase of Care,04/08/2020,3767050-2626955,"2,488.08",CARE UK COMMUNITY PARTNERSHIPS LTD.
Adult and Health Services,Head of Adults,Third Party Payments,470101,Purchase of Care,04/08/2020,3767050-2626956,"2,488.08",CARE UK COMMUNITY PARTNERSHIPS LTD.
Adult and Health Services,Head of Adults,Third Party Payments,470101,Purchase of Care,04/08/2020,3767050-2626959,"2,488.08",CARE UK COMMUNITY PARTNERSHIPS LTD.
Adult and Health Services,Head of Adults,Third Party Payments,470101,Purchase of Care,04/08/2020,3767050-2626960,"2,488.08",CARE UK COMMUNITY PARTNERSHIPS LTD.
Adult and Health Services,Head of Adults,Third Party Payments,470101,Purchase of Care,04/08/2020,3767050-2626961,"2,488.08",CARE UK COMMUNITY PARTNERSHIPS LTD.
Adult and Health Services,Head of Adults,Third Party Payments,470101,Purchase of Care,04/08/2020,3767050-2626962,"2,488.08",CARE UK COMMUNITY PARTNERSHIPS LTD.
Adult and Health Services,Head of Adults,Third Party Payments,470101,Purchase of Care,04/08/2020,3767050-2626963,"2,488.08",CARE UK COMMUNITY PARTNERSHIPS LTD.
Adult and Health Services,Head of Adults,Third Party Payments,470101,Purchase of Care,04/08/2020,3767050-2626964,"2,488.08",CARE UK COMMUNITY PARTNERSHIPS LTD.
Adult and Health Services,Head of Adults,Third Party Payments,470101,Purchase of Care,04/08/2020,3767048-2628874,"2,316.16",CARE UK COMMUNITY PARTNERSHIPS LTD.
Adult and Health Services,Head of Adults,Third Party Payments,470101,Purchase of Care,04/08/2020,3767050-2626949,"3,021.24",CARE UK COMMUNITY PARTNERSHIPS LTD.
Adult and Health Services,Head of Adults,Third Party Payments,470101,Purchase of Care,04/08/2020,3767050-2626951,"2,488.08",CARE UK COMMUNITY PARTNERSHIPS LTD.
Adult and Health Services,Head of Adults,Third Party Payments,470101,Purchase of Care,04/08/2020,3767050-2626952,"1,866.06",CARE UK COMMUNITY PARTNERSHIPS LTD.
Adult and Health Services,Head of Adults,Third Party Payments,470101,Purchase of Care,04/08/2020,3767050-2626953,"2,488.08",CARE UK COMMUNITY PARTNERSHIPS LTD.
Adult and Health Services,Head of Adults,Third Party Payments,470101,Purchase of Care,04/08/2020,3767043-2628112,"2,488.08",CARE UK COMMUNITY PARTNERSHIPS LTD.
Adult and Health Services,Head of Adults,Third Party Payments,470101,Purchase of Care,04/08/2020,3767047-2628214,"3,464.00",CARE UK COMMUNITY PARTNERSHIPS LTD.
Adult and Health Services,Head of Adults,Third Party Payments,474101,Purchase of Care,04/08/2020,3767047-2628221,"2,589.44",CARE UK COMMUNITY PARTNERSHIPS LTD.
Adult and Health Services,Head of Adults,Third Party Payments,470101,Purchase of Care,04/08/2020,3767050-2626958,"2,488.08",CARE UK COMMUNITY PARTNERSHIPS LTD.
Adult and Health Services,Head of Adults,Third Party Payments,470101,Purchase of Care,04/08/2020,3766485-ADDITIONALUPLIFT5/130,"10,016.71",CARE UK COMMUNITY PARTNERSHIPS LTD.
Adult and Health Services,Head of Adults,Third Party Payments,479150,Purchase of Care,04/08/2020,3766485-INFECTIONCONTROLFUND2/120,"35,107.37",CARE UK COMMUNITY PARTNERSHIPS LTD.
Adult and Health Services,Head of Adults,Third Party Payments,470101,Purchase of Care,04/08/2020,3766485-SELFFUNDERCOVID19UPLIFT5-83,"2,747.02",CARE UK COMMUNITY PARTNERSHIPS LTD.
Adult and Health Services,Head of Adults,Third Party Payments,471101,Purchase of Care,04/08/2020,3766486-ADDITIONALUPLIFT5/131,"6,056.37",CARE UK COMMUNITY PARTNERSHIPS LTD.
Adult and Health Services,Head of Adults,Third Party Payments,479150,Purchase of Care,04/08/2020,3766486-INFECTIONCONTROLFUND2/64,"20,767.74",CARE UK COMMUNITY PARTNERSHIPS LTD.
Adult and Health Services,Head of Adults,Third Party Payments,470101,Purchase of Care,04/08/2020,3766486-SELFFUNDERCOVID19UPLIFT5-84,"1,492.85",CARE UK COMMUNITY PARTNERSHIPS LTD.
Adult and Health Services,Head of Adults,Third Party Payments,470101,Purchase of Care,04/08/2020,3766487-ADDITIONALUPLIFT5/129,"4,260.80",CARE UK COMMUNITY PARTNERSHIPS LTD.
Adult and Health Services,Head of Adults,Third Party Payments,479150,Purchase of Care,04/08/2020,3766487-INFECTIONCONTROLFUND2/51,"18,295.39",CARE UK COMMUNITY PARTNERSHIPS LTD.
Adult and Health Services,Head of Adults,Third Party Payments,470101,Purchase of Care,04/08/2020,3766487-SELFFUNDERCOVID19UPLIFT5-82,"3,483.31",CARE UK COMMUNITY PARTNERSHIPS LTD.
Adult and Health Services,Head of Adults,Third Party Payments,474101,Purchase of Care,04/08/2020,3767052-2629068,"3,189.96",CARELINE LIFESTYLES (UK) LTD.
Adult and Health Services,Head of Adults,Third Party Payments,470101,Purchase of Care,04/08/2020,3767053-2628389,"3,461.12",CARELINE LIFESTYLES (UK) LTD.
Adult and Health Services,Head of Adults,Third Party Payments,474101,Purchase of Care,04/08/2020,3767055-2629318,"3,459.20",CARELINE LIFESTYLES (UK) LTD.
Adult and Health Services,Head of Adults,Third Party Payments,470101,Purchase of Care,04/08/2020,3767055-2629319,"1,214.72",CARELINE LIFESTYLES (UK) LTD.
Adult and Health Services,Head of Adults,Third Party Payments,470101,Purchase of Care,04/08/2020,3767054-2628122,"2,796.52",CARELINE LIFESTYLES (UK) LTD.
Adult and Health Services,Head of Adults,Third Party Payments,474101,Purchase of Care,04/08/2020,3767055-2629320,"2,743.52",CARELINE LIFESTYLES (UK) LTD.
Adult and Health Services,Head of Adults,Third Party Payments,470101,Purchase of Care,04/08/2020,3767055-2629321,850.32,CARELINE LIFESTYLES (UK) LTD.
Adult and Health Services,Head of Adults,Third Party Payments,474101,Purchase of Care,04/08/2020,3767056-2629611,"3,339.04",CARELINE LIFESTYLES.
Adult and Health Services,Head of Adults,Third Party Payments,474101,Purchase of Care,04/08/2020,3767056-2629613,"3,505.56",CARELINE LIFESTYLES.
Adult and Health Services,Head of Adults,Third Party Payments,474101,Purchase of Care,04/08/2020,3767056-2629614,"4,676.68",CARELINE LIFESTYLES.
Adult and Health Services,Head of Adults,Third Party Payments,474101,Purchase of Care,04/08/2020,3767056-2629616,"3,505.56",CARELINE LIFESTYLES.
Adult and Health Services,Head of Adults,Third Party Payments,474101,Purchase of Care,04/08/2020,3767056-2630025,"1,931.99",CARELINE LIFESTYLES.
Adult and Health Services,Head of Adults,Third Party Payments,474101,Purchase of Care,04/08/2020,3767056-2629724,841.00,CARELINE LIFESTYLES.
Adult and Health Services,Head of Adults,Third Party Payments,474101,Purchase of Care,04/08/2020,3767057-2626572,"2,196.32",CAREWELL (HEALTH CARE) LTD.
Adult and Health Services,Head of Adults,Third Party Payments,470101,Purchase of Care,04/08/2020,3767057-2626575,"2,386.16",CAREWELL (HEALTH CARE) LTD.
Adult and Health Services,Head of Adults,Third Party Payments,470101,Purchase of Care,04/08/2020,3767057-2626577,"2,094.96",CAREWELL (HEALTH CARE) LTD.
Adult and Health Services,Head of Adults,Third Party Payments,470101,Purchase of Care,04/08/2020,3767057-2626578,"2,094.96",CAREWELL (HEALTH CARE) LTD.
Adult and Health Services,Head of Adults,Third Party Payments,470101,Purchase of Care,04/08/2020,3767057-2626584,"2,094.96",CAREWELL (HEALTH CARE) LTD.
Adult and Health Services,Head of Adults,Third Party Payments,474101,Purchase of Care,04/08/2020,3767057-2629994,"4,627.96",CAREWELL (HEALTH CARE) LTD.
Adult and Health Services,Head of Adults,Third Party Payments,474101,Purchase of Care,04/08/2020,3767057-2626560,"2,196.32",CAREWELL (HEALTH CARE) LTD.
Adult and Health Services,Head of Adults,Third Party Payments,470101,Purchase of Care,04/08/2020,3767057-2626564,"2,094.96",CAREWELL (HEALTH CARE) LTD.
Adult and Health Services,Head of Adults,Third Party Payments,470101,Purchase of Care,04/08/2020,3767057-2626566,"2,094.96",CAREWELL (HEALTH CARE) LTD.
Adult and Health Services,Head of Adults,Third Party Payments,470101,Purchase of Care,04/08/2020,3767057-2626567,"2,094.96",CAREWELL (HEALTH CARE) LTD.
Adult and Health Services,Head of Adults,Third Party Payments,470101,Purchase of Care,04/08/2020,3767057-2626574,"2,094.96",CAREWELL (HEALTH CARE) LTD.
Adult and Health Services,Head of Adults,Third Party Payments,470101,Purchase of Care,04/08/2020,3767057-2626576,"2,094.96",CAREWELL (HEALTH CARE) LTD.
Adult and Health Services,Head of Adults,Third Party Payments,470101,Purchase of Care,04/08/2020,3767057-2626583,"2,094.96",CAREWELL (HEALTH CARE) LTD.
Adult and Health Services,Head of Adults,Third Party Payments,474101,Purchase of Care,04/08/2020,3767057-2626585,"2,196.32",CAREWELL (HEALTH CARE) LTD.
Adult and Health Services,Head of Adults,Third Party Payments,470101,Purchase of Care,04/08/2020,3767057-2626587,"2,094.96",CAREWELL (HEALTH CARE) LTD.
Adult and Health Services,Head of Adults,Third Party Payments,470101,Purchase of Care,04/08/2020,3767057-2629898,"1,795.68",CAREWELL (HEALTH CARE) LTD.
Adult and Health Services,Head of Adults,Third Party Payments,470101,Purchase of Care,04/08/2020,3767057-2630047,"2,094.96",CAREWELL (HEALTH CARE) LTD.
Adult and Health Services,Head of Adults,Third Party Payments,470101,Purchase of Care,04/08/2020,3767057-2630048,"2,543.88",CAREWELL (HEALTH CARE) LTD.
Adult and Health Services,Head of Adults,Third Party Payments,470101,Purchase of Care,04/08/2020,3767057-2626554,"2,094.96",CAREWELL (HEALTH CARE) LTD.
Adult and Health Services,Head of Adults,Third Party Payments,474101,Purchase of Care,04/08/2020,3767057-2626555,"2,589.44",CAREWELL (HEALTH CARE) LTD.
Adult and Health Services,Head of Adults,Third Party Payments,470101,Purchase of Care,04/08/2020,3767057-2626562,"2,094.96",CAREWELL (HEALTH CARE) LTD.
Adult and Health Services,Head of Adults,Third Party Payments,470101,Purchase of Care,04/08/2020,3767057-2626563,"2,094.96",CAREWELL (HEALTH CARE) LTD.
Adult and Health Services,Head of Adults,Third Party Payments,474101,Purchase of Care,04/08/2020,3767057-2626579,"2,196.32",CAREWELL (HEALTH CARE) LTD.
Adult and Health Services,Head of Adults,Third Party Payments,474101,Purchase of Care,04/08/2020,3767057-2629677,"1,961.00",CAREWELL (HEALTH CARE) LTD.
Adult and Health Services,Head of Adults,Third Party Payments,470101,Purchase of Care,04/08/2020,3767057-2629956,"1,795.68",CAREWELL (HEALTH CARE) LTD.
Adult and Health Services,Head of Adults,Third Party Payments,474101,Purchase of Care,04/08/2020,3767057-2626569,853.66,CAREWELL (HEALTH CARE) LTD.
Adult and Health Services,Head of Adults,Third Party Payments,474101,Purchase of Care,04/08/2020,3767057-2626568,552.37,CAREWELL (HEALTH CARE) LTD.
Adult and Health Services,Head of Adults,Third Party Payments,470101,Purchase of Care,04/08/2020,3766488-ADDITIONALUPLIFT5/19,"5,298.02",CAREWELL (HEALTH CARE) LTD.
Adult and Health Services,Head of Adults,Third Party Payments,479150,Purchase of Care,04/08/2020,3766488-INFECTIONCONTROLFUND2/95,"26,701.38",CAREWELL (HEALTH CARE) LTD.
Adult and Health Services,Head of Adults,Third Party Payments,470101,Purchase of Care,04/08/2020,3766488-SELFFUNDERCOVID19UPLIFT5-14,"1,686.10",CAREWELL (HEALTH CARE) LTD.
Adult and Health Services,Head of Adults,Third Party Payments,471101,Purchase of Care,04/08/2020,3767058-2629478,"2,431.86",CARING HOMES HEALTHCARE GROUP LTD.
Adult and Health Services,Head of Adults,Third Party Payments,472101,Purchase of Care,04/08/2020,3766494-ADDITIONALUPLIFT5/3,"3,052.09",CASTLE CARE TEESDALE LTD.
Adult and Health Services,Head of Adults,Third Party Payments,479150,Purchase of Care,04/08/2020,3766494-INFECTIONCONTROLFUND/1,"6,235.20",CASTLE CARE TEESDALE LTD.
Adult and Health Services,Head of Adults,Third Party Payments,470101,Purchase of Care,04/08/2020,3767059-2626934,"2,488.08",CASTLEBANK CARE HOME LTD.
Adult and Health Services,Head of Adults,Third Party Payments,470101,Purchase of Care,04/08/2020,3767059-2626942,"2,488.08",CASTLEBANK CARE HOME LTD.
Adult and Health Services,Head of Adults,Third Party Payments,471101,Purchase of Care,04/08/2020,3767059-2626929,"5,389.98",CASTLEBANK CARE HOME LTD.
Adult and Health Services,Head of Adults,Third Party Payments,470101,Purchase of Care,04/08/2020,3767059-2626930,"2,488.08",CASTLEBANK CARE HOME LTD.
Adult and Health Services,Head of Adults,Third Party Payments,471101,Purchase of Care,04/08/2020,3767059-2626931,"2,579.92",CASTLEBANK CARE HOME LTD.
Adult and Health Services,Head of Adults,Third Party Payments,470101,Purchase of Care,04/08/2020,3767059-2626932,"2,488.08",CASTLEBANK CARE HOME LTD.
Adult and Health Services,Head of Adults,Third Party Payments,471101,Purchase of Care,04/08/2020,3767059-2626933,"2,579.92",CASTLEBANK CARE HOME LTD.
Adult and Health Services,Head of Adults,Third Party Payments,471101,Purchase of Care,04/08/2020,3767059-2626935,"1,289.96",CASTLEBANK CARE HOME LTD.
Adult and Health Services,Head of Adults,Third Party Payments,471101,Purchase of Care,04/08/2020,3767059-2626936,"1,289.96",CASTLEBANK CARE HOME LTD.
Adult and Health Services,Head of Adults,Third Party Payments,471101,Purchase of Care,04/08/2020,3767059-2626937,"2,579.92",CASTLEBANK CARE HOME LTD.
Adult and Health Services,Head of Adults,Third Party Payments,470101,Purchase of Care,04/08/2020,3767059-2626938,"2,488.08",CASTLEBANK CARE HOME LTD.
Adult and Health Services,Head of Adults,Third Party Payments,470101,Purchase of Care,04/08/2020,3767059-2626940,"2,488.08",CASTLEBANK CARE HOME LTD.
Adult and Health Services,Head of Adults,Third Party Payments,471101,Purchase of Care,04/08/2020,3767059-2626941,"2,579.92",CASTLEBANK CARE HOME LTD.
Adult and Health Services,Head of Adults,Third Party Payments,470101,Purchase of Care,04/08/2020,3767059-2626943,"2,488.08",CASTLEBANK CARE HOME LTD.
Adult and Health Services,Head of Adults,Third Party Payments,471101,Purchase of Care,04/08/2020,3767059-2626944,"2,579.92",CASTLEBANK CARE HOME LTD.
Adult and Health Services,Head of Adults,Third Party Payments,471101,Purchase of Care,04/08/2020,3767059-2629749,"1,934.94",CASTLEBANK CARE HOME LTD.
Adult and Health Services,Head of Adults,Third Party Payments,470101,Purchase of Care,04/08/2020,3767059-2629750,"1,244.04",CASTLEBANK CARE HOME LTD.
Adult and Health Services,Head of Adults,Third Party Payments,470101,Purchase of Care,04/08/2020,3766496-ADDITIONALUPLIFT5/8,"4,045.65",CASTLEBANK CARE HOME LTD.
Adult and Health Services,Head of Adults,Third Party Payments,479150,Purchase of Care,04/08/2020,3766496-INFECTIONCONTROLFUND2/38,"13,845.16",CASTLEBANK CARE HOME LTD.
Adult and Health Services,Head of Adults,Third Party Payments,470101,Purchase of Care,04/08/2020,3766496-SELFFUNDERCOVID19UPLIFT5-7,"1,492.85",CASTLEBANK CARE HOME LTD.
Adult and Health Services,Head of Adults,Third Party Payments,472101,Purchase of Care,04/08/2020,3766500-ADDITIONALUPLIFT5/147,550.82,CEL HOMECARE LTD.
Adult and Health Services,Head of Adults,Third Party Payments,479150,Purchase of Care,04/08/2020,3766500-INFECTIONCONTROLFUND/83,766.71,CEL HOMECARE LTD.
Adult and Health Services,Head of Adults,Third Party Payments,479150,Purchase of Care,04/08/2020,3766502-INFECTIONCONTROLFUND/33,"1,628.53",CHARITY REGISTERED AS ONE TO ONE.
Children and Young Peoples Services,Head of Childrens Social Care,Third Party Payments,425040,Rendered by Voluntary Organisations,04/08/2020,3767062-PIG_68827,"31,737.76",CHILDRENS FAMILY TRUST.
Adult and Health Services,Head of Adults,Third Party Payments,478101,Purchase of Care,04/08/2020,3766504-ADDITIONALUPLIFT5/45,708.34,CHOICES COMMUNITY CARE SERVICES LTD.
Adult and Health Services,Head of Adults,Third Party Payments,479150,Purchase of Care,04/08/2020,3766504-INFECTIONCONTROLFUND/24,"3,900.00",CHOICES COMMUNITY CARE SERVICES LTD.
Adult and Health Services,Head of Adults,Third Party Payments,472101,Purchase of Care,04/08/2020,3766508-ADDITIONALUPLIFT5/152,587.22,CLASSIC RESOURCES UK LTD T/A CLASSIC RESOURCES HOMECARE.
Adult and Health Services,Head of Adults,Third Party Payments,479150,Purchase of Care,04/08/2020,3766508-INFECTIONCONTROLFUND/81,853.17,CLASSIC RESOURCES UK LTD T/A CLASSIC RESOURCES HOMECARE.
Dedicated Schools Grant BG0015,DSG Early Years Block,Transfer Payments,510030,School Children,04/08/2020,3766509-EYFCOVID19/SUMMERTERM20,761.40,CLEVER CLOGS DAY NURSERY (DURHAM) LTD.
Adult and Health Services,Head of Adults,Third Party Payments,470101,Purchase of Care,04/08/2020,3767064-2628926,"9,286.56",COLEG ELIDYR CAMPHILL COMMUNITIES.
Adult and Health Services,Head of Adults,Third Party Payments,472101,Purchase of Care,04/08/2020,3766512-ADDITIONALUPLIFT5/61,"15,532.97",COMFORT CALL LTD.
Adult and Health Services,Head of Adults,Third Party Payments,472101,Purchase of Care,04/08/2020,3766512-HOMECARESELFFUNDERS5-11,"1,537.00",COMFORT CALL LTD.
Adult and Health Services,Head of Adults,Third Party Payments,479150,Purchase of Care,04/08/2020,3766512-INFECTIONCONTROLFUND/34,"40,881.60",COMFORT CALL LTD.
Adult and Health Services,Head of Adults,Third Party Payments,478101,Purchase of Care,04/08/2020,3766514-ADDITIONALUPLIFT5/59,"9,233.38",COMMUNITY INTEGRATED CARE LTD.
Adult and Health Services,Head of Adults,Third Party Payments,479150,Purchase of Care,04/08/2020,3766514-INFECTIONCONTROLFUND/32,"51,675.00",COMMUNITY INTEGRATED CARE LTD.
Children and Young Peoples Services,Head of Childrens Social Care,Third Party Payments,425040,Rendered by Voluntary Organisations,04/08/2020,3767065-PIG_69534,"9,325.04",COMPASS FOSTERING NORTH LTD.
Adult and Health Services,Head of Adults,Third Party Payments,470101,Purchase of Care,04/08/2020,3767066-2628964,"8,167.16",CONSENSUS SUPPORT SERVICES LTD.
Resources BK0010,Legal & Democratic Services,Supplies and Services,338025,Services,04/08/2020,3766511-S44997-01093,"1,460.00",CO-OPERATIVE FUNERAL CARE.
Neighbourhoods and Climate Change,Partnerships & Community Engagement Div.,Supplies and Services,384086,Miscellaneous Expenses,04/08/2020,3766519-VOUCHER19NB-BASH033,"1,500.00",COUNDON & LEEHOLME COMMUNITY ASSOCIATION.
Adult and Health Services,Head of Adults,Third Party Payments,470101,Purchase of Care,04/08/2020,3767070-2624511,"4,227.02",COUNTRYWIDE CARE HOMES (2) LTD.
Adult and Health Services,Head of Adults,Third Party Payments,470101,Purchase of Care,04/08/2020,3767070-2628925,"2,465.76",COUNTRYWIDE CARE HOMES (2) LTD.
Adult and Health Services,Head of Adults,Third Party Payments,474101,Purchase of Care,04/08/2020,3767068-2627763,"2,456.32",COUNTRYWIDE CARE HOMES (2) LTD.
Adult and Health Services,Head of Adults,Third Party Payments,470101,Purchase of Care,04/08/2020,3767069-2627969,"2,488.08",COUNTRYWIDE CARE HOMES (2) LTD.
Adult and Health Services,Head of Adults,Third Party Payments,471101,Purchase of Care,04/08/2020,3767069-2627982,"2,679.92",COUNTRYWIDE CARE HOMES (2) LTD.
Adult and Health Services,Head of Adults,Third Party Payments,471101,Purchase of Care,04/08/2020,3767072-2628927,"1,289.96",COUNTRYWIDE CARE HOMES (2) LTD.
Adult and Health Services,Head of Adults,Third Party Payments,470101,Purchase of Care,04/08/2020,3767072-2628928,"1,244.04",COUNTRYWIDE CARE HOMES (2) LTD.
Adult and Health Services,Head of Adults,Third Party Payments,470101,Purchase of Care,04/08/2020,3767072-2628929,"2,488.08",COUNTRYWIDE CARE HOMES (2) LTD.
Adult and Health Services,Head of Adults,Third Party Payments,470101,Purchase of Care,04/08/2020,3767072-2628930,"2,608.08",COUNTRYWIDE CARE HOMES (2) LTD.
Adult and Health Services,Head of Adults,Third Party Payments,470101,Purchase of Care,04/08/2020,3767072-2628931,"2,488.08",COUNTRYWIDE CARE HOMES (2) LTD.
Adult and Health Services,Head of Adults,Third Party Payments,471101,Purchase of Care,04/08/2020,3767072-2628933,"2,699.92",COUNTRYWIDE CARE HOMES (2) LTD.
Adult and Health Services,Head of Adults,Third Party Payments,470101,Purchase of Care,04/08/2020,3767072-2628934,"2,488.08",COUNTRYWIDE CARE HOMES (2) LTD.
Adult and Health Services,Head of Adults,Third Party Payments,470101,Purchase of Care,04/08/2020,3767072-2628936,"2,608.08",COUNTRYWIDE CARE HOMES (2) LTD.
Adult and Health Services,Head of Adults,Third Party Payments,470101,Purchase of Care,04/08/2020,3767072-2628938,"2,608.08",COUNTRYWIDE CARE HOMES (2) LTD.
Adult and Health Services,Head of Adults,Third Party Payments,470101,Purchase of Care,04/08/2020,3767072-2628939,"2,608.08",COUNTRYWIDE CARE HOMES (2) LTD.
Adult and Health Services,Head of Adults,Third Party Payments,470101,Purchase of Care,04/08/2020,3767072-2628941,"2,608.08",COUNTRYWIDE CARE HOMES (2) LTD.
Adult and Health Services,Head of Adults,Third Party Payments,470101,Purchase of Care,04/08/2020,3767072-2628942,"2,608.08",COUNTRYWIDE CARE HOMES (2) LTD.
Adult and Health Services,Head of Adults,Third Party Payments,471101,Purchase of Care,04/08/2020,3767072-2628943,"2,579.92",COUNTRYWIDE CARE HOMES (2) LTD.
Adult and Health Services,Head of Adults,Third Party Payments,470101,Purchase of Care,04/08/2020,3767072-2628944,"1,244.04",COUNTRYWIDE CARE HOMES (2) LTD.
Adult and Health Services,Head of Adults,Third Party Payments,470101,Purchase of Care,04/08/2020,3767072-2628945,"2,488.08",COUNTRYWIDE CARE HOMES (2) LTD.
Adult and Health Services,Head of Adults,Third Party Payments,470101,Purchase of Care,04/08/2020,3767072-2628946,"2,488.08",COUNTRYWIDE CARE HOMES (2) LTD.
Adult and Health Services,Head of Adults,Third Party Payments,471101,Purchase of Care,04/08/2020,3767072-2628947,"1,289.96",COUNTRYWIDE CARE HOMES (2) LTD.
Adult and Health Services,Head of Adults,Third Party Payments,471101,Purchase of Care,04/08/2020,3767072-2628948,"2,699.92",COUNTRYWIDE CARE HOMES (2) LTD.
Adult and Health Services,Head of Adults,Third Party Payments,471101,Purchase of Care,04/08/2020,3767072-2628949,"2,579.92",COUNTRYWIDE CARE HOMES (2) LTD.
Adult and Health Services,Head of Adults,Third Party Payments,470101,Purchase of Care,04/08/2020,3767072-2628950,"2,608.08",COUNTRYWIDE CARE HOMES (2) LTD.
Adult and Health Services,Head of Adults,Third Party Payments,470101,Purchase of Care,04/08/2020,3767072-2628951,"2,608.08",COUNTRYWIDE CARE HOMES (2) LTD.
Adult and Health Services,Head of Adults,Third Party Payments,471101,Purchase of Care,04/08/2020,3767072-2628952,"2,699.92",COUNTRYWIDE CARE HOMES (2) LTD.
Adult and Health Services,Head of Adults,Third Party Payments,470101,Purchase of Care,04/08/2020,3767072-2628953,"2,788.08",COUNTRYWIDE CARE HOMES (2) LTD.
Adult and Health Services,Head of Adults,Third Party Payments,471101,Purchase of Care,04/08/2020,3767072-2628954,"2,699.92",COUNTRYWIDE CARE HOMES (2) LTD.
Adult and Health Services,Head of Adults,Third Party Payments,471101,Purchase of Care,04/08/2020,3767072-2628955,"1,289.96",COUNTRYWIDE CARE HOMES (2) LTD.
Adult and Health Services,Head of Adults,Third Party Payments,470101,Purchase of Care,04/08/2020,3767072-2628956,"1,244.04",COUNTRYWIDE CARE HOMES (2) LTD.
Adult and Health Services,Head of Adults,Third Party Payments,470101,Purchase of Care,04/08/2020,3767072-2628957,"2,488.08",COUNTRYWIDE CARE HOMES (2) LTD.
Adult and Health Services,Head of Adults,Third Party Payments,471101,Purchase of Care,04/08/2020,3767072-2628958,"2,579.92",COUNTRYWIDE CARE HOMES (2) LTD.
Adult and Health Services,Head of Adults,Third Party Payments,471101,Purchase of Care,04/08/2020,3767072-2628959,"2,579.92",COUNTRYWIDE CARE HOMES (2) LTD.
Adult and Health Services,Head of Adults,Third Party Payments,470101,Purchase of Care,04/08/2020,3767072-2628960,"2,488.08",COUNTRYWIDE CARE HOMES (2) LTD.
Adult and Health Services,Head of Adults,Third Party Payments,470101,Purchase of Care,04/08/2020,3767072-2628961,"2,488.08",COUNTRYWIDE CARE HOMES (2) LTD.
Adult and Health Services,Head of Adults,Third Party Payments,470101,Purchase of Care,04/08/2020,3767072-2628962,"2,548.08",COUNTRYWIDE CARE HOMES (2) LTD.
Adult and Health Services,Head of Adults,Third Party Payments,470101,Purchase of Care,04/08/2020,3767072-2628963,"2,548.08",COUNTRYWIDE CARE HOMES (2) LTD.
Adult and Health Services,Head of Adults,Third Party Payments,470101,Purchase of Care,04/08/2020,3767069-2627967,"1,599.48",COUNTRYWIDE CARE HOMES (2) LTD.
Adult and Health Services,Head of Adults,Third Party Payments,470101,Purchase of Care,04/08/2020,3767069-2627971,977.46,COUNTRYWIDE CARE HOMES (2) LTD.
Adult and Health Services,Head of Adults,Third Party Payments,470101,Purchase of Care,04/08/2020,3767069-2627973,"2,488.08",COUNTRYWIDE CARE HOMES (2) LTD.
Adult and Health Services,Head of Adults,Third Party Payments,470101,Purchase of Care,04/08/2020,3767069-2627974,"2,488.08",COUNTRYWIDE CARE HOMES (2) LTD.
Adult and Health Services,Head of Adults,Third Party Payments,470101,Purchase of Care,04/08/2020,3767069-2627975,"2,488.08",COUNTRYWIDE CARE HOMES (2) LTD.
Adult and Health Services,Head of Adults,Third Party Payments,471101,Purchase of Care,04/08/2020,3767069-2627977,"2,579.92",COUNTRYWIDE CARE HOMES (2) LTD.
Adult and Health Services,Head of Adults,Third Party Payments,471101,Purchase of Care,04/08/2020,3767069-2627978,"2,579.92",COUNTRYWIDE CARE HOMES (2) LTD.
Adult and Health Services,Head of Adults,Third Party Payments,471101,Purchase of Care,04/08/2020,3767069-2627979,"2,579.92",COUNTRYWIDE CARE HOMES (2) LTD.
Adult and Health Services,Head of Adults,Third Party Payments,471101,Purchase of Care,04/08/2020,3767069-2627980,"2,579.92",COUNTRYWIDE CARE HOMES (2) LTD.
Adult and Health Services,Head of Adults,Third Party Payments,470101,Purchase of Care,04/08/2020,3767069-2627981,"2,488.08",COUNTRYWIDE CARE HOMES (2) LTD.
Adult and Health Services,Head of Adults,Third Party Payments,470101,Purchase of Care,04/08/2020,3767071-2626787,"2,354.80",COUNTRYWIDE CARE HOMES (2) LTD.
Adult and Health Services,Head of Adults,Third Party Payments,471101,Purchase of Care,04/08/2020,3767071-2626788,"2,457.28",COUNTRYWIDE CARE HOMES (2) LTD.
Adult and Health Services,Head of Adults,Third Party Payments,474101,Purchase of Care,04/08/2020,3767071-2626791,"2,457.28",COUNTRYWIDE CARE HOMES (2) LTD.
Adult and Health Services,Head of Adults,Third Party Payments,474101,Purchase of Care,04/08/2020,3767071-2626798,"2,457.28",COUNTRYWIDE CARE HOMES (2) LTD.
Adult and Health Services,Head of Adults,Third Party Payments,470101,Purchase of Care,04/08/2020,3767071-2626800,"2,354.80",COUNTRYWIDE CARE HOMES (2) LTD.
Adult and Health Services,Head of Adults,Third Party Payments,471101,Purchase of Care,04/08/2020,3767071-2626801,"2,447.76",COUNTRYWIDE CARE HOMES (2) LTD.
Adult and Health Services,Head of Adults,Third Party Payments,474101,Purchase of Care,04/08/2020,3767071-2626802,"1,228.64",COUNTRYWIDE CARE HOMES (2) LTD.
Adult and Health Services,Head of Adults,Third Party Payments,470101,Purchase of Care,04/08/2020,3767071-2626804,"2,354.80",COUNTRYWIDE CARE HOMES (2) LTD.
Adult and Health Services,Head of Adults,Third Party Payments,474101,Purchase of Care,04/08/2020,3767071-2626805,"2,457.28",COUNTRYWIDE CARE HOMES (2) LTD.
Adult and Health Services,Head of Adults,Third Party Payments,470101,Purchase of Care,04/08/2020,3767071-2626810,"1,177.40",COUNTRYWIDE CARE HOMES (2) LTD.
Adult and Health Services,Head of Adults,Third Party Payments,470101,Purchase of Care,04/08/2020,3767071-2629944,"1,429.70",COUNTRYWIDE CARE HOMES (2) LTD.
Adult and Health Services,Head of Adults,Third Party Payments,470101,Purchase of Care,04/08/2020,3767073-2626372,"2,354.80",COUNTRYWIDE CARE HOMES (2) LTD.
Adult and Health Services,Head of Adults,Third Party Payments,474101,Purchase of Care,04/08/2020,3767073-2626380,"2,457.28",COUNTRYWIDE CARE HOMES (2) LTD.
Adult and Health Services,Head of Adults,Third Party Payments,471101,Purchase of Care,04/08/2020,3767068-2627762,"1,333.60",COUNTRYWIDE CARE HOMES (2) LTD.
Adult and Health Services,Head of Adults,Third Party Payments,470101,Purchase of Care,04/08/2020,3767072-2628932,"2,608.08",COUNTRYWIDE CARE HOMES (2) LTD.
Adult and Health Services,Head of Adults,Third Party Payments,470101,Purchase of Care,04/08/2020,3767072-2628937,"2,488.08",COUNTRYWIDE CARE HOMES (2) LTD.
Adult and Health Services,Head of Adults,Third Party Payments,470101,Purchase of Care,04/08/2020,3767072-2628940,"2,488.08",COUNTRYWIDE CARE HOMES (2) LTD.
Adult and Health Services,Head of Adults,Third Party Payments,474101,Purchase of Care,04/08/2020,3767071-2626793,"2,457.28",COUNTRYWIDE CARE HOMES (2) LTD.
Adult and Health Services,Head of Adults,Third Party Payments,474101,Purchase of Care,04/08/2020,3767071-2626807,"1,228.64",COUNTRYWIDE CARE HOMES (2) LTD.
Adult and Health Services,Head of Adults,Third Party Payments,474101,Purchase of Care,04/08/2020,3767073-2626383,"2,457.28",COUNTRYWIDE CARE HOMES (2) LTD.
Adult and Health Services,Head of Adults,Third Party Payments,470101,Purchase of Care,04/08/2020,3767069-2627970,"2,488.08",COUNTRYWIDE CARE HOMES (2) LTD.
Adult and Health Services,Head of Adults,Third Party Payments,470101,Purchase of Care,04/08/2020,3767069-2630059,"1,866.06",COUNTRYWIDE CARE HOMES (2) LTD.
Adult and Health Services,Head of Adults,Third Party Payments,470101,Purchase of Care,04/08/2020,3767072-2628935,"2,488.08",COUNTRYWIDE CARE HOMES (2) LTD.
Adult and Health Services,Head of Adults,Third Party Payments,470101,Purchase of Care,04/08/2020,3767073-2626371,"1,217.84",COUNTRYWIDE CARE HOMES (2) LTD.
Adult and Health Services,Head of Adults,Third Party Payments,470101,Purchase of Care,04/08/2020,3767073-2626376,"2,435.72",COUNTRYWIDE CARE HOMES (2) LTD.
Adult and Health Services,Head of Adults,Third Party Payments,474101,Purchase of Care,04/08/2020,3767073-2626377,"2,468.20",COUNTRYWIDE CARE HOMES (2) LTD.
Adult and Health Services,Head of Adults,Third Party Payments,470101,Purchase of Care,04/08/2020,3767073-2626382,"2,435.72",COUNTRYWIDE CARE HOMES (2) LTD.
Adult and Health Services,Head of Adults,Third Party Payments,470101,Purchase of Care,04/08/2020,3767073-2626385,"2,435.72",COUNTRYWIDE CARE HOMES (2) LTD.
Adult and Health Services,Head of Adults,Third Party Payments,470101,Purchase of Care,04/08/2020,3767073-2626386,"1,217.84",COUNTRYWIDE CARE HOMES (2) LTD.
Adult and Health Services,Head of Adults,Third Party Payments,470101,Purchase of Care,04/08/2020,3767073-2629874,"1,217.86",COUNTRYWIDE CARE HOMES (2) LTD.
Adult and Health Services,Head of Adults,Third Party Payments,470101,Purchase of Care,04/08/2020,3767069-2627966,622.02,COUNTRYWIDE CARE HOMES (2) LTD.
Adult and Health Services,Head of Adults,Third Party Payments,470101,Purchase of Care,04/08/2020,3767069-2627976,"2,488.08",COUNTRYWIDE CARE HOMES (2) LTD.
Adult and Health Services,Head of Adults,Third Party Payments,470101,Purchase of Care,04/08/2020,3767071-2626782,"2,354.80",COUNTRYWIDE CARE HOMES (2) LTD.
Adult and Health Services,Head of Adults,Third Party Payments,474101,Purchase of Care,04/08/2020,3767071-2626783,"1,052.81",COUNTRYWIDE CARE HOMES (2) LTD.
Adult and Health Services,Head of Adults,Third Party Payments,474101,Purchase of Care,04/08/2020,3767071-2626785,877.60,COUNTRYWIDE CARE HOMES (2) LTD.
Adult and Health Services,Head of Adults,Third Party Payments,470101,Purchase of Care,04/08/2020,3767071-2626790,"2,354.80",COUNTRYWIDE CARE HOMES (2) LTD.
Adult and Health Services,Head of Adults,Third Party Payments,470101,Purchase of Care,04/08/2020,3767071-2626797,"2,354.80",COUNTRYWIDE CARE HOMES (2) LTD.
Adult and Health Services,Head of Adults,Third Party Payments,470101,Purchase of Care,04/08/2020,3767073-2626375,"1,177.40",COUNTRYWIDE CARE HOMES (2) LTD.
Adult and Health Services,Head of Adults,Third Party Payments,474101,Purchase of Care,04/08/2020,3766521-ADDITIONALUPLIFT5/114,"5,074.10",COUNTRYWIDE CARE HOMES (2) LTD.
Adult and Health Services,Head of Adults,Third Party Payments,479150,Purchase of Care,04/08/2020,3766521-INFECTIONCONTROLFUND2/123,"38,074.19",COUNTRYWIDE CARE HOMES (2) LTD.
Adult and Health Services,Head of Adults,Third Party Payments,470101,Purchase of Care,04/08/2020,3766522-ADDITIONALUPLIFT5/113,"2,884.00",COUNTRYWIDE CARE HOMES (2) LTD.
Adult and Health Services,Head of Adults,Third Party Payments,470101,Purchase of Care,04/08/2020,3766522-SELFFUNDERCOVID19UPLIFT5-67,"1,197.90",COUNTRYWIDE CARE HOMES (2) LTD.
Adult and Health Services,Head of Adults,Third Party Payments,471101,Purchase of Care,04/08/2020,3766523-ADDITIONALUPLIFT5/128,"5,865.41",COUNTRYWIDE CARE HOMES (2) LTD.
Adult and Health Services,Head of Adults,Third Party Payments,479150,Purchase of Care,04/08/2020,3766523-INFECTIONCONTROLFUND2/48,"17,800.92",COUNTRYWIDE CARE HOMES (2) LTD.
Adult and Health Services,Head of Adults,Third Party Payments,470101,Purchase of Care,04/08/2020,3766523-SELFFUNDERCOVID19UPLIFT5-81,995.23,COUNTRYWIDE CARE HOMES (2) LTD.
Adult and Health Services,Head of Adults,Third Party Payments,470101,Purchase of Care,04/08/2020,3766524-ADDITIONALUPLIFT5/77,"9,909.38",COUNTRYWIDE CARE HOMES (2) LTD.
Adult and Health Services,Head of Adults,Third Party Payments,479150,Purchase of Care,04/08/2020,3766524-INFECTIONCONTROLFUND2/96,"26,701.38",COUNTRYWIDE CARE HOMES (2) LTD.
Adult and Health Services,Head of Adults,Third Party Payments,470101,Purchase of Care,04/08/2020,3766524-SELFFUNDERCOVID19UPLIFT5-49,"1,492.85",COUNTRYWIDE CARE HOMES (2) LTD.
Adult and Health Services,Head of Adults,Third Party Payments,471101,Purchase of Care,04/08/2020,3767074-2627300,"2,579.92",CRAIGARRAN LTD.
Adult and Health Services,Head of Adults,Third Party Payments,474101,Purchase of Care,04/08/2020,3767074-2627301,"1,294.72",CRAIGARRAN LTD.
Adult and Health Services,Head of Adults,Third Party Payments,470101,Purchase of Care,04/08/2020,3767074-2627306,"2,488.08",CRAIGARRAN LTD.
Adult and Health Services,Head of Adults,Third Party Payments,471101,Purchase of Care,04/08/2020,3767074-2627307,"2,579.92",CRAIGARRAN LTD.
Adult and Health Services,Head of Adults,Third Party Payments,474101,Purchase of Care,04/08/2020,3767074-2627309,"1,294.72",CRAIGARRAN LTD.
Adult and Health Services,Head of Adults,Third Party Payments,470101,Purchase of Care,04/08/2020,3767074-2627313,"2,488.08",CRAIGARRAN LTD.
Adult and Health Services,Head of Adults,Third Party Payments,470101,Purchase of Care,04/08/2020,3767074-2627314,"2,488.08",CRAIGARRAN LTD.
Adult and Health Services,Head of Adults,Third Party Payments,474101,Purchase of Care,04/08/2020,3767074-2627315,"2,589.44",CRAIGARRAN LTD.
Adult and Health Services,Head of Adults,Third Party Payments,471101,Purchase of Care,04/08/2020,3767074-2627317,"2,579.92",CRAIGARRAN LTD.
Adult and Health Services,Head of Adults,Third Party Payments,471101,Purchase of Care,04/08/2020,3767074-2627318,"2,579.92",CRAIGARRAN LTD.
Adult and Health Services,Head of Adults,Third Party Payments,474101,Purchase of Care,04/08/2020,3767074-2627319,"1,294.72",CRAIGARRAN LTD.
Adult and Health Services,Head of Adults,Third Party Payments,474101,Purchase of Care,04/08/2020,3767074-2627322,"2,589.44",CRAIGARRAN LTD.
Adult and Health Services,Head of Adults,Third Party Payments,474101,Purchase of Care,04/08/2020,3767074-2627324,"2,589.44",CRAIGARRAN LTD.
Adult and Health Services,Head of Adults,Third Party Payments,471101,Purchase of Care,04/08/2020,3767074-2627326,"2,579.92",CRAIGARRAN LTD.
Adult and Health Services,Head of Adults,Third Party Payments,470101,Purchase of Care,04/08/2020,3767074-2627327,"2,488.08",CRAIGARRAN LTD.
Adult and Health Services,Head of Adults,Third Party Payments,470101,Purchase of Care,04/08/2020,3767074-2627328,"2,488.08",CRAIGARRAN LTD.
Adult and Health Services,Head of Adults,Third Party Payments,471101,Purchase of Care,04/08/2020,3767074-2627329,"2,579.92",CRAIGARRAN LTD.
Adult and Health Services,Head of Adults,Third Party Payments,474101,Purchase of Care,04/08/2020,3767074-2627330,"2,589.44",CRAIGARRAN LTD.
Adult and Health Services,Head of Adults,Third Party Payments,474101,Purchase of Care,04/08/2020,3767074-2627303,"2,589.44",CRAIGARRAN LTD.
Adult and Health Services,Head of Adults,Third Party Payments,471101,Purchase of Care,04/08/2020,3767074-2627321,"1,289.96",CRAIGARRAN LTD.
Adult and Health Services,Head of Adults,Third Party Payments,470101,Purchase of Care,04/08/2020,3767074-2627299,"2,488.08",CRAIGARRAN LTD.
Adult and Health Services,Head of Adults,Third Party Payments,471101,Purchase of Care,04/08/2020,3767074-2627298,"2,579.92",CRAIGARRAN LTD.
Adult and Health Services,Head of Adults,Third Party Payments,471101,Purchase of Care,04/08/2020,3767074-2629712,644.98,CRAIGARRAN LTD.
Adult and Health Services,Head of Adults,Third Party Payments,474101,Purchase of Care,04/08/2020,3767074-2627296,"2,589.44",CRAIGARRAN LTD.
Adult and Health Services,Head of Adults,Third Party Payments,474101,Purchase of Care,04/08/2020,3766527-ADDITIONALUPLIFT5/57,"6,331.86",CRAIGARRAN LTD.
Adult and Health Services,Head of Adults,Third Party Payments,479150,Purchase of Care,04/08/2020,3766527-INFECTIONCONTROLFUND2/72,"21,756.68",CRAIGARRAN LTD.
Adult and Health Services,Head of Adults,Third Party Payments,478101,Purchase of Care,04/08/2020,3766528-ADDITIONALUPLIFT5/62,"3,182.16",CREATIVE SUPPORT LTD.
Adult and Health Services,Head of Adults,Third Party Payments,479150,Purchase of Care,04/08/2020,3766528-INFECTIONCONTROLFUND/36,"15,600.00",CREATIVE SUPPORT LTD.
Adult and Health Services,Head of Adults,Third Party Payments,472101,Purchase of Care,04/08/2020,3766529-ADDITIONALUPLIFT5/33,"6,254.59",CRESCENT HOMECARE LTD.
Adult and Health Services,Head of Adults,Third Party Payments,472101,Purchase of Care,04/08/2020,3766529-HOMECARESELFFUNDERS5-5,625.46,CRESCENT HOMECARE LTD.
Adult and Health Services,Head of Adults,Third Party Payments,479150,Purchase of Care,04/08/2020,3766529-INFECTIONCONTROLFUND/12,"18,408.30",CRESCENT HOMECARE LTD.
Adult and Health Services,Head of Adults,Third Party Payments,474101,Purchase of Care,04/08/2020,3767075-2628659,"2,589.44",CROFT HOUSE (CARE) LTD.
Adult and Health Services,Head of Adults,Third Party Payments,474101,Purchase of Care,04/08/2020,3767075-2628661,"1,294.72",CROFT HOUSE (CARE) LTD.
Adult and Health Services,Head of Adults,Third Party Payments,471101,Purchase of Care,04/08/2020,3767075-2628663,"2,579.92",CROFT HOUSE (CARE) LTD.
Adult and Health Services,Head of Adults,Third Party Payments,471101,Purchase of Care,04/08/2020,3767075-2628665,"2,579.92",CROFT HOUSE (CARE) LTD.
Adult and Health Services,Head of Adults,Third Party Payments,470101,Purchase of Care,04/08/2020,3767075-2628667,"2,488.08",CROFT HOUSE (CARE) LTD.
Adult and Health Services,Head of Adults,Third Party Payments,470101,Purchase of Care,04/08/2020,3767075-2628670,"2,488.08",CROFT HOUSE (CARE) LTD.
Adult and Health Services,Head of Adults,Third Party Payments,471101,Purchase of Care,04/08/2020,3767075-2628672,"2,579.92",CROFT HOUSE (CARE) LTD.
Adult and Health Services,Head of Adults,Third Party Payments,470101,Purchase of Care,04/08/2020,3767075-2628673,"2,488.08",CROFT HOUSE (CARE) LTD.
Adult and Health Services,Head of Adults,Third Party Payments,474101,Purchase of Care,04/08/2020,3767075-2628674,"2,589.44",CROFT HOUSE (CARE) LTD.
Adult and Health Services,Head of Adults,Third Party Payments,471101,Purchase of Care,04/08/2020,3767075-2628676,"2,579.92",CROFT HOUSE (CARE) LTD.
Adult and Health Services,Head of Adults,Third Party Payments,471101,Purchase of Care,04/08/2020,3767075-2628677,"2,579.92",CROFT HOUSE (CARE) LTD.
Adult and Health Services,Head of Adults,Third Party Payments,474101,Purchase of Care,04/08/2020,3767075-2628678,"2,589.44",CROFT HOUSE (CARE) LTD.
Adult and Health Services,Head of Adults,Third Party Payments,470101,Purchase of Care,04/08/2020,3767075-2628680,"2,488.08",CROFT HOUSE (CARE) LTD.
Adult and Health Services,Head of Adults,Third Party Payments,474101,Purchase of Care,04/08/2020,3767075-2628681,"1,294.72",CROFT HOUSE (CARE) LTD.
Adult and Health Services,Head of Adults,Third Party Payments,474101,Purchase of Care,04/08/2020,3767075-2628683,"1,294.72",CROFT HOUSE (CARE) LTD.
Adult and Health Services,Head of Adults,Third Party Payments,470101,Purchase of Care,04/08/2020,3767075-2628669,"2,488.08",CROFT HOUSE (CARE) LTD.
Adult and Health Services,Head of Adults,Third Party Payments,471101,Purchase of Care,04/08/2020,3766530-ADDITIONALUPLIFT5/35,"4,781.04",CROFT HOUSE (CARE) LTD.
Adult and Health Services,Head of Adults,Third Party Payments,479150,Purchase of Care,04/08/2020,3766530-INFECTIONCONTROLFUND2/109,"29,668.20",CROFT HOUSE (CARE) LTD.
Adult and Health Services,Head of Adults,Third Party Payments,470101,Purchase of Care,04/08/2020,3766530-SELFFUNDERCOVID19UPLIFT5-25,"2,508.35",CROFT HOUSE (CARE) LTD.
Adult and Health Services,Head of Adults,Third Party Payments,474101,Purchase of Care,04/08/2020,3767076-2628325,"2,807.96",CROWN CARE IV LTD T/A BALMORAL COURT.
Adult and Health Services,Head of Adults,Third Party Payments,474101,Purchase of Care,04/08/2020,3767076-2628326,"2,016.00",CROWN CARE IV LTD T/A BALMORAL COURT.
Adult and Health Services,Head of Adults,Third Party Payments,470101,Purchase of Care,04/08/2020,3767077-2629648,"2,465.76",CROWN CARE IV LTD.
Adult and Health Services,Head of Adults,Third Party Payments,470101,Purchase of Care,04/08/2020,3767078-2628180,"2,488.08",CROWN CARE VI LTD.
Adult and Health Services,Head of Adults,Third Party Payments,471101,Purchase of Care,04/08/2020,3767078-2628140,"2,579.92",CROWN CARE VI LTD.
Adult and Health Services,Head of Adults,Third Party Payments,474101,Purchase of Care,04/08/2020,3767078-2628142,"2,589.44",CROWN CARE VI LTD.
Adult and Health Services,Head of Adults,Third Party Payments,474101,Purchase of Care,04/08/2020,3767078-2628158,"2,589.44",CROWN CARE VI LTD.
Adult and Health Services,Head of Adults,Third Party Payments,474101,Purchase of Care,04/08/2020,3767078-2628163,"1,294.72",CROWN CARE VI LTD.
Adult and Health Services,Head of Adults,Third Party Payments,474101,Purchase of Care,04/08/2020,3767078-2628170,"2,589.44",CROWN CARE VI LTD.
Adult and Health Services,Head of Adults,Third Party Payments,471101,Purchase of Care,04/08/2020,3767078-2628172,"2,579.92",CROWN CARE VI LTD.
Adult and Health Services,Head of Adults,Third Party Payments,474101,Purchase of Care,04/08/2020,3767078-2628174,"1,294.72",CROWN CARE VI LTD.
Adult and Health Services,Head of Adults,Third Party Payments,474101,Purchase of Care,04/08/2020,3767078-2628178,"2,589.44",CROWN CARE VI LTD.
Adult and Health Services,Head of Adults,Third Party Payments,471101,Purchase of Care,04/08/2020,3767078-2630063,"1,197.82",CROWN CARE VI LTD.
Adult and Health Services,Head of Adults,Third Party Payments,470101,Purchase of Care,04/08/2020,3767078-2628149,"2,488.08",CROWN CARE VI LTD.
Adult and Health Services,Head of Adults,Third Party Payments,470101,Purchase of Care,04/08/2020,3767078-2628129,"2,488.08",CROWN CARE VI LTD.
Adult and Health Services,Head of Adults,Third Party Payments,474101,Purchase of Care,04/08/2020,3767078-2628131,"2,589.44",CROWN CARE VI LTD.
Adult and Health Services,Head of Adults,Third Party Payments,470101,Purchase of Care,04/08/2020,3767078-2628134,"2,488.08",CROWN CARE VI LTD.
Adult and Health Services,Head of Adults,Third Party Payments,474101,Purchase of Care,04/08/2020,3767078-2628136,"1,294.72",CROWN CARE VI LTD.
Adult and Health Services,Head of Adults,Third Party Payments,470101,Purchase of Care,04/08/2020,3767078-2628138,"2,488.08",CROWN CARE VI LTD.
Adult and Health Services,Head of Adults,Third Party Payments,470101,Purchase of Care,04/08/2020,3767078-2628139,"2,488.08",CROWN CARE VI LTD.
Adult and Health Services,Head of Adults,Third Party Payments,470101,Purchase of Care,04/08/2020,3767078-2628141,"2,488.08",CROWN CARE VI LTD.
Adult and Health Services,Head of Adults,Third Party Payments,471101,Purchase of Care,04/08/2020,3767078-2628144,"2,579.92",CROWN CARE VI LTD.
Adult and Health Services,Head of Adults,Third Party Payments,471101,Purchase of Care,04/08/2020,3767078-2628145,"2,304.00",CROWN CARE VI LTD.
Adult and Health Services,Head of Adults,Third Party Payments,471101,Purchase of Care,04/08/2020,3767078-2628146,"2,464.00",CROWN CARE VI LTD.
Adult and Health Services,Head of Adults,Third Party Payments,471101,Purchase of Care,04/08/2020,3767078-2628147,"1,289.96",CROWN CARE VI LTD.
Adult and Health Services,Head of Adults,Third Party Payments,471101,Purchase of Care,04/08/2020,3767078-2628148,"2,579.92",CROWN CARE VI LTD.
Adult and Health Services,Head of Adults,Third Party Payments,474101,Purchase of Care,04/08/2020,3767078-2628150,"1,502.04",CROWN CARE VI LTD.
Adult and Health Services,Head of Adults,Third Party Payments,474101,Purchase of Care,04/08/2020,3767078-2628152,"2,589.44",CROWN CARE VI LTD.
Adult and Health Services,Head of Adults,Third Party Payments,474101,Purchase of Care,04/08/2020,3767078-2628154,"2,589.44",CROWN CARE VI LTD.
Adult and Health Services,Head of Adults,Third Party Payments,474101,Purchase of Care,04/08/2020,3767078-2628156,"2,589.44",CROWN CARE VI LTD.
Adult and Health Services,Head of Adults,Third Party Payments,470101,Purchase of Care,04/08/2020,3767078-2628160,"2,488.08",CROWN CARE VI LTD.
Adult and Health Services,Head of Adults,Third Party Payments,474101,Purchase of Care,04/08/2020,3767078-2628161,"2,589.44",CROWN CARE VI LTD.
Adult and Health Services,Head of Adults,Third Party Payments,474101,Purchase of Care,04/08/2020,3767078-2628165,"2,589.44",CROWN CARE VI LTD.
Adult and Health Services,Head of Adults,Third Party Payments,471101,Purchase of Care,04/08/2020,3767078-2628167,"2,579.92",CROWN CARE VI LTD.
Adult and Health Services,Head of Adults,Third Party Payments,471101,Purchase of Care,04/08/2020,3767078-2628168,"1,289.96",CROWN CARE VI LTD.
Adult and Health Services,Head of Adults,Third Party Payments,470101,Purchase of Care,04/08/2020,3767078-2628169,"2,488.08",CROWN CARE VI LTD.
Adult and Health Services,Head of Adults,Third Party Payments,474101,Purchase of Care,04/08/2020,3767078-2628176,"2,589.44",CROWN CARE VI LTD.
Adult and Health Services,Head of Adults,Third Party Payments,470101,Purchase of Care,04/08/2020,3767078-2628181,"2,488.08",CROWN CARE VI LTD.
Adult and Health Services,Head of Adults,Third Party Payments,471101,Purchase of Care,04/08/2020,3767078-2629835,"2,027.08",CROWN CARE VI LTD.
Adult and Health Services,Head of Adults,Third Party Payments,474101,Purchase of Care,04/08/2020,3767078-2628127,"1,757.12",CROWN CARE VI LTD.
Adult and Health Services,Head of Adults,Third Party Payments,470101,Purchase of Care,04/08/2020,3767078-2628130,"2,488.08",CROWN CARE VI LTD.
Adult and Health Services,Head of Adults,Third Party Payments,471101,Purchase of Care,04/08/2020,3767078-2628133,"2,579.92",CROWN CARE VI LTD.
Adult and Health Services,Head of Adults,Third Party Payments,474101,Purchase of Care,04/08/2020,3767078-2629833,554.88,CROWN CARE VI LTD.
Adult and Health Services,Head of Adults,Third Party Payments,471101,Purchase of Care,04/08/2020,3766531-ADDITIONALUPLIFT5/6,"15,233.09",CROWN CARE VI LTD.
Adult and Health Services,Head of Adults,Third Party Payments,479150,Purchase of Care,04/08/2020,3766531-INFECTIONCONTROLFUND2/127,"45,491.24",CROWN CARE VI LTD.
Adult and Health Services,Head of Adults,Third Party Payments,470101,Purchase of Care,04/08/2020,3766531-SELFFUNDERCOVID19UPLIFT5-5,"3,991.06",CROWN CARE VI LTD.
Adult and Health Services,Head of Adults,Third Party Payments,479150,Purchase of Care,04/08/2020,3766534-INFECTIONCONTROLFUND2/23,"4,944.70",CYGNET OE LTD.
Adult and Health Services,Head of Adults,Third Party Payments,470101,Purchase of Care,04/08/2020,3767079-2626844,"1,027.56",D3 CARE LTD.
Adult and Health Services,Head of Adults,Third Party Payments,471101,Purchase of Care,04/08/2020,3767080-2626764,"2,447.76",D3 CARE LTD.
Adult and Health Services,Head of Adults,Third Party Payments,471101,Purchase of Care,04/08/2020,3767080-2626765,"2,447.76",D3 CARE LTD.
Adult and Health Services,Head of Adults,Third Party Payments,470101,Purchase of Care,04/08/2020,3767080-2626767,"2,354.80",D3 CARE LTD.
Adult and Health Services,Head of Adults,Third Party Payments,470101,Purchase of Care,04/08/2020,3767080-2626771,"2,354.80",D3 CARE LTD.
Adult and Health Services,Head of Adults,Third Party Payments,474101,Purchase of Care,04/08/2020,3767080-2626772,"2,457.28",D3 CARE LTD.
Adult and Health Services,Head of Adults,Third Party Payments,474101,Purchase of Care,04/08/2020,3767080-2626774,"2,457.28",D3 CARE LTD.
Adult and Health Services,Head of Adults,Third Party Payments,470101,Purchase of Care,04/08/2020,3767080-2626776,"2,354.80",D3 CARE LTD.
Adult and Health Services,Head of Adults,Third Party Payments,470101,Purchase of Care,04/08/2020,3767080-2626779,"2,354.80",D3 CARE LTD.
Adult and Health Services,Head of Adults,Third Party Payments,470101,Purchase of Care,04/08/2020,3767080-2626780,"2,354.80",D3 CARE LTD.
Adult and Health Services,Head of Adults,Third Party Payments,474101,Purchase of Care,04/08/2020,3767080-2629884,614.32,D3 CARE LTD.
Adult and Health Services,Head of Adults,Third Party Payments,474101,Purchase of Care,04/08/2020,3767079-2626837,"1,079.24",D3 CARE LTD.
Adult and Health Services,Head of Adults,Third Party Payments,474101,Purchase of Care,04/08/2020,3767079-2626838,"1,079.24",D3 CARE LTD.
Adult and Health Services,Head of Adults,Third Party Payments,474101,Purchase of Care,04/08/2020,3767079-2626840,"1,079.24",D3 CARE LTD.
Adult and Health Services,Head of Adults,Third Party Payments,470101,Purchase of Care,04/08/2020,3767079-2626842,"1,027.56",D3 CARE LTD.
Adult and Health Services,Head of Adults,Third Party Payments,470101,Purchase of Care,04/08/2020,3767079-2626843,"1,144.00",D3 CARE LTD.
Adult and Health Services,Head of Adults,Third Party Payments,474101,Purchase of Care,04/08/2020,3767079-2626845,"2,158.44",D3 CARE LTD.
Adult and Health Services,Head of Adults,Third Party Payments,474101,Purchase of Care,04/08/2020,3767079-2626847,"1,079.24",D3 CARE LTD.
Adult and Health Services,Head of Adults,Third Party Payments,474101,Purchase of Care,04/08/2020,3767079-2626849,"1,589.04",D3 CARE LTD.
Adult and Health Services,Head of Adults,Third Party Payments,474101,Purchase of Care,04/08/2020,3767079-2626835,"1,079.24",D3 CARE LTD.
Adult and Health Services,Head of Adults,Third Party Payments,470101,Purchase of Care,04/08/2020,3767079-2626834,"2,055.12",D3 CARE LTD.
Adult and Health Services,Head of Adults,Third Party Payments,474101,Purchase of Care,04/08/2020,3767080-2626757,"1,140.88",D3 CARE LTD.
Adult and Health Services,Head of Adults,Third Party Payments,471101,Purchase of Care,04/08/2020,3767080-2626759,"2,447.76",D3 CARE LTD.
Adult and Health Services,Head of Adults,Third Party Payments,470101,Purchase of Care,04/08/2020,3767080-2626760,"2,018.40",D3 CARE LTD.
Adult and Health Services,Head of Adults,Third Party Payments,470101,Purchase of Care,04/08/2020,3767080-2626761,"2,354.80",D3 CARE LTD.
Adult and Health Services,Head of Adults,Third Party Payments,470101,Purchase of Care,04/08/2020,3767080-2626766,"2,354.80",D3 CARE LTD.
Adult and Health Services,Head of Adults,Third Party Payments,474101,Purchase of Care,04/08/2020,3767080-2626769,"2,457.28",D3 CARE LTD.
Adult and Health Services,Head of Adults,Third Party Payments,474101,Purchase of Care,04/08/2020,3767079-2626832,"1,079.20",D3 CARE LTD.
Adult and Health Services,Head of Adults,Third Party Payments,474101,Purchase of Care,04/08/2020,3766536-ADDITIONALUPLIFT5/LDMH/2,"1,009.91",D3 CARE LTD.
Adult and Health Services,Head of Adults,Third Party Payments,479150,Purchase of Care,04/08/2020,3766536-INFECTIONCONTROLFUND2/30,"9,889.40",D3 CARE LTD.
Adult and Health Services,Head of Adults,Third Party Payments,470101,Purchase of Care,04/08/2020,3766535-ADDITIONALUPLIFT5/142,"6,629.29",D3 CARE LTD.
Adult and Health Services,Head of Adults,Third Party Payments,479150,Purchase of Care,04/08/2020,3766535-INFECTIONCONTROLFUND2/59,"19,778.80",D3 CARE LTD.
Adult and Health Services,Head of Adults,Third Party Payments,470101,Purchase of Care,04/08/2020,3766535-SELFFUNDERCOVID19UPLIFT5-93,"1,177.40",D3 CARE LTD.
Resources BK0010,Legal & Democratic Services,Supplies and Services,338043,Services,04/08/2020,3766538-3065238,"1,776.70",DAC BEACHCROFT LLP.
Adult and Health Services,Head of Adults,Third Party Payments,472101,Purchase of Care,04/08/2020,3766539-ADDITIONALUPLIFT5/27,"27,442.39",DALE CARE LTD.
Adult and Health Services,Head of Adults,Third Party Payments,472101,Purchase of Care,04/08/2020,3766539-HOMECARESELFFUNDERS5-6,"4,070.87",DALE CARE LTD.
Adult and Health Services,Head of Adults,Third Party Payments,479150,Purchase of Care,04/08/2020,3766539-INFECTIONCONTROLFUND/7,"111,002.54",DALE CARE LTD.
Children and Young Peoples Services,Head of Childrens Social Care,Third Party Payments,440062,Other third party payments E440,04/08/2020,3767081-PIG_68836,"2,808.00",DALE CARE LTD.
Children and Young Peoples Services,Head of Education and Skills,Supplies and Services,338027,Services,04/08/2020,3766540-10,"1,281.00",DAVID FIRTH T/A BARDON MILL EDUCATIONAL CONSULTANTS.
Adult and Health Services,Head of Adults,Third Party Payments,478101,Purchase of Care,04/08/2020,3766546-ADDITIONALUPLIFT5/12,"2,479.12",DEACONSTAR LTD.
Adult and Health Services,Head of Adults,Third Party Payments,479150,Purchase of Care,04/08/2020,3766546-INFECTIONCONTROLFUND/3,"31,396.32",DEACONSTAR LTD.
Dedicated Schools Grant BG0015,DSG Early Years Block,Transfer Payments,510030,School Children,04/08/2020,3766548-EYFCOVID19/SUMMERTERM20,"1,053.27",DEERNESS VALLEY NURSERY SCHOOL.
Resources BK0010,Digital and Customer Services,Supplies and Services,332029,Printing Stationery and Gen Off Exps,04/08/2020,3766550-33102,"1,033.50",DESIGN X PRESS LTD.
Adult and Health Services,Head of Adults,Third Party Payments,471101,Purchase of Care,04/08/2020,3767083-2625850,"2,360.34",DEVONSHIRE HOUSE CARE LTD.
Adult and Health Services,Head of Adults,Third Party Payments,470101,Purchase of Care,04/08/2020,3767083-2625852,"2,599.80",DEVONSHIRE HOUSE CARE LTD.
Adult and Health Services,Head of Adults,Third Party Payments,471101,Purchase of Care,04/08/2020,3767083-2625853,"1,748.40",DEVONSHIRE HOUSE CARE LTD.
Adult and Health Services,Head of Adults,Third Party Payments,470101,Purchase of Care,04/08/2020,3767083-2625860,"2,354.80",DEVONSHIRE HOUSE CARE LTD.
Adult and Health Services,Head of Adults,Third Party Payments,470101,Purchase of Care,04/08/2020,3767083-2625861,"1,639.04",DEVONSHIRE HOUSE CARE LTD.
Adult and Health Services,Head of Adults,Third Party Payments,470101,Purchase of Care,04/08/2020,3767083-2625863,"2,354.80",DEVONSHIRE HOUSE CARE LTD.
Adult and Health Services,Head of Adults,Third Party Payments,470101,Purchase of Care,04/08/2020,3767083-2625864,"1,772.80",DEVONSHIRE HOUSE CARE LTD.
Adult and Health Services,Head of Adults,Third Party Payments,470101,Purchase of Care,04/08/2020,3767083-2625851,"2,354.80",DEVONSHIRE HOUSE CARE LTD.
Adult and Health Services,Head of Adults,Third Party Payments,470101,Purchase of Care,04/08/2020,3767083-2625855,"2,354.80",DEVONSHIRE HOUSE CARE LTD.
Adult and Health Services,Head of Adults,Third Party Payments,471101,Purchase of Care,04/08/2020,3767083-2625856,699.36,DEVONSHIRE HOUSE CARE LTD.
Adult and Health Services,Head of Adults,Third Party Payments,470101,Purchase of Care,04/08/2020,3767083-2625859,"2,354.80",DEVONSHIRE HOUSE CARE LTD.
Adult and Health Services,Head of Adults,Third Party Payments,470101,Purchase of Care,04/08/2020,3767083-2625854,"2,354.80",DEVONSHIRE HOUSE CARE LTD.
Adult and Health Services,Head of Adults,Third Party Payments,470101,Purchase of Care,04/08/2020,3767083-2625857,"2,435.72",DEVONSHIRE HOUSE CARE LTD.
Adult and Health Services,Head of Adults,Third Party Payments,470101,Purchase of Care,04/08/2020,3767083-2625858,"2,435.72",DEVONSHIRE HOUSE CARE LTD.
Adult and Health Services,Head of Adults,Third Party Payments,470101,Purchase of Care,04/08/2020,3767083-2625862,"2,435.72",DEVONSHIRE HOUSE CARE LTD.
Adult and Health Services,Head of Adults,Third Party Payments,470101,Purchase of Care,04/08/2020,3767083-2625865,"2,354.80",DEVONSHIRE HOUSE CARE LTD.
Adult and Health Services,Head of Adults,Third Party Payments,470101,Purchase of Care,04/08/2020,3767083-2625866,"2,354.80",DEVONSHIRE HOUSE CARE LTD.
Adult and Health Services,Head of Adults,Third Party Payments,470101,Purchase of Care,04/08/2020,3766551-ADDITIONALUPLIFT5/10,"3,399.13",DEVONSHIRE HOUSE CARE LTD.
Adult and Health Services,Head of Adults,Third Party Payments,479150,Purchase of Care,04/08/2020,3766551-INFECTIONCONTROLFUND2/35,"12,361.75",DEVONSHIRE HOUSE CARE LTD.
Adult and Health Services,Head of Adults,Third Party Payments,470101,Purchase of Care,04/08/2020,3766551-SELFFUNDERCOVID19UPLIFT5-9,"1,883.84",DEVONSHIRE HOUSE CARE LTD.
Adult and Health Services,Head of Adults,Third Party Payments,471101,Purchase of Care,04/08/2020,3767084-2629330,"2,211.36",DIPTON CARE HOME LTD.
Adult and Health Services,Head of Adults,Third Party Payments,471101,Purchase of Care,04/08/2020,3767084-2629332,"2,579.92",DIPTON CARE HOME LTD.
Adult and Health Services,Head of Adults,Third Party Payments,471101,Purchase of Care,04/08/2020,3767084-2629333,"2,579.92",DIPTON CARE HOME LTD.
Adult and Health Services,Head of Adults,Third Party Payments,471101,Purchase of Care,04/08/2020,3767084-2629335,"2,579.92",DIPTON CARE HOME LTD.
Adult and Health Services,Head of Adults,Third Party Payments,470101,Purchase of Care,04/08/2020,3767084-2629336,"2,488.08",DIPTON CARE HOME LTD.
Adult and Health Services,Head of Adults,Third Party Payments,470101,Purchase of Care,04/08/2020,3767084-2629337,"2,488.08",DIPTON CARE HOME LTD.
Adult and Health Services,Head of Adults,Third Party Payments,471101,Purchase of Care,04/08/2020,3767084-2629338,"2,579.92",DIPTON CARE HOME LTD.
Adult and Health Services,Head of Adults,Third Party Payments,471101,Purchase of Care,04/08/2020,3767084-2629339,"2,579.92",DIPTON CARE HOME LTD.
Adult and Health Services,Head of Adults,Third Party Payments,471101,Purchase of Care,04/08/2020,3767084-2629340,"2,579.92",DIPTON CARE HOME LTD.
Adult and Health Services,Head of Adults,Third Party Payments,470101,Purchase of Care,04/08/2020,3767084-2629342,"2,488.08",DIPTON CARE HOME LTD.
Adult and Health Services,Head of Adults,Third Party Payments,471101,Purchase of Care,04/08/2020,3767084-2629343,"2,579.92",DIPTON CARE HOME LTD.
Adult and Health Services,Head of Adults,Third Party Payments,471101,Purchase of Care,04/08/2020,3767084-2629344,"2,579.92",DIPTON CARE HOME LTD.
Adult and Health Services,Head of Adults,Third Party Payments,471101,Purchase of Care,04/08/2020,3767084-2629345,"2,579.92",DIPTON CARE HOME LTD.
Adult and Health Services,Head of Adults,Third Party Payments,470101,Purchase of Care,04/08/2020,3767084-2629346,"2,488.08",DIPTON CARE HOME LTD.
Adult and Health Services,Head of Adults,Third Party Payments,470101,Purchase of Care,04/08/2020,3767084-2629347,"2,488.08",DIPTON CARE HOME LTD.
Adult and Health Services,Head of Adults,Third Party Payments,470101,Purchase of Care,04/08/2020,3767084-2629348,"2,488.08",DIPTON CARE HOME LTD.
Adult and Health Services,Head of Adults,Third Party Payments,471101,Purchase of Care,04/08/2020,3767084-2629349,"2,579.92",DIPTON CARE HOME LTD.
Adult and Health Services,Head of Adults,Third Party Payments,474101,Purchase of Care,04/08/2020,3767084-2629350,"2,589.44",DIPTON CARE HOME LTD.
Adult and Health Services,Head of Adults,Third Party Payments,470101,Purchase of Care,04/08/2020,3767084-2629352,"2,488.08",DIPTON CARE HOME LTD.
Adult and Health Services,Head of Adults,Third Party Payments,471101,Purchase of Care,04/08/2020,3767084-2629353,"2,579.92",DIPTON CARE HOME LTD.
Adult and Health Services,Head of Adults,Third Party Payments,471101,Purchase of Care,04/08/2020,3767084-2629354,"2,579.92",DIPTON CARE HOME LTD.
Adult and Health Services,Head of Adults,Third Party Payments,471101,Purchase of Care,04/08/2020,3767084-2629355,"2,579.92",DIPTON CARE HOME LTD.
Adult and Health Services,Head of Adults,Third Party Payments,470101,Purchase of Care,04/08/2020,3767084-2629356,"2,488.08",DIPTON CARE HOME LTD.
Adult and Health Services,Head of Adults,Third Party Payments,470101,Purchase of Care,04/08/2020,3767084-2629331,"2,132.64",DIPTON CARE HOME LTD.
Adult and Health Services,Head of Adults,Third Party Payments,474101,Purchase of Care,04/08/2020,3767084-2629690,"1,202.24",DIPTON CARE HOME LTD.
Adult and Health Services,Head of Adults,Third Party Payments,471101,Purchase of Care,04/08/2020,3766552-ADDITIONALUPLIFT5/87,"7,658.14",DIPTON CARE HOME LTD.
Adult and Health Services,Head of Adults,Third Party Payments,479150,Purchase of Care,04/08/2020,3766552-INFECTIONCONTROLFUND2/119,"34,612.90",DIPTON CARE HOME LTD.
Adult and Health Services,Head of Adults,Third Party Payments,470101,Purchase of Care,04/08/2020,3766552-SELFFUNDERCOVID19UPLIFT5-52,"5,752.99",DIPTON CARE HOME LTD.
Adult and Health Services,Head of Adults,Third Party Payments,479150,Purchase of Care,04/08/2020,3766553-INFECTIONCONTROLFUND/65,"5,224.68",DIRECT STEPS.
Neighbourhoods and Climate Change,Partnerships & Community Engagement Div.,Cap Exp on Grants & Other Financial Assistance (REFCUS),918004,Contributions to other bodies 918004,04/08/2020,3766554-VOUCHER20NB-EDRC002,"6,534.00",DJ EVANS YOUTH CLUB.
Dedicated Schools Grant BG0015,DSG Early Years Block,Transfer Payments,510030,School Children,04/08/2020,3766555-EYFCOVID19/SUMMERTERM20,"1,167.48",DO RE MI DAY NURSERY.
Children and Young Peoples Services,Head of Education and Skills,Supplies and Services,352001,Conference Expenses,04/08/2020,3766556-JT/DCC/JUNE20,650.00,DO RE MI MUSICAL LEARNING LTD.
Adult and Health Services,Head of Adults,Third Party Payments,470101,Purchase of Care,04/08/2020,3767086-2628244,"1,364.08",DOVE CARE LTD.
Resources BK0010,Legal & Democratic Services,Supplies and Services,338101,Services,04/08/2020,3766557-JUN/JUL2020,"2,850.00",DR DCA SENADHIRA.
"Regeneration, Economy and Growth",Transport and Contracted Services,Intangible Assets,917001,Software capitalised licence fees,04/08/2020,3766559-DRA1263,"7,250.00",DRAKEWELL LTD.
Adult and Health Services,Head of Adults,Third Party Payments,474101,Purchase of Care,04/08/2020,3767087-2629467,"9,457.96",DUNLUCE HOUSE T/A BOHILL BUNGALOWS.
Adult and Health Services,Head of Adults,Third Party Payments,479150,Purchase of Care,04/08/2020,3766560-INFECTIONCONTROLFUND/8,"11,694.81",DURHAM ALLIANCE FOR COMMUNITY CARE.
Adult and Health Services,Head of Adults,Third Party Payments,474101,Purchase of Care,04/08/2020,3767088-2628246,"3,385.76",DURHAM CARELINE LTD.
Adult and Health Services,Head of Adults,Third Party Payments,474101,Purchase of Care,04/08/2020,3767088-2628254,"3,420.84",DURHAM CARELINE LTD.
Adult and Health Services,Head of Adults,Third Party Payments,474101,Purchase of Care,04/08/2020,3767088-2628266,"3,290.16",DURHAM CARELINE LTD.
Adult and Health Services,Head of Adults,Third Party Payments,470101,Purchase of Care,04/08/2020,3767088-2628267,850.32,DURHAM CARELINE LTD.
Adult and Health Services,Head of Adults,Third Party Payments,474101,Purchase of Care,04/08/2020,3767088-2628269,"3,290.16",DURHAM CARELINE LTD.
Adult and Health Services,Head of Adults,Third Party Payments,474101,Purchase of Care,04/08/2020,3767088-2628275,"3,290.16",DURHAM CARELINE LTD.
Adult and Health Services,Head of Adults,Third Party Payments,474101,Purchase of Care,04/08/2020,3767088-2628277,"3,290.16",DURHAM CARELINE LTD.
Adult and Health Services,Head of Adults,Third Party Payments,474101,Purchase of Care,04/08/2020,3767090-2628480,"1,228.64",DURHAM CARELINE LTD.
Adult and Health Services,Head of Adults,Third Party Payments,474101,Purchase of Care,04/08/2020,3767088-2628248,"3,288.00",DURHAM CARELINE LTD.
Adult and Health Services,Head of Adults,Third Party Payments,470101,Purchase of Care,04/08/2020,3767088-2628249,"2,452.80",DURHAM CARELINE LTD.
Adult and Health Services,Head of Adults,Third Party Payments,470101,Purchase of Care,04/08/2020,3767088-2628253,"3,385.76",DURHAM CARELINE LTD.
Adult and Health Services,Head of Adults,Third Party Payments,474101,Purchase of Care,04/08/2020,3767088-2628251,"7,464.00",DURHAM CARELINE LTD.
Adult and Health Services,Head of Adults,Third Party Payments,474101,Purchase of Care,04/08/2020,3767088-2628256,"3,420.84",DURHAM CARELINE LTD.
Adult and Health Services,Head of Adults,Third Party Payments,474101,Purchase of Care,04/08/2020,3767090-2628465,"1,228.64",DURHAM CARELINE LTD.
Adult and Health Services,Head of Adults,Third Party Payments,474101,Purchase of Care,04/08/2020,3767090-2628469,"3,254.28",DURHAM CARELINE LTD.
Adult and Health Services,Head of Adults,Third Party Payments,470101,Purchase of Care,04/08/2020,3767089-2628409,"5,948.80",DURHAM CARELINE LTD.
Adult and Health Services,Head of Adults,Third Party Payments,474101,Purchase of Care,04/08/2020,3767089-2628412,"3,384.44",DURHAM CARELINE LTD.
Adult and Health Services,Head of Adults,Third Party Payments,474101,Purchase of Care,04/08/2020,3767089-2628415,"4,722.40",DURHAM CARELINE LTD.
Adult and Health Services,Head of Adults,Third Party Payments,470101,Purchase of Care,04/08/2020,3767089-2629797,"6,728.00",DURHAM CARELINE LTD.
Adult and Health Services,Head of Adults,Third Party Payments,470101,Purchase of Care,04/08/2020,3767090-2628462,"2,354.80",DURHAM CARELINE LTD.
Adult and Health Services,Head of Adults,Third Party Payments,474101,Purchase of Care,04/08/2020,3767090-2628463,"2,457.28",DURHAM CARELINE LTD.
Adult and Health Services,Head of Adults,Third Party Payments,474101,Purchase of Care,04/08/2020,3767090-2628467,"1,228.64",DURHAM CARELINE LTD.
Adult and Health Services,Head of Adults,Third Party Payments,474101,Purchase of Care,04/08/2020,3767090-2628472,"2,457.28",DURHAM CARELINE LTD.
Adult and Health Services,Head of Adults,Third Party Payments,470101,Purchase of Care,04/08/2020,3767090-2628474,"2,354.80",DURHAM CARELINE LTD.
Adult and Health Services,Head of Adults,Third Party Payments,471101,Purchase of Care,04/08/2020,3767090-2628477,"2,447.76",DURHAM CARELINE LTD.
Adult and Health Services,Head of Adults,Third Party Payments,474101,Purchase of Care,04/08/2020,3767090-2628478,"2,457.28",DURHAM CARELINE LTD.
Adult and Health Services,Head of Adults,Third Party Payments,470101,Purchase of Care,04/08/2020,3767090-2628482,"2,354.80",DURHAM CARELINE LTD.
Adult and Health Services,Head of Adults,Third Party Payments,471101,Purchase of Care,04/08/2020,3767090-2628483,"1,223.88",DURHAM CARELINE LTD.
Adult and Health Services,Head of Adults,Third Party Payments,474101,Purchase of Care,04/08/2020,3767090-2628484,"1,228.64",DURHAM CARELINE LTD.
Adult and Health Services,Head of Adults,Third Party Payments,471101,Purchase of Care,04/08/2020,3767090-2628487,"2,447.76",DURHAM CARELINE LTD.
Adult and Health Services,Head of Adults,Third Party Payments,471101,Purchase of Care,04/08/2020,3767090-2628488,"2,447.76",DURHAM CARELINE LTD.
Adult and Health Services,Head of Adults,Third Party Payments,474101,Purchase of Care,04/08/2020,3767090-2628489,"1,228.64",DURHAM CARELINE LTD.
Adult and Health Services,Head of Adults,Third Party Payments,474101,Purchase of Care,04/08/2020,3767090-2628491,"2,457.28",DURHAM CARELINE LTD.
Adult and Health Services,Head of Adults,Third Party Payments,474101,Purchase of Care,04/08/2020,3767090-2628493,"6,508.52",DURHAM CARELINE LTD.
Adult and Health Services,Head of Adults,Third Party Payments,474101,Purchase of Care,04/08/2020,3767090-2628500,"1,228.64",DURHAM CARELINE LTD.
Adult and Health Services,Head of Adults,Third Party Payments,474101,Purchase of Care,04/08/2020,3767090-2628502,"2,457.28",DURHAM CARELINE LTD.
Adult and Health Services,Head of Adults,Third Party Payments,474101,Purchase of Care,04/08/2020,3767090-2628504,"2,457.28",DURHAM CARELINE LTD.
Adult and Health Services,Head of Adults,Third Party Payments,471101,Purchase of Care,04/08/2020,3767090-2628506,"2,447.76",DURHAM CARELINE LTD.
Adult and Health Services,Head of Adults,Third Party Payments,470101,Purchase of Care,04/08/2020,3767090-2628507,"2,354.80",DURHAM CARELINE LTD.
Adult and Health Services,Head of Adults,Third Party Payments,474101,Purchase of Care,04/08/2020,3767090-2628459,"2,457.28",DURHAM CARELINE LTD.
Adult and Health Services,Head of Adults,Third Party Payments,470101,Purchase of Care,04/08/2020,3767090-2628461,"2,354.80",DURHAM CARELINE LTD.
Adult and Health Services,Head of Adults,Third Party Payments,471101,Purchase of Care,04/08/2020,3767090-2629675,961.62,DURHAM CARELINE LTD.
Adult and Health Services,Head of Adults,Third Party Payments,470101,Purchase of Care,04/08/2020,3767088-2628245,"3,510.00",DURHAM CARELINE LTD.
Adult and Health Services,Head of Adults,Third Party Payments,470101,Purchase of Care,04/08/2020,3767088-2628261,"2,974.40",DURHAM CARELINE LTD.
Adult and Health Services,Head of Adults,Third Party Payments,470101,Purchase of Care,04/08/2020,3767088-2628279,"2,414.08",DURHAM CARELINE LTD.
Adult and Health Services,Head of Adults,Third Party Payments,474101,Purchase of Care,04/08/2020,3767088-2628258,"3,385.76",DURHAM CARELINE LTD.
Adult and Health Services,Head of Adults,Third Party Payments,470101,Purchase of Care,04/08/2020,3767088-2628265,"5,455.04",DURHAM CARELINE LTD.
Adult and Health Services,Head of Adults,Third Party Payments,470101,Purchase of Care,04/08/2020,3767089-2628417,"2,862.04",DURHAM CARELINE LTD.
Adult and Health Services,Head of Adults,Third Party Payments,474101,Purchase of Care,04/08/2020,3767089-2628419,"5,455.04",DURHAM CARELINE LTD.
Adult and Health Services,Head of Adults,Third Party Payments,474101,Purchase of Care,04/08/2020,3767090-2628495,"3,254.28",DURHAM CARELINE LTD.
Adult and Health Services,Head of Adults,Third Party Payments,474101,Purchase of Care,04/08/2020,3767088-2628263,"5,455.04",DURHAM CARELINE LTD.
Adult and Health Services,Head of Adults,Third Party Payments,470101,Purchase of Care,04/08/2020,3767088-2628271,"2,362.08",DURHAM CARELINE LTD.
Adult and Health Services,Head of Adults,Third Party Payments,470101,Purchase of Care,04/08/2020,3767088-2628272,"2,167.60",DURHAM CARELINE LTD.
Adult and Health Services,Head of Adults,Third Party Payments,470101,Purchase of Care,04/08/2020,3767088-2628273,"2,362.08",DURHAM CARELINE LTD.
Adult and Health Services,Head of Adults,Third Party Payments,470101,Purchase of Care,04/08/2020,3767088-2628274,"2,232.64",DURHAM CARELINE LTD.
Adult and Health Services,Head of Adults,Third Party Payments,470101,Purchase of Care,04/08/2020,3767089-2628411,"2,974.40",DURHAM CARELINE LTD.
Adult and Health Services,Head of Adults,Third Party Payments,474101,Purchase of Care,04/08/2020,3767090-2628498,"3,254.28",DURHAM CARELINE LTD.
Adult and Health Services,Head of Adults,Third Party Payments,479150,Purchase of Care,04/08/2020,3766561-INFECTIONCONTROLFUND2/10,"1,977.88",DURHAM CARELINE LTD.
Adult and Health Services,Head of Adults,Third Party Payments,474101,Purchase of Care,04/08/2020,3766562-ADDITIONALUPLIFT5/LDMH/23,"3,509.30",DURHAM CARELINE LTD.
Adult and Health Services,Head of Adults,Third Party Payments,479150,Purchase of Care,04/08/2020,3766562-INFECTIONCONTROLFUND2/60,"20,273.27",DURHAM CARELINE LTD.
Adult and Health Services,Head of Adults,Third Party Payments,474101,Purchase of Care,04/08/2020,3766563-ADDITIONALUPLIFT5/LDMH/24,"1,320.17",DURHAM CARELINE LTD.
Adult and Health Services,Head of Adults,Third Party Payments,479150,Purchase of Care,04/08/2020,3766563-INFECTIONCONTROLFUND2/32,"11,372.81",DURHAM CARELINE LTD.
Adult and Health Services,Head of Adults,Third Party Payments,474101,Purchase of Care,04/08/2020,3766564-ADDITIONALUPLIFT5/123,"9,127.82",DURHAM CARELINE LTD.
Adult and Health Services,Head of Adults,Third Party Payments,479150,Purchase of Care,04/08/2020,3766564-INFECTIONCONTROLFUND2/88,"24,723.50",DURHAM CARELINE LTD.
Adult and Health Services,Head of Adults,Third Party Payments,470101,Purchase of Care,04/08/2020,3766564-SELFFUNDERCOVID19UPLIFT5-76,952.17,DURHAM CARELINE LTD.
Children and Young Peoples Services,Head of Childrens Social Care,Third Party Payments,425021,Rendered by Voluntary Organisations,04/08/2020,3767091-PIG_68831,"34,400.00",DUTY OF CARE LTD.
Children and Young Peoples Services,Head of Childrens Social Care,Third Party Payments,425021,Rendered by Voluntary Organisations,04/08/2020,3767091-PIG_68832,"58,200.00",DUTY OF CARE LTD.
Adult and Health Services,Head of Adults,Third Party Payments,474101,Purchase of Care,04/08/2020,3767092-2629657,"2,625.48",EAST CHESHIRE HOUSING CONSORTIUM LTD.
Adult and Health Services,Head of Adults,Third Party Payments,474101,Purchase of Care,04/08/2020,3767093-2627473,"1,764.88",EAST CLEVELAND M S HOME.
Adult and Health Services,Head of Adults,Third Party Payments,479150,Purchase of Care,04/08/2020,3766569-INFECTIONCONTROLFUND/41,"1,206.81",EAST DURHAM COLLEGE.
Adult and Health Services,Head of Adults,Third Party Payments,440062,Other third party payments E440,04/08/2020,3767094-PIG_69531,922.74,EBONEY HOME CARE LTD.
Adult and Health Services,Head of Adults,Third Party Payments,479150,Purchase of Care,04/08/2020,3766570-INFECTIONCONTROLFUND/62,"26,307.16",EBONEY HOME CARE LTD.
Adult and Health Services,Head of Adults,Third Party Payments,472101,Purchase of Care,04/08/2020,3766570-ADDITIONALUPLIFT5/153,"9,236.62",EBONEY HOME CARE LTD.
Adult and Health Services,Head of Adults,Third Party Payments,472101,Purchase of Care,04/08/2020,3766570-HOMECARESELFFUNDERS5-19,923.66,EBONEY HOME CARE LTD.
Neighbourhoods and Climate Change,Environmental Services,Third Party Payments,430100,Rendered by Private Contractors,04/08/2020,3766571-INV-630,"2,100.00",ECO ENTERPRISES LTD.
Adult and Health Services,Head of Adults,Third Party Payments,470101,Purchase of Care,04/08/2020,3767095-2626945,"2,280.00",EDEN COTTAGE CARE HOME LTD.
Adult and Health Services,Head of Adults,Third Party Payments,470101,Purchase of Care,04/08/2020,3767096-2629259,"10,200.24",EDUCATION & SERVICES FOR PEOPLE WITH AUTISM LTD (ESPA).
Adult and Health Services,Head of Adults,Third Party Payments,470101,Purchase of Care,04/08/2020,3767097-2627788,"8,290.12",EDUCATION & SERVICES FOR PEOPLE WITH AUTISM LTD (ESPA).
Adult and Health Services,Head of Adults,Third Party Payments,470101,Purchase of Care,04/08/2020,3767098-2627474,"6,489.92",EDUCATION & SERVICES FOR PEOPLE WITH AUTISM LTD (ESPA).
Adult and Health Services,Head of Adults,Third Party Payments,470101,Purchase of Care,04/08/2020,3767098-2627475,"4,641.88",EDUCATION & SERVICES FOR PEOPLE WITH AUTISM LTD (ESPA).
Adult and Health Services,Head of Adults,Third Party Payments,470101,Purchase of Care,04/08/2020,3767098-2627476,"4,697.88",EDUCATION & SERVICES FOR PEOPLE WITH AUTISM LTD (ESPA).
Adult and Health Services,Head of Adults,Third Party Payments,470101,Purchase of Care,04/08/2020,3767099-2629258,"6,489.84",EDUCATION & SERVICES FOR PEOPLE WITH AUTISM LTD (ESPA).
Adult and Health Services,Head of Adults,Third Party Payments,470101,Purchase of Care,04/08/2020,3767099-2629317,"5,047.92",EDUCATION & SERVICES FOR PEOPLE WITH AUTISM LTD (ESPA).
Adult and Health Services,Head of Adults,Third Party Payments,470101,Purchase of Care,04/08/2020,3767100-2629650,"1,046.64",EDUCATION & SERVICES FOR PEOPLE WITH AUTISM LTD (ESPA).
Adult and Health Services,Head of Adults,Third Party Payments,470101,Purchase of Care,04/08/2020,3767100-2629651,"4,061.80",EDUCATION & SERVICES FOR PEOPLE WITH AUTISM LTD (ESPA).
Adult and Health Services,Head of Adults,Third Party Payments,479150,Purchase of Care,04/08/2020,3766573-INFECTIONCONTROLFUND2/129,"1,977.88",EDUCATION & SERVICES FOR PEOPLE WITH AUTISM LTD (ESPA).
Adult and Health Services,Head of Adults,Third Party Payments,479150,Purchase of Care,04/08/2020,3766574-INFECTIONCONTROLFUND2/130,"3,461.29",EDUCATION & SERVICES FOR PEOPLE WITH AUTISM LTD (ESPA).
Adult and Health Services,Head of Adults,Third Party Payments,479150,Purchase of Care,04/08/2020,3766575-INFECTIONCONTROLFUND2/131,"3,955.76",EDUCATION & SERVICES FOR PEOPLE WITH AUTISM LTD (ESPA).
Adult and Health Services,Head of Adults,Third Party Payments,479150,Purchase of Care,04/08/2020,3766576-INFECTIONCONTROLFUND2/132,"4,450.23",EDUCATION & SERVICES FOR PEOPLE WITH AUTISM LTD (ESPA).
Adult and Health Services,Head of Adults,Third Party Payments,479150,Purchase of Care,04/08/2020,3766577-INFECTIONCONTROLFUND2/1,988.94,EDUCATION & SERVICES FOR PEOPLE WITH AUTISM LTD (ESPA).
Adult and Health Services,Head of Adults,Third Party Payments,470101,Purchase of Care,04/08/2020,3767101-2629368,"2,488.08",ELBA CARE LTD.
Adult and Health Services,Head of Adults,Third Party Payments,474101,Purchase of Care,04/08/2020,3767101-2629373,"2,589.44",ELBA CARE LTD.
Adult and Health Services,Head of Adults,Third Party Payments,471101,Purchase of Care,04/08/2020,3767101-2629375,"2,579.92",ELBA CARE LTD.
Adult and Health Services,Head of Adults,Third Party Payments,470101,Purchase of Care,04/08/2020,3767101-2629381,"2,488.08",ELBA CARE LTD.
Adult and Health Services,Head of Adults,Third Party Payments,474101,Purchase of Care,04/08/2020,3767101-2629369,"2,589.44",ELBA CARE LTD.
Adult and Health Services,Head of Adults,Third Party Payments,471101,Purchase of Care,04/08/2020,3767101-2629372,"2,579.92",ELBA CARE LTD.
Adult and Health Services,Head of Adults,Third Party Payments,470101,Purchase of Care,04/08/2020,3767101-2629376,"2,488.08",ELBA CARE LTD.
Adult and Health Services,Head of Adults,Third Party Payments,470101,Purchase of Care,04/08/2020,3767101-2629377,"2,488.08",ELBA CARE LTD.
Adult and Health Services,Head of Adults,Third Party Payments,470101,Purchase of Care,04/08/2020,3767101-2629378,"2,488.08",ELBA CARE LTD.
Adult and Health Services,Head of Adults,Third Party Payments,470101,Purchase of Care,04/08/2020,3767101-2629379,"2,488.08",ELBA CARE LTD.
Adult and Health Services,Head of Adults,Third Party Payments,470101,Purchase of Care,04/08/2020,3767101-2629380,"2,488.08",ELBA CARE LTD.
Adult and Health Services,Head of Adults,Third Party Payments,470101,Purchase of Care,04/08/2020,3767101-2629382,"2,488.08",ELBA CARE LTD.
Adult and Health Services,Head of Adults,Third Party Payments,470101,Purchase of Care,04/08/2020,3767101-2629383,"2,488.08",ELBA CARE LTD.
Adult and Health Services,Head of Adults,Third Party Payments,470101,Purchase of Care,04/08/2020,3767101-2629384,"2,488.08",ELBA CARE LTD.
Adult and Health Services,Head of Adults,Third Party Payments,471101,Purchase of Care,04/08/2020,3767101-2629385,"2,579.92",ELBA CARE LTD.
Adult and Health Services,Head of Adults,Third Party Payments,470101,Purchase of Care,04/08/2020,3767101-2629386,"2,488.08",ELBA CARE LTD.
Adult and Health Services,Head of Adults,Third Party Payments,471101,Purchase of Care,04/08/2020,3767101-2629387,"2,579.92",ELBA CARE LTD.
Adult and Health Services,Head of Adults,Third Party Payments,471101,Purchase of Care,04/08/2020,3767101-2629388,"2,579.92",ELBA CARE LTD.
Adult and Health Services,Head of Adults,Third Party Payments,470101,Purchase of Care,04/08/2020,3767101-2629389,"2,488.08",ELBA CARE LTD.
Adult and Health Services,Head of Adults,Third Party Payments,470101,Purchase of Care,04/08/2020,3767101-2629390,"2,488.08",ELBA CARE LTD.
Adult and Health Services,Head of Adults,Third Party Payments,471101,Purchase of Care,04/08/2020,3767101-2629391,"2,579.92",ELBA CARE LTD.
Adult and Health Services,Head of Adults,Third Party Payments,470101,Purchase of Care,04/08/2020,3767101-2629392,"2,488.08",ELBA CARE LTD.
Adult and Health Services,Head of Adults,Third Party Payments,470101,Purchase of Care,04/08/2020,3767101-2629371,"2,488.08",ELBA CARE LTD.
Adult and Health Services,Head of Adults,Third Party Payments,470101,Purchase of Care,04/08/2020,3767101-2629367,"1,066.32",ELBA CARE LTD.
Adult and Health Services,Head of Adults,Third Party Payments,470101,Purchase of Care,04/08/2020,3766579-ADDITIONALUPLIFT5/91,"8,151.07",ELBA CARE LTD.
Adult and Health Services,Head of Adults,Third Party Payments,479150,Purchase of Care,04/08/2020,3766579-INFECTIONCONTROLFUND2/71,"21,756.68",ELBA CARE LTD.
Adult and Health Services,Head of Adults,Third Party Payments,470101,Purchase of Care,04/08/2020,3766579-SELFFUNDERCOVID19UPLIFT5-53,995.23,ELBA CARE LTD.
Adult and Health Services,Head of Adults,Third Party Payments,470101,Purchase of Care,04/08/2020,3767104-2627983,"5,511.60",ELLERSHAW HOUSE LTD.
Adult and Health Services,Head of Adults,Third Party Payments,470101,Purchase of Care,04/08/2020,3767105-2627479,"2,811.48",ELPHA LODGE RESIDENTIAL CARE HOME  LTD.
Adult and Health Services,Head of Adults,Third Party Payments,478101,Purchase of Care,04/08/2020,3766581-ADDITIONALUPLIFT5/90,"1,608.87",EMBRACING CARE.
Adult and Health Services,Head of Adults,Third Party Payments,479150,Purchase of Care,04/08/2020,3766581-INFECTIONCONTROLFUND/59,"29,250.00",EMBRACING CARE.
Adult and Health Services,Head of Adults,Third Party Payments,472101,Purchase of Care,04/08/2020,3766582-ADDITIONALUPLIFT5/51,"16,129.28",EMBRACING CARE.
Adult and Health Services,Head of Adults,Third Party Payments,472101,Purchase of Care,04/08/2020,3766582-HOMECARESELFFUNDERS5-9,"2,360.45",EMBRACING CARE.
Adult and Health Services,Head of Adults,Third Party Payments,479150,Purchase of Care,04/08/2020,3766582-INFECTIONCONTROLFUND/31,"60,061.44",EMBRACING CARE.
Children and Young Peoples Services,Head of Childrens Social Care,Third Party Payments,440062,Other third party payments E440,04/08/2020,3767106-PIG_68817,967.20,EMBRACING CARE.
Adult and Health Services,Head of Adults,Third Party Payments,479150,Purchase of Care,04/08/2020,3766585-INFECTIONCONTROLFUND/17,"3,919.20",ENDEAVOUR WOODCRAFTS CIC.
"Regeneration, Economy and Growth",Corporate Property and Land,Supplies and Services,304221,Equipment and Materials,04/08/2020,3766586-SIN018616,"1,823.76",ENERGY CONSERVATION SOLUTIONS LTD (ECSL).
Adult and Health Services,Head of Adults,Third Party Payments,470101,Purchase of Care,04/08/2020,3767109-2627910,"2,670.88",EOTHEN HOMES LTD.
Adult and Health Services,Head of Adults,Third Party Payments,471101,Purchase of Care,04/08/2020,3767110-2629515,"1,276.68",EOTHEN HOMES LTD.
Adult and Health Services,Head of Adults,Third Party Payments,470101,Purchase of Care,04/08/2020,3767111-2628714,"2,500.00",ESSENTIAL CARE & SUPPORT LTD.
Adult and Health Services,Head of Adults,Third Party Payments,470101,Purchase of Care,04/08/2020,3767111-2628687,"2,488.08",ESSENTIAL CARE & SUPPORT LTD.
Adult and Health Services,Head of Adults,Third Party Payments,471101,Purchase of Care,04/08/2020,3767111-2628688,"2,579.92",ESSENTIAL CARE & SUPPORT LTD.
Adult and Health Services,Head of Adults,Third Party Payments,471101,Purchase of Care,04/08/2020,3767111-2628689,"2,579.92",ESSENTIAL CARE & SUPPORT LTD.
Adult and Health Services,Head of Adults,Third Party Payments,470101,Purchase of Care,04/08/2020,3767111-2628698,"2,488.08",ESSENTIAL CARE & SUPPORT LTD.
Adult and Health Services,Head of Adults,Third Party Payments,471101,Purchase of Care,04/08/2020,3767111-2628699,"2,579.92",ESSENTIAL CARE & SUPPORT LTD.
Adult and Health Services,Head of Adults,Third Party Payments,471101,Purchase of Care,04/08/2020,3767111-2628700,"2,579.92",ESSENTIAL CARE & SUPPORT LTD.
Adult and Health Services,Head of Adults,Third Party Payments,471101,Purchase of Care,04/08/2020,3767111-2628704,"2,579.92",ESSENTIAL CARE & SUPPORT LTD.
Adult and Health Services,Head of Adults,Third Party Payments,471101,Purchase of Care,04/08/2020,3767111-2628705,921.40,ESSENTIAL CARE & SUPPORT LTD.
Adult and Health Services,Head of Adults,Third Party Payments,471101,Purchase of Care,04/08/2020,3767111-2628706,"1,289.96",ESSENTIAL CARE & SUPPORT LTD.
Adult and Health Services,Head of Adults,Third Party Payments,470101,Purchase of Care,04/08/2020,3767111-2628708,"1,250.00",ESSENTIAL CARE & SUPPORT LTD.
Adult and Health Services,Head of Adults,Third Party Payments,471101,Purchase of Care,04/08/2020,3767111-2628709,"2,579.92",ESSENTIAL CARE & SUPPORT LTD.
Adult and Health Services,Head of Adults,Third Party Payments,470101,Purchase of Care,04/08/2020,3767111-2628710,"2,488.08",ESSENTIAL CARE & SUPPORT LTD.
Adult and Health Services,Head of Adults,Third Party Payments,470101,Purchase of Care,04/08/2020,3767111-2628712,"2,488.08",ESSENTIAL CARE & SUPPORT LTD.
Adult and Health Services,Head of Adults,Third Party Payments,471101,Purchase of Care,04/08/2020,3767111-2628713,"2,579.92",ESSENTIAL CARE & SUPPORT LTD.
Adult and Health Services,Head of Adults,Third Party Payments,471101,Purchase of Care,04/08/2020,3767111-2628715,"2,579.92",ESSENTIAL CARE & SUPPORT LTD.
Adult and Health Services,Head of Adults,Third Party Payments,470101,Purchase of Care,04/08/2020,3767111-2629691,636.02,ESSENTIAL CARE & SUPPORT LTD.
Adult and Health Services,Head of Adults,Third Party Payments,470101,Purchase of Care,04/08/2020,3767111-2628690,"1,244.04",ESSENTIAL CARE & SUPPORT LTD.
Adult and Health Services,Head of Adults,Third Party Payments,470101,Purchase of Care,04/08/2020,3767111-2628691,"1,250.00",ESSENTIAL CARE & SUPPORT LTD.
Adult and Health Services,Head of Adults,Third Party Payments,470101,Purchase of Care,04/08/2020,3767111-2628697,"2,488.08",ESSENTIAL CARE & SUPPORT LTD.
Adult and Health Services,Head of Adults,Third Party Payments,470101,Purchase of Care,04/08/2020,3767111-2628711,"1,390.00",ESSENTIAL CARE & SUPPORT LTD.
Adult and Health Services,Head of Adults,Third Party Payments,470101,Purchase of Care,04/08/2020,3767111-2628686,"2,488.08",ESSENTIAL CARE & SUPPORT LTD.
Adult and Health Services,Head of Adults,Third Party Payments,470101,Purchase of Care,04/08/2020,3767111-2628695,"2,488.08",ESSENTIAL CARE & SUPPORT LTD.
Adult and Health Services,Head of Adults,Third Party Payments,470101,Purchase of Care,04/08/2020,3767111-2628701,"2,488.08",ESSENTIAL CARE & SUPPORT LTD.
Adult and Health Services,Head of Adults,Third Party Payments,470101,Purchase of Care,04/08/2020,3767111-2628702,"2,500.00",ESSENTIAL CARE & SUPPORT LTD.
Adult and Health Services,Head of Adults,Third Party Payments,470101,Purchase of Care,04/08/2020,3767111-2628703,"2,500.00",ESSENTIAL CARE & SUPPORT LTD.
Adult and Health Services,Head of Adults,Third Party Payments,470101,Purchase of Care,04/08/2020,3767111-2628707,"1,250.00",ESSENTIAL CARE & SUPPORT LTD.
Adult and Health Services,Head of Adults,Third Party Payments,470101,Purchase of Care,04/08/2020,3767111-2628693,"2,488.08",ESSENTIAL CARE & SUPPORT LTD.
Adult and Health Services,Head of Adults,Third Party Payments,470101,Purchase of Care,04/08/2020,3767111-2628694,840.00,ESSENTIAL CARE & SUPPORT LTD.
Adult and Health Services,Head of Adults,Third Party Payments,470101,Purchase of Care,04/08/2020,3767111-2628692,"2,500.00",ESSENTIAL CARE & SUPPORT LTD.
Adult and Health Services,Head of Adults,Third Party Payments,470101,Purchase of Care,04/08/2020,3767111-2628696,"2,488.08",ESSENTIAL CARE & SUPPORT LTD.
Adult and Health Services,Head of Adults,Third Party Payments,478101,Purchase of Care,04/08/2020,3766591-ADDITIONALUPLIFT5/46,"7,977.96",ESSENTIAL CARE & SUPPORT LTD.
Adult and Health Services,Head of Adults,Third Party Payments,479150,Purchase of Care,04/08/2020,3766591-INFECTIONCONTROLFUND/25,"85,842.65",ESSENTIAL CARE & SUPPORT LTD.
Adult and Health Services,Head of Adults,Third Party Payments,470101,Purchase of Care,04/08/2020,3766592-ADDITIONALUPLIFT5/140,"8,313.38",ESSENTIAL CARE & SUPPORT LTD.
Adult and Health Services,Head of Adults,Third Party Payments,479150,Purchase of Care,04/08/2020,3766592-INFECTIONCONTROLFUND2/67,"20,767.74",ESSENTIAL CARE & SUPPORT LTD.
Adult and Health Services,Head of Adults,Third Party Payments,470101,Purchase of Care,04/08/2020,3766592-SELFFUNDERCOVID19UPLIFT5-91,995.23,ESSENTIAL CARE & SUPPORT LTD.
Adult and Health Services,Head of Adults,Third Party Payments,470101,Purchase of Care,04/08/2020,3767111-2628685,"2,579.92",ESSENTIAL CARE & SUPPORT LTD.
Adult and Health Services,Head of Adults,Third Party Payments,478101,Purchase of Care,04/08/2020,3766593-ADDITIONALUPLIFT5/92,758.82,ETHICARE (DURHAM) LTD.
Adult and Health Services,Head of Adults,Third Party Payments,479150,Purchase of Care,04/08/2020,3766593-INFECTIONCONTROLFUND/62,"20,296.12",ETHICARE (DURHAM) LTD.
Adult and Health Services,Head of Adults,Third Party Payments,470101,Purchase of Care,04/08/2020,3767112-2625733,"2,280.00",EXCLUSIVE CARE GROUP T/A EASTBOURNE CARE HOME.
"Regeneration, Economy and Growth",Business Durham CL0850,Supplies and Services,352001,Conference Expenses,04/08/2020,3766596-DCI007,"1,500.00",FAR NORTH LTD.
Neighbourhoods and Climate Change,Environmental Services,Third Party Payments,430120,Rendered by Private Contractors,04/08/2020,3766597-CTIN06611282,"4,230.45",FINNING (UK) LTD.
Neighbourhoods and Climate Change,Environmental Services,Third Party Payments,430120,Rendered by Private Contractors,04/08/2020,3766597-CTIN06611848,"5,734.61",FINNING (UK) LTD.
Dedicated Schools Grant BG0015,DSG Early Years Block,Transfer Payments,510030,School Children,04/08/2020,3766598-EYFCOVID19/SUMMERTERM20,583.74,FIRST FOUR KIDZ CHILDCARE.
Neighbourhoods and Climate Change,Partnerships & Community Engagement Div.,Cap Exp on Grants & Other Financial Assistance (REFCUS),918004,Contributions to other bodies 918004,04/08/2020,3766599-VOUCHER19NB-EDRC028,"5,000.00",FISHBURN PARISH COUNCIL.
Children and Young Peoples Services,Head of Childrens Social Care,Third Party Payments,425040,Rendered by Voluntary Organisations,04/08/2020,3767114-PIG_68823,"8,980.35",FIVE RIVERS CHILD CARE LTD.
Adult and Health Services,Head of Adults,Third Party Payments,470101,Purchase of Care,04/08/2020,3767115-2629574,"5,577.84",FLEXIBLE SUPPORT OPTIONS LTD.
Adult and Health Services,Head of Adults,Third Party Payments,478101,Purchase of Care,04/08/2020,3766600-ADDITIONALUPLIFT5/50,958.53,FLEXIBLE SUPPORT OPTIONS LTD.
Adult and Health Services,Head of Adults,Third Party Payments,479150,Purchase of Care,04/08/2020,3766600-INFECTIONCONTROLFUND/30,"2,925.00",FLEXIBLE SUPPORT OPTIONS LTD.
Children and Young Peoples Services,Head of Childrens Social Care,Third Party Payments,425040,Rendered by Voluntary Organisations,04/08/2020,3767116-PIG_69530,"74,625.56",FOSTER CARE ASSOCIATES LTD.
Children and Young Peoples Services,Head of Childrens Social Care,Third Party Payments,425040,Rendered by Voluntary Organisations,04/08/2020,3767117-PIG_69550,"30,481.64",FOSTER CARE SOLUTIONS LTD.
Children and Young Peoples Services,Head of Childrens Social Care,Third Party Payments,425040,Rendered by Voluntary Organisations,04/08/2020,3767118-PIG_68824,"30,422.81",FOSTER CARES LTD.
Children and Young Peoples Services,Head of Childrens Social Care,Third Party Payments,425040,Rendered by Voluntary Organisations,04/08/2020,3767119-PIG_68825,"23,331.96",FOSTERING PEOPLE LTD.
Children and Young Peoples Services,Head of Education and Skills,Third Party Payments,440999,Other third party payments E440,04/08/2020,3766601-0000000228,"3,900.00",FOUNDATION OF LIGHT.
Adult and Health Services,Head of Adults,Third Party Payments,474101,Purchase of Care,04/08/2020,3767120-2629652,"2,550.00",FOUR SEASONS (H2) LTD.
Adult and Health Services,Head of Adults,Third Party Payments,470101,Purchase of Care,04/08/2020,3767121-2627627,"2,488.08",FOUR SEASONS (NO 9) LTD.
Adult and Health Services,Head of Adults,Third Party Payments,470101,Purchase of Care,04/08/2020,3767121-2627628,"2,488.08",FOUR SEASONS (NO 9) LTD.
Adult and Health Services,Head of Adults,Third Party Payments,470101,Purchase of Care,04/08/2020,3767121-2627629,"2,488.08",FOUR SEASONS (NO 9) LTD.
Adult and Health Services,Head of Adults,Third Party Payments,470101,Purchase of Care,04/08/2020,3767121-2627630,"2,488.08",FOUR SEASONS (NO 9) LTD.
Adult and Health Services,Head of Adults,Third Party Payments,470101,Purchase of Care,04/08/2020,3767121-2627634,"2,488.08",FOUR SEASONS (NO 9) LTD.
Adult and Health Services,Head of Adults,Third Party Payments,470101,Purchase of Care,04/08/2020,3767121-2627635,"2,488.08",FOUR SEASONS (NO 9) LTD.
Adult and Health Services,Head of Adults,Third Party Payments,474101,Purchase of Care,04/08/2020,3767121-2627636,"2,589.44",FOUR SEASONS (NO 9) LTD.
Adult and Health Services,Head of Adults,Third Party Payments,474101,Purchase of Care,04/08/2020,3767121-2627638,"2,589.44",FOUR SEASONS (NO 9) LTD.
Adult and Health Services,Head of Adults,Third Party Payments,470101,Purchase of Care,04/08/2020,3767121-2627631,"2,488.08",FOUR SEASONS (NO 9) LTD.
Adult and Health Services,Head of Adults,Third Party Payments,470101,Purchase of Care,04/08/2020,3767121-2627625,"2,488.08",FOUR SEASONS (NO 9) LTD.
Adult and Health Services,Head of Adults,Third Party Payments,470101,Purchase of Care,04/08/2020,3767121-2627626,"2,488.08",FOUR SEASONS (NO 9) LTD.
Adult and Health Services,Head of Adults,Third Party Payments,470102,Purchase of Care,04/08/2020,3767121-2627613,"1,510.62",FOUR SEASONS (NO 9) LTD.
Adult and Health Services,Head of Adults,Third Party Payments,470101,Purchase of Care,04/08/2020,3767121-2627616,"2,132.64",FOUR SEASONS (NO 9) LTD.
Adult and Health Services,Head of Adults,Third Party Payments,470101,Purchase of Care,04/08/2020,3767121-2627624,"2,488.08",FOUR SEASONS (NO 9) LTD.
Adult and Health Services,Head of Adults,Third Party Payments,470101,Purchase of Care,04/08/2020,3766602-ADDITIONALUPLIFT5/124,"6,805.83",FOUR SEASONS (NO 9) LTD.
Adult and Health Services,Head of Adults,Third Party Payments,479150,Purchase of Care,04/08/2020,3766602-INFECTIONCONTROLFUND2/110,"29,668.20",FOUR SEASONS (NO 9) LTD.
Adult and Health Services,Head of Adults,Third Party Payments,470101,Purchase of Care,04/08/2020,3766602-SELFFUNDERCOVID19UPLIFT5-77,"5,006.57",FOUR SEASONS (NO 9) LTD.
Adult and Health Services,Head of Adults,Third Party Payments,470101,Purchase of Care,04/08/2020,3767122-2626433,"2,488.08",FOUR SEASONS HOMES NO 1 LTD.
Adult and Health Services,Head of Adults,Third Party Payments,474101,Purchase of Care,04/08/2020,3767122-2626435,"6,165.59",FOUR SEASONS HOMES NO 1 LTD.
Adult and Health Services,Head of Adults,Third Party Payments,470101,Purchase of Care,04/08/2020,3767122-2626441,"2,488.08",FOUR SEASONS HOMES NO 1 LTD.
Adult and Health Services,Head of Adults,Third Party Payments,470101,Purchase of Care,04/08/2020,3767122-2626442,"2,488.08",FOUR SEASONS HOMES NO 1 LTD.
Adult and Health Services,Head of Adults,Third Party Payments,474101,Purchase of Care,04/08/2020,3767122-2626444,"2,589.44",FOUR SEASONS HOMES NO 1 LTD.
Adult and Health Services,Head of Adults,Third Party Payments,470101,Purchase of Care,04/08/2020,3767122-2626448,"2,488.08",FOUR SEASONS HOMES NO 1 LTD.
Adult and Health Services,Head of Adults,Third Party Payments,470101,Purchase of Care,04/08/2020,3767122-2626449,"2,488.08",FOUR SEASONS HOMES NO 1 LTD.
Adult and Health Services,Head of Adults,Third Party Payments,470101,Purchase of Care,04/08/2020,3767122-2626450,"2,488.08",FOUR SEASONS HOMES NO 1 LTD.
Adult and Health Services,Head of Adults,Third Party Payments,470101,Purchase of Care,04/08/2020,3767122-2626451,"2,488.08",FOUR SEASONS HOMES NO 1 LTD.
Adult and Health Services,Head of Adults,Third Party Payments,474101,Purchase of Care,04/08/2020,3767122-2626452,"2,589.44",FOUR SEASONS HOMES NO 1 LTD.
Adult and Health Services,Head of Adults,Third Party Payments,470101,Purchase of Care,04/08/2020,3767122-2626454,"2,488.08",FOUR SEASONS HOMES NO 1 LTD.
Adult and Health Services,Head of Adults,Third Party Payments,470101,Purchase of Care,04/08/2020,3767122-2626455,"2,488.08",FOUR SEASONS HOMES NO 1 LTD.
Adult and Health Services,Head of Adults,Third Party Payments,474101,Purchase of Care,04/08/2020,3767122-2626456,"2,589.44",FOUR SEASONS HOMES NO 1 LTD.
Adult and Health Services,Head of Adults,Third Party Payments,470101,Purchase of Care,04/08/2020,3767122-2626458,"2,488.08",FOUR SEASONS HOMES NO 1 LTD.
Adult and Health Services,Head of Adults,Third Party Payments,470101,Purchase of Care,04/08/2020,3767122-2626459,"2,488.08",FOUR SEASONS HOMES NO 1 LTD.
Adult and Health Services,Head of Adults,Third Party Payments,470101,Purchase of Care,04/08/2020,3767122-2626460,"2,488.08",FOUR SEASONS HOMES NO 1 LTD.
Adult and Health Services,Head of Adults,Third Party Payments,470101,Purchase of Care,04/08/2020,3767122-2626461,"2,488.08",FOUR SEASONS HOMES NO 1 LTD.
Adult and Health Services,Head of Adults,Third Party Payments,470101,Purchase of Care,04/08/2020,3767122-2626462,"2,488.08",FOUR SEASONS HOMES NO 1 LTD.
Adult and Health Services,Head of Adults,Third Party Payments,470101,Purchase of Care,04/08/2020,3767122-2626463,"1,892.68",FOUR SEASONS HOMES NO 1 LTD.
Adult and Health Services,Head of Adults,Third Party Payments,474101,Purchase of Care,04/08/2020,3767122-2626464,"1,988.28",FOUR SEASONS HOMES NO 1 LTD.
Adult and Health Services,Head of Adults,Third Party Payments,470101,Purchase of Care,04/08/2020,3767122-2626438,"1,510.62",FOUR SEASONS HOMES NO 1 LTD.
Adult and Health Services,Head of Adults,Third Party Payments,470101,Purchase of Care,04/08/2020,3767122-2626443,"2,488.08",FOUR SEASONS HOMES NO 1 LTD.
Adult and Health Services,Head of Adults,Third Party Payments,474101,Purchase of Care,04/08/2020,3767122-2626446,"2,589.44",FOUR SEASONS HOMES NO 1 LTD.
Adult and Health Services,Head of Adults,Third Party Payments,470101,Purchase of Care,04/08/2020,3766603-ADDITIONALUPLIFT5/23,"7,609.16",FOUR SEASONS HOMES NO 1 LTD.
Adult and Health Services,Head of Adults,Third Party Payments,479150,Purchase of Care,04/08/2020,3766603-INFECTIONCONTROLFUND2/89,"24,723.50",FOUR SEASONS HOMES NO 1 LTD.
Adult and Health Services,Head of Adults,Third Party Payments,470101,Purchase of Care,04/08/2020,3766603-SELFFUNDERCOVID19UPLIFT5-18,995.23,FOUR SEASONS HOMES NO 1 LTD.
Adult and Health Services,Head of Adults,Third Party Payments,471101,Purchase of Care,04/08/2020,3767123-2628829,"2,667.16",FOUR SEASONS T/A MAPLE LODGE CARE HOME (SUNDERLAND).
Neighbourhoods and Climate Change,Partnerships & Community Engagement Div.,Supplies and Services,384086,Miscellaneous Expenses,04/08/2020,3766604-VOUCHER20NB-DCTY004,"2,500.00",FRAMWELLGATE MOOR PARISH COUNCIL.
Neighbourhoods and Climate Change,Partnerships & Community Engagement Div.,Supplies and Services,384086,Miscellaneous Expenses,04/08/2020,3766606-VOUCHER20NB-WEAR005,"1,000.00",FROSTERLEY VILLAGE HALL & INSTITUTE.
Adult and Health Services,Head of Adults,Third Party Payments,474101,Purchase of Care,04/08/2020,3767126-2629952,"1,558.00",GAINFORD CARE HOMES LTD.
Adult and Health Services,Head of Adults,Third Party Payments,471101,Purchase of Care,04/08/2020,3767128-2629146,"2,579.92",GAINFORD CARE HOMES LTD.
Adult and Health Services,Head of Adults,Third Party Payments,470101,Purchase of Care,04/08/2020,3767128-2629173,"2,488.08",GAINFORD CARE HOMES LTD.
Adult and Health Services,Head of Adults,Third Party Payments,474101,Purchase of Care,04/08/2020,3767128-2629180,"2,589.44",GAINFORD CARE HOMES LTD.
Adult and Health Services,Head of Adults,Third Party Payments,474101,Purchase of Care,04/08/2020,3767128-2629182,"2,589.44",GAINFORD CARE HOMES LTD.
Adult and Health Services,Head of Adults,Third Party Payments,470101,Purchase of Care,04/08/2020,3767128-2629903,"3,820.98",GAINFORD CARE HOMES LTD.
Adult and Health Services,Head of Adults,Third Party Payments,471101,Purchase of Care,04/08/2020,3767129-2627243,"1,136.46",GAINFORD CARE HOMES LTD.
Adult and Health Services,Head of Adults,Third Party Payments,471101,Purchase of Care,04/08/2020,3767129-2627245,"3,584.22",GAINFORD CARE HOMES LTD.
Adult and Health Services,Head of Adults,Third Party Payments,474101,Purchase of Care,04/08/2020,3767129-2627257,554.88,GAINFORD CARE HOMES LTD.
Adult and Health Services,Head of Adults,Third Party Payments,471101,Purchase of Care,04/08/2020,3767129-2627261,"2,447.76",GAINFORD CARE HOMES LTD.
Adult and Health Services,Head of Adults,Third Party Payments,471101,Purchase of Care,04/08/2020,3767129-2627262,"2,447.76",GAINFORD CARE HOMES LTD.
Adult and Health Services,Head of Adults,Third Party Payments,471101,Purchase of Care,04/08/2020,3767129-2627263,"1,223.88",GAINFORD CARE HOMES LTD.
Adult and Health Services,Head of Adults,Third Party Payments,474101,Purchase of Care,04/08/2020,3767129-2627268,"2,457.28",GAINFORD CARE HOMES LTD.
Adult and Health Services,Head of Adults,Third Party Payments,471101,Purchase of Care,04/08/2020,3767129-2627272,"1,311.30",GAINFORD CARE HOMES LTD.
Adult and Health Services,Head of Adults,Third Party Payments,474101,Purchase of Care,04/08/2020,3767129-2627275,"2,457.28",GAINFORD CARE HOMES LTD.
Adult and Health Services,Head of Adults,Third Party Payments,474101,Purchase of Care,04/08/2020,3767129-2627286,"1,228.64",GAINFORD CARE HOMES LTD.
Adult and Health Services,Head of Adults,Third Party Payments,474101,Purchase of Care,04/08/2020,3767129-2627289,"1,228.64",GAINFORD CARE HOMES LTD.
Adult and Health Services,Head of Adults,Third Party Payments,471101,Purchase of Care,04/08/2020,3767129-2630003,"2,972.28",GAINFORD CARE HOMES LTD.
Adult and Health Services,Head of Adults,Third Party Payments,471101,Purchase of Care,04/08/2020,3767130-2628012,"1,934.94",GAINFORD CARE HOMES LTD.
Adult and Health Services,Head of Adults,Third Party Payments,471101,Purchase of Care,04/08/2020,3767130-2628023,"2,579.92",GAINFORD CARE HOMES LTD.
